{"text_format":"1","workbook":"xlsx","n_sheets":20,"sheets":["I.i II Ogólne i  Ident.","II.A Wspólnik ","III.Opis operacji","I.A WUM","III A. Kryteria prosięta","III B. Kryteria mleko","III C. Kryteria opasy","III D. Kryteria rent i konkuren","IV.zestawienie RF","V.Finans.","VI.Inf.zał.","VI.Inf.zał. NN","VII. Ośw. Podmiotu","Zał 1. Oświadczenia współ 3","zał. 2. Następca_nabywca","Zał 3 Ośw. następcy prawneg","Zał 4 Zgoda osoby WUM","Zał. 5 Klauzula RODO","Powiaty","Gminy"],"not_rendered":{"charts":0,"images":0,"macros":1,"external_links":14,"defined_names":719,"comments":1,"pivot_tables":0},"unopened":[],"bounds":{"document_bytes":16777216,"sheet_cells":100000,"rows_first":2000,"rows_last":500,"rows_between":2000,"halvings":0,"cell_chars":16384,"cell_head_chars":4096},"cells_cut":0,"cells_raw":0,"read":"whole","date_system":"1900"}

{"sheet":"I.i II Ogólne i  Ident.","index":0,"n_rows":88,"n_cols":47,"rows_kept":88,"cut":false,"hidden":false,"merged":[[35,31,35,36],[87,2,88,36],[37,34,37,35],[37,25,37,32],[69,20,69,27],[69,28,69,36],[70,20,70,27],[70,28,70,36],[47,17,47,26],[58,27,58,36],[59,27,59,36],[49,8,49,12],[48,2,48,7],[46,27,46,36],[49,24,49,36],[48,13,48,23],[47,27,47,36],[48,24,48,36],[65,18,65,26],[55,9,55,16],[58,7,58,16],[54,2,54,36],[56,17,56,25],[57,7,57,16],[36,2,36,12],[36,23,36,31],[36,33,36,37],[57,17,57,26],[58,2,58,6],[47,7,47,16],[51,2,51,12],[56,26,56,36],[51,13,51,23],[56,2,56,8],[55,2,55,8],[49,2,49,7],[49,13,49,23],[50,2,50,12],[50,13,50,23],[50,24,50,36],[55,17,55,25],[23,2,23,28],[45,9,45,16],[45,2,45,8],[46,2,46,6],[45,17,45,25],[45,26,45,36],[46,17,46,26],[33,20,33,28],[27,2,27,36],[34,20,34,36],[44,17,44,25],[40,2,40,35],[44,2,44,8],[41,2,41,36],[46,7,46,16],[43,2,43,36],[44,26,44,36],[32,20,32,28],[31,3,31,36],[24,2,24,34],[29,3,29,10],[33,2,35,19],[33,29,33,36],[29,11,29,36],[22,2,22,28],[5,26,6,37],[19,29,19,36],[13,32,13,34],[13,28,13,30],[14,2,15,14],[18,2,20,28],[14,15,15,36],[10,2,10,35],[1,31,1,36],[11,13,12,34],[11,2,12,12],[0,1,1,25],[1,26,1,30],[7,1,7,37],[8,1,9,37],[3,26,4,37],[2,1,5,25],[6,1,6,25],[64,18,64,26],[57,27,57,36],[56,9,56,16],[57,2,57,6],[65,27,65,36],[47,2,47,6],[48,8,48,12],[55,26,55,36],[67,27,67,36],[61,2,61,14],[62,2,62,14],[60,6,60,9],[63,3,63,36],[60,27,60,36],[58,17,58,26],[86,2,86,38],[78,2,82,36],[78,37,82,37],[73,3,74,27],[76,2,76,3],[84,32,84,35],[84,2,84,3],[25,18,25,26],[35,20,35,30],[37,2,37,11],[37,13,37,21],[37,23,37,24],[39,2,39,11],[25,4,25,13],[32,2,32,19],[65,3,65,17],[32,29,32,36],[84,26,84,27],[84,29,84,30],[83,26,83,27],[83,29,83,30],[69,2,69,19],[70,2,70,19],[84,4,84,25],[83,32,83,35],[38,12,38,26],[38,27,38,35],[39,27,39,35],[51,24,51,36],[44,9,44,16],[68,2,68,37],[39,13,39,24],[64,3,64,17],[76,4,76,37],[64,27,64,36],[59,10,59,18],[60,10,60,18],[59,19,59,26],[67,18,67,26],[66,18,66,26],[66,27,66,36],[66,3,66,17],[67,3,67,17],[60,2,60,5],[59,6,59,9],[60,19,60,26],[59,2,59,5],[73,28,73,36]]}
[null,"Agencja Restrukturyzacji i Modernizacji Rolnictwa"]
[null,null,null,null,null,null,null,null,null,null,null,null,null,null,null,null,null,null,null,null,null,null,null,null,null,null,"Symbol formularza",null,null,null,null,"W-1/4.1.3_A-D"]
[null,"WNIOSEK                                                                                                                                 o przyznanie pomocy na operacje typu „Modernizacja gospodarstw rolnych” w ramach poddziałania „Wsparcie inwestycji w gospodarstwach rolnych” objętego Programem Rozwoju Obszarów Wiejskich na lata 2014–2020 w obszarze:"]
[null,null,null,null,null,null,null,null,null,null,null,null,null,null,null,null,null,null,null,null,null,null,null,null,null,null,"Potwierdzenie przyjęcia przez Oddział Regionalny ARiMR\n/Biuro Powiatowe ARiMR/\n/pieczęć/"]
[]
[null,null,null,null,null,null,null,null,null,null,null,null,null,null,null,null,null,null,null,null,null,null,null,null,null,null,"...............................................\nData przyjęcia i podpis"]
[null,"(wybierz z listy obszar wsparcia)",null,null,null,null,null,null,null,null,null,null,null,null,null,null,null,null,null,null,null,null,null,null,null,null,null,null,null,null,null,null,null,null,null,null,null,null,null,null,null,null,null,null,"(wybierz z listy obszar wsparcia)"]
[null,".................................................................................................................................................................\nZnak sprawy",null,null,null,null,null,null,null,null,null,null,null,null,null,null,null,null,null,null,null,null,null,null,null,null,null,null,null,null,null,null,null,null,null,null,null,null,null,null,null,null,null,null,"rozwój produkcji prosiąt"]
[null,"W celu poprawnego wypełnienia wniosku podmiot ubiegający się o przyznanie pomocy powinien zapoznać się z instrukcją jego wypełniania",null,null,null,null,null,null,null,null,null,null,null,null,null,null,null,null,null,null,null,null,null,null,null,null,null,null,null,null,null,null,null,null,null,null,null,null,null,null,null,null,null,null,"rozwój produkcji mleka krowiego"]
[null,null,null,null,null,null,null,null,null,null,null,null,null,null,null,null,null,null,null,null,null,null,null,null,null,null,null,null,null,null,null,null,null,null,null,null,null,null,null,null,null,null,null,null,"rozwój produkcji bydła mięsnego"]
[null,null,null,null,null,null,null,null,null,null,null,null,null,null,null,null,null,null,null,null,null,null,null,null,null,null,null,null,null,null,null,null,null,null,null,null,null,null,null,null,null,null,null,null,"związanym z racjonalizacją technologii produkcji, wprowadzeniem innowacji, zmianą profilu produkcji, zwiększeniem skali produkcji, poprawą jakości produkcji lub zwiększeniem wartości dodanej produktu"]
[null,null,"I. CZĘŚĆ OGÓLNA"]
[]
[]
[null,null,"1.1. CEL ZŁOŻENIA:",null,null,null,null,null,null,null,null,null,null,null,null,"(wybierz z listy)",null,null,null,null,null,null,null,null,null,null,null,null,null,null,null,null,null,null,null,null,null,null,null,null,null,null,null,null,null,null,"(wybierz z listy)"]
[null,null,null,null,null,null,null,null,null,null,null,null,null,null,null,null,null,null,null,null,null,null,null,null,null,null,null,null,null,null,null,null,null,null,null,null,null,null,null,null,null,null,null,null,null,null,"złożenie wniosku"]
[null,null,null,null,null,null,null,null,null,null,null,null,null,null,null,null,null,null,null,null,null,null,null,null,null,null,null,null,null,null,null,null,null,null,null,null,null,null,null,null,null,null,null,null,null,null,"zmiana wniosku"]
[null,null,null,null,null,null,null,null,null,null,null,null,null,null,null,null,null,null,null,null,null,null,null,null,null,null,null,null,null,null,null,null,null,null,null,null,null,null,null,null,null,null,null,null,null,null,"korekta wniosku"]
[null,null," 1.2. WNIOSEK SKŁADANY JEST PRZEZ OSOBY WSPÓLNIE WNIOSKUJĄCE",null,null,null,null,null,null,null,null,null,null,null,null,null,null,null,null,null,null,null,null,null,null,null,null,null,null,null,null,null,null,null,null,null,null,null,null,null,null,null,null,null,"(wybierz z listy)",null,"wycofanie wniosku"]
[null,null,null,null,null,null,null,null,null,null,null,null,null,null,null,null,null,null,null,null,null,null,null,null,null,null,null,null,null,"(wybierz z listy)",null,null,null,null,null,null,null,null,null,null,null,null,null,null,"TAK",null,"złożenie wniosku o przyznanie pomocy następcy prawnego Beneficjenta"]
[null,null,null,null,null,null,null,null,null,null,null,null,null,null,null,null,null,null,null,null,null,null,null,null,null,null,null,null,null,null,null,null,null,null,null,null,null,null,null,null,null,null,null,null,"NIE",null,"złożenie wniosku o przyznanie pomocy nabywcy całości gospodarstwa lub jego części"]
[null,null,null,null,null,null,null,null,null,null,null,null,null,null,null,null,null,null,null,null,null,null,null,null,null,null,null,null,null,null,null,null,null,null,null,null,null,null,null,null,null,null,null,null,null,null,"zmiana wniosku o przyznanie pomocy następcy prawnego Beneficjenta lub nabywcy gospodarstwa"]
[null,null,null,null,null,null,null,null,null,null,null,null,null,null,null,null,null,null,null,null,null,null,null,null,null,null,null,null,null,null,null,null,null,null,null,null,null,null,null,null,null,null,null,null,null,null,"korekta wniosku o przyznanie pomocy następcy prawnego Beneficjenta lub nabywcy gospodarstwa"]
[null,null,"II. DANE PODMIOTU UBIEGAJĄCEGO SIĘ O PRZYZNANIE POMOCY ",null,null,null,null,null,null,null,null,null,null,null,null,null,null,null,null,null,null,null,null,null,null,null,null,null,null,null,null,null,null,null,null,null,null,null,null,null,null,null,null,null,null,null,"wycofanie wniosku o przyznanie pomocy następcy prawnego Beneficjenta lub nabywcy gospodarstwa"]
[null,null,"1. Numer identyfikacyjny ",null,null,null,null,null,null,null,null,null,null,null,null,null,null,null,null,null,null,null,null,null,null,null,null,null,null,null,null,null,null,null,null,null,null,null,null,null,null,null,null,null,"(wybierz z listy)"]
[null,null,"1.1.1",null,null,null,null,null,null,null,null,null,null,null,null,null," 1.2.2",null,null,null,null,null,null,null,null,null,null,null,null,null,null,null,null,null,null,null,null,null,null,null,null,null,null,null,"OSOBA FIZYCZNA"]
[null,null,null,null,null,null,null,null,null,null,null,null,null,null,null,null,null,null,null,null,null,null,null,null,null,null,null,null,null,null,null,null,null,null,null,null,null,null,null,null,null,null,null,null,"OSOBA PRAWNA"]
[null,null,"1Uwaga: W pozycji 1.1 należy wpisać numer identyfikacyjny podmiotu ubiegającego się o przyznanie pomocy, a w przypadku gdy podmiotem są wspólnicy spółki cywilnej, należy wpisać numer nadany spółce zgodnie z ustawą z dnia 18 grudnia 2003 r. o krajowym systemie ewidencji producentów, ewidencji gospodarstw rolnych oraz ewidencji wniosków o przyznanie płatności (Dz. U. z 2017 r. poz. 1853, z 2019 r. poz. 1824 oraz z 2020 r. poz. 300). W przypadku, gdy podmiotowi ubiegającemu się o przyznanie pomocy nie został nadany numer identyfikacyjny podmiot ten składa wraz z wnioskiem o przyznanie pomocy oryginał wniosku o wpis do ewidencji, o której mowa w przepisach ww. ustawy, albo jego kopię w przypadku, gdy wniosek o nadanie numeru identyfikacyjnego został złożony we wcześniejszym terminie a podmiotowi do chwili złożenia wniosku o przyznanie pomocy, nie nadano tego numeru.\nAgencja pozostawia wniosek bez rozpatrzenia bez uprzedniego wezwania do usunięcia braków (z zastrzeżeniem sytuacji gdy numer ten można ustalić w ewidencji producentów) jeśli: \n- nie została wypełniona pozycja 1.1 Numer identyfikacyjny, lub\n- nie dołączono wniosku o wpis do ewidencji producentów, o której mowa w ww. ustawie, albo jego kopii.\n\n2Uwaga: W pozycji 1.2. należy podać numer identyfikacyjny, który odnosi się do gospodarstwa wykazywanego na potrzeby ubiegania się o wsparcie w ramach przedmiotowego wniosku. Dotyczy to przypadków, w których o dopłaty bezpośrednie do gruntów objętych przedmiotowym wnioskiem występuje współmałżonek lub współposiadacz gospodarstwa, któremu został nadany numer zgodnie z art. 12 ust. 4 pkt 1 ww. ustawy.\nW przypadku, gdy nie mamy do czynienia z występowaniem o dopłaty do gruntów objętych wnioskiem przez współmałżonka/ współposiadacza gospodarstwa pole 1.2 należy pozostawić niewypełnione.\n",null,null,null,null,null,null,null,null,null,null,null,null,null,null,null,null,null,null,null,null,null,null,null,null,null,null,null,null,null,null,null,null,null,null,null,null,null,null,null,null,null,"SPÓŁKA OSOBOWA W ROZUMIENIU KODEKSU SPÓŁEK HANDLOWYCH"]
[null,null,null,null,null,null,null,null,null,null,null,null,null,null,null,null,null,null,null,null,null,null,null,null,null,null,null,null,null,null,null,null,null,null,null,null,null,null,null,null,null,null,null,null,"WSPÓLNICY SPÓŁKI CYWILNEJ"]
[null,null,"2.","Rodzaj podmiotu ubiegającego się o przyznanie pomocy",null,null,null,null,null,null,null,"(wybierz z listy)",null,null,null,null,null,null,null,null,null,null,null,null,null,null,null,null,null,null,null,null,null,null,null,null,null,null,null,null,null,null,null,null,"ODDZIAŁ PRZEDSIĘBIORCY ZAGRANICZNEGO"]
[]
[null,null,"3.","Dane podmiotu ubiegającego się o przyznanie pomocy"]
[null,null,"3.1. Nazwisko/Nazwa: ",null,null,null,null,null,null,null,null,null,null,null,null,null,null,null,null,null,"3.2. Pierwsze imię",null,null,null,null,null,null,null,null,null,null,null,null,null,null,null,null,null,null,null,null,null,null,null,null,null,"(wybierz z listy)"]
[null,null,null,null,null,null,null,null,null,null,null,null,null,null,null,null,null,null,null,null,null,null,null,null,null,null,null,null,null,null,null,null,null,null,null,null,null,null,null,null,null,null,null,null,null,null,"pozostaję w związku małżeńskim"]
[null,null,null,null,null,null,null,null,null,null,null,null,null,null,null,null,null,null,null,null,"3.3. PESEL/data urodzenia",null,null,null,null,null,null,null,null,null,null,null,null,null,null,null,null,null,null,null,null,null,null,null,null,null,"nie pozostaję w związku małżeńskim"]
[]
[null,null,"3.4. NIP",null,null,null,null,null,null,null,null,null,null,"3.5. REGON",null,null,null,null,null,null,null,null,null,"3.6. Kod kraju**",null,null,null,null,null,null,null,null,null,null,null,null,null,null,null,null,null,null,null,null,null,null,"(wybierz z listy)"]
[null,null,null,null,null,null,null,null,null,null,null,null,null,null,null,null,null,null,null,null,null,null," ",null,null,null,null,null,null,null,null,null,null,null,null,null,null,null,null,null,null,null,null,null,null,null,"KOBIETA "]
[null,null,"3.7. NIP oddziału przedsiębiorcy zagranicznego",null,null,null,null,null,null,null,null,null,"3.8.Numer paszportu lub innego dokumentu tożsamości**",null,null,null,null,null,null,null,null,null,null,null,null,null,null,"3.9. Płeć",null,null,null,null,null,null,null,null,null,null,null,null,null,null,null,null,null,null,"MĘŻCZYZNA "]
[null,null,null,null,null,null,null,null,null,null,null,null,null,null,null,null,null,null,null,null,null,null,null,null,null,null,null,"(wybierz z listy)"]
[null,null,"3.10. Stan cywilny i ustrój majątkowy w małżeństwie",null,null,null,null,null,null,null,null,null,null,null,null,null,null,null,null,null,null,null,null,null,null,null,null,null,null,null,null,null,null,null,null,null,null,null,null,null,null,null,null,null,null,null,"(wybierz z listy)"]
[null,null,"(wybierz z listy)",null,null,null,null,null,null,null,null,null,null,null,null,null,null,null,null,null,null,null,null,null,null,null,null,null,null,null,null,null,null,null,null,null,null,null,null,null,null,null,null,null,null,null,"nie pozostaję w związku małżeńskim "]
[null,null,null,null,null,null,null,null,null,null,null,null,null,null,null,null,null,null,null,null,null,null,null,null,null,null,null,null,null,null,null,null,null,null,null,null,null,null,null,null,null,null,null,null,null,null,"pozostaję w związku małżeńskim - wspólność majątkowa małżeńska"]
[null,null,"4. Adres podmiotu ubiegającego się o przyznanie pomocy (miejsce zamieszkania osoby fizycznej lub siedziba w przypadku pozostałych podmiotów)",null,null,null,null,null,null,null,null,null,null,null,null,null,null,null,null,null,null,null,null,null,null,null,null,null,null,null,null,null,null,null,null,null,null,null,null,null,null,null,null,null,null,null,"pozostaję w związku małżeńskim - rozdzielność majątkowa "]
[null,null,"4.1. Kraj",null,null,null,null,null,null,"4.2. Województwo",null,null,null,null,null,null,null,"4.3. Powiat",null,null,null,null,null,null,null,null,"4.4. Gmina"]
[null,null,"POLSKA",null,null,null,null,null,null,"wybierz z listy"]
[null,null,"4.5. Kod pocztowy",null,null,null,null,"4.6. Poczta",null,null,null,null,null,null,null,null,null,"4.7. Miejscowość",null,null,null,null,null,null,null,null,null,"4.8 Ulica"]
[]
[null,null,"4.9. Nr domu",null,null,null,null,null,"4.10. Nr lokalu",null,null,null,null,"4.11. Telefon stacjonarny/ komórkowy*",null,null,null,null,null,null,null,null,null,null,"4.12. Faks*"]
[null,null,null,null,null,null,null,null,"-"]
[null,null,"4.13. E-mail*",null,null,null,null,null,null,null,null,null,null,"4.14.Telefon komórkowy do powiadomień SMS*"]
[]
[]
[]
[null,null,"5. Adres do korespondencji (wypełnić, jeśli jest inny niż w pkt 4 lub ustanowiono pełnomocnika)"]
[null,null,"5.1. Kraj",null,null,null,null,null,null,"5.2. Województwo",null,null,null,null,null,null,null,"5.3. Powiat",null,null,null,null,null,null,null,null,"5.4. Gmina"]
[null,null,"POLSKA",null,null,null,null,null,null,"wybierz z listy"]
[null,null,"5.5. Kod pocztowy",null,null,null,null,"5.6. Poczta",null,null,null,null,null,null,null,null,null,"5.7. Miejscowość",null,null,null,null,null,null,null,null,null,"5.8 Ulica"]
[]
[null,null,"5.9. Nr domu",null,null,null,"5.10. Nr lokalu",null,null,null,"5.11.Telefon stacjonarny/komórkowy*",null,null,null,null,null,null,null,null,"5.12. Faks*",null,null,null,null,null,null,null,"5.13. E-mail*"]
[]
[null,null,"5.14. Telefon komórkowy do powiadomień SMS*"]
[]
[null,null,"6.","Dane osób upoważnionych do reprezentowania podmiotu ubiegającego się o przyznanie pomocy (dotyczy podmiotów niebędących osobą fizyczną)"]
[null,null,"Lp.","Nazwisko/ Nazwa",null,null,null,null,null,null,null,null,null,null,null,null,null,null,"Pierwsze imię",null,null,null,null,null,null,null,null," PESEL"]
[null,null,"6.1."]
[null,null,"6.2."]
[null,null,"6.3."]
[null,null,"7. Dane pełnomocnika podmiotu ubiegającego się o przyznanie pomocy"]
[null,null,"7.1. Nazwisko/Nazwa: ",null,null,null,null,null,null,null,null,null,null,null,null,null,null,null,null,null,"7.2. Pierwsze imię"]
[]
[]
[]
[null,null,"8.","Podmiot ubiegający się o przyznanie pomocy jest młodym rolnikiem w rozumieniu § 4 ust. 6 pkt 3 rozporządzenia MRiRW z dnia 21 sierpnia 2015 r. w sprawie szczegółowych warunków i trybu przyznawania oraz wypłaty pomocy finansowej na operacje typu „Modernizacja gospodarstw rolnych” w ramach poddziałania „Wsparcie inwestycji w gospodarstwach rolnych” objętego PROW na lata 2014–2020 (Dz. U. poz. 1371, z późn. zm.), zwanego dalej \"rozporządzeniem\"",null,null,null,null,null,null,null,null,null,null,null,null,null,null,null,null,null,null,null,null,null,null,null,null,"(wybierz z listy)"]
[]
[]
[null,null,"8.1.",null,"Informacje o kwalifikacjach zawodowych podmiotu ubiegającego się o przyznanie pomocy, będącego młodym rolnikiem w rozumieniu  § 4 ust. 6 pkt 3 rozporządzenia:"]
[]
[null,null,"(wybierz z listy)"]
[null,null,null,null,null,null,null,null,null,null,null,null,null,null,null,null,null,null,null,null,null,null,null,null,null,null,null,null,null,null,null,null,null,null,null,null,null,null,null,"(wybierz z listy)"]
[null,null,null,null,null,null,null,null,null,null,null,null,null,null,null,null,null,null,null,null,null,null,null,null,null,null,null,null,null,null,null,null,null,null,null,null,null,null,null,"stopień naukowy doktora lub ukończone studia trzeciego stopnia z dziedziny nauk rolniczych lub z dziedziny nauk weterynaryjnych"]
[null,null,null,null,null,null,null,null,null,null,null,null,null,null,null,null,null,null,null,null,null,null,null,null,null,null,null,null,null,null,null,null,null,null,null,null,null,null,null,"ukończone studia pierwszego stopnia lub studia drugiego stopnia lub jednolite studia magisterskie, lub studia magisterskie na kierunku: rolnictwo, ogrodnictwo, weterynaria - w przypadku gdy w gospodarstwie są prowadzone chów lub hodowla zwierząt, technika rolnicza i leśna, zootechnika lub na kierunkach studiów, w ramach których zakres kształcenia albo standardy kształcenia obejmują treści związane z działalnością rolniczą, w wymiarze łącznym co najmniej 200 godzin lub co najmniej 30 punktów uzyskanych w ramach Europejskiego Systemu Transferu i Akumulacji Punktów (European Credit Transfer and Accumulation System)"]
[null,null,null,null,null,null,null,null,null,null,null,null,null,null,null,null,null,null,null,null,null,null,null,null,null,null,null,null,null,null,null,null,null,null,null,null,null,null,null,"ukończone studia pierwszego stopnia lub studia drugiego stopnia, lub jednolite studia magisterskie, lub studia magisterskie na kierunku innym niż rolnictwo, ogrodnictwo, weterynaria - w przypadku gdy w gospodarstwie są prowadzone chów lub hodowla zwierząt, technika rolnicza i leśna, zootechnika, lub na kierunkach studiów, w ramach których zakres kształcenia albo standardy kształcenia obejmują treści związane z działalnością rolniczą, w wymiarze łącznym co najmniej 200 godzin lub co najmniej 30 punktów uzyskanych w ramach Europejskiego Systemu Transferu i Akumulacji Punktów  (European Credit Transfer and Accumulation System) oraz co najmniej 3-letni staż pracy w rolnictwie "]
[null,null,null,null,null,null,null,null,null,null,null,null,null,null,null,null,null,null,null,null,null,null,null,null,null,null,"dd",null,null,"mm",null,null,"rrrr",null,null,null,null,null,null,"ukończone studia podyplomowe w zakresie związanym z działalnością rolniczą"]
[null,null,"8.2.",null,"Data rozpoczęcia prowadzenia gospodarstwa jako kierujący",null,null,null,null,null,null,null,null,null,null,null,null,null,null,null,null,null,null,null,null,null,null,null,null,null,null,null,null,null,null,null,null,null,null,"na poziomie kwalifikacji technika w zawodzie technik rolnik, ogrodnik, architektury krajobrazu, hodowca koni, pszczelarz, weterynarii - w przypadku gdy w gospodarstwie są prowadzone chów lub hodowla zwierząt, agrobiznesu, mechanizacji rolnictwa, mechanizacji rolnictwa i agrotroniki, turystyki wiejskiej."]
[null,null,null,null,null,null,null,null,null,null,null,null,null,null,null,null,null,null,null,null,null,null,null,null,null,null,null,null,null,null,null,null,null,null,null,null,null,null,null,"na poziomie zasadniczej szkoły zawodowej lub branżowej szkoły I stopnia w zawodzie: rolnik, ogrodnik, pszczelarz, mechanik operator pojazdów i maszyn rolniczych."]
[null,null,"* Dane nieobowiązkowe.",null,null,null,null,null,null,null,null,null,null,null,null,null,null,null,null,null,null,null,null,null,null,null,null,null,null,null,null,null,null,null,null,null,null,null,null,"tytuł wykwalifikowanego robotnika lub tytuł mistrza, lub tytuł zawodowy lub tytuł zawodowy mistrza w zawodzie rolnik, ogrodnik, pszczelarz, mechanik operator pojazdów i maszyn rolniczych, uzyskany w formach pozaszkolnych oraz co najmniej 3-letni staż pracy w rolnictwie"]
[null,null,"** Dotyczy osób nieposiadających obywatelstwa polskiego oraz w przypadku podawania numeru NIP oddziału przedsiębiorcy zagranicznego.",null,null,null,null,null,null,null,null,null,null,null,null,null,null,null,null,null,null,null,null,null,null,null,null,null,null,null,null,null,null,null,null,null,null,null,null,"wykształcenie średnie oraz co najmniej 4-letni staż pracy w rolnictwie"]

{"sheet":"II.A Wspólnik ","index":1,"n_rows":86,"n_cols":53,"rows_kept":86,"cut":false,"hidden":false,"merged":[[32,24,32,35],[48,20,48,27],[44,3,44,15],[44,16,44,26],[43,2,43,35],[28,17,28,25],[28,2,28,8],[37,26,37,35],[41,20,41,27],[29,17,29,26],[41,10,41,19],[40,28,40,35],[37,9,37,16],[37,17,37,25],[39,27,39,35],[39,2,39,6],[39,7,39,16],[38,27,38,35],[41,28,41,35],[47,2,47,36],[44,27,44,35],[45,16,45,26],[41,6,41,9],[41,2,41,5],[27,26,27,35],[28,26,28,35],[22,2,22,11],[18,20,18,27],[36,2,36,8],[32,8,32,12],[24,27,24,35],[24,13,24,24],[24,2,24,11],[29,7,29,16],[29,2,29,6],[27,17,27,25],[27,2,27,8],[27,9,27,16],[32,13,32,23],[30,7,30,16],[32,2,32,7],[31,2,31,7],[30,2,30,6],[34,2,34,18],[34,19,34,35],[33,19,33,35],[35,2,35,35],[33,2,33,18],[7,37,8,37],[38,17,38,26],[40,10,40,19],[36,26,36,35],[40,2,40,5],[29,27,29,35],[31,24,31,35],[31,8,31,12],[30,27,30,35],[38,2,38,6],[38,7,38,16],[36,9,36,16],[36,17,36,25],[37,2,37,8],[40,6,40,9],[39,17,39,26],[40,20,40,27],[31,13,31,23],[30,17,30,26],[14,12,14,35],[23,13,23,27],[17,20,17,27],[28,9,28,16],[18,2,20,19],[1,1,1,11],[1,12,1,35],[5,15,5,26],[3,2,3,3],[3,4,3,33],[5,28,5,35],[5,5,5,12],[9,2,9,11],[9,26,9,34],[9,14,9,22],[17,2,17,19],[14,3,14,10],[26,2,26,35],[16,3,16,35],[21,2,21,12],[21,23,21,31],[17,28,17,35],[22,25,22,32],[22,34,22,35],[19,20,19,30],[18,28,18,35],[20,20,20,30],[22,23,22,24],[22,13,22,21],[23,2,23,12],[45,27,45,35],[49,20,49,27],[45,3,45,15],[55,17,55,35],[54,17,54,21],[54,22,54,35],[51,2,51,36],[67,3,67,35],[68,3,68,35],[49,2,49,19],[49,28,49,35],[48,28,48,35],[64,3,64,35],[65,3,65,35],[66,3,66,35],[52,2,52,36],[57,1,57,36],[58,2,58,35],[48,2,48,19],[69,3,69,35],[85,20,86,35],[81,4,82,35],[83,2,83,35],[59,3,59,35],[60,3,60,35],[61,3,61,35],[85,3,85,16],[86,3,86,17],[73,4,74,35],[75,2,75,35],[84,3,84,16],[77,3,77,16],[77,20,77,35],[79,1,79,2],[79,3,79,36],[76,3,76,16],[76,20,76,35],[71,1,71,2],[71,3,71,35],[62,3,62,35],[63,3,63,35]]}
[]
[null,"Podmiot (Imię i Nazwisko/Nazwa):",null,null,null,null,null,null,null,null,null,null,{"$f":"'I.i II Ogólne i  Ident.'!U34&'I.i II Ogólne i  Ident.'!W38&'I.i II Ogólne i  Ident.'!AD34&'I.i II Ogólne i  Ident.'!W38&'I.i II Ogólne i  Ident.'!C34","v":"  "},null,null,null,null,null,null,null,null,null,null,null,null,null,null,null,null,null,null,null,null,null,null,null,null,null,null,"(wybierz z listy)"]
[null,null,null,null,null,null,null,null,null,null,null,null,null,null,null,null,null,null,null,null,null,null,null,null,null,null,null,null,null,null,null,null,null,null,null,null,null,null,null,"OSOBA FIZYCZNA"]
[null,null,"II.A. ",null,"DANE",null,null,null,null,null,null,null,null,null,null,null,null,null,null,null,null,null,null,null,null,null,null,null,null,null,null,null,null,null,null,null,null,null,null,"OSOBA PRAWNA"]
[null,null,null,null,null,null,null,null,null,null,null,null,null,null,null,null,null,null,null,null,null,null,null,null,null,null,null,null,null,null,null,null,null,null,null,null,null,null,null,"SPÓŁKA OSOBOWA W ROZUMIENIU KODEKSU SPÓŁEK HANDLOWYCH"]
[null,null,null,null,null,"WSPÓŁPOSIADACZA",null,null,null,null,null,null,null,null,null,"WSPÓLNIKA SPÓŁKI CYWILNEJ ",null,null,null,null,null,null,null,null,null,null,null,null,"WSPÓŁMAŁŻONKA",null,null,null,null,null,null,null,null,null,null,"WSPÓLNICY SPÓŁKI CYWILNEJ"]
[null,null,null,null,null,null,null,null,null,null,null,null,null,null,null,null,null,null,null,null,null,null,null,null,null,null,null,null,null,null,null,null,null,null,null,null,null,null,null,"ODDZIAŁ PRZEDSIĘBIORCY ZAGRANICZNEGO"]
[]
[]
[null,null,"1. NUMER IDENTYFIKACYJNY:",null,null,null,null,null,null,null,null,null,"1.1.",null,null,null,null,null,null,null,null,null,null,null,null,null,null,null,null,null,null,null,null,null,null,null,null,null,null,"(wybierz z listy)",null,null,null,null,null,"x",null,null,null,null,null,null,"x"]
[null,null,null,null,null,null,null,null,null,null,null,null,null,null,null,null,null,null,null,null,null,null,null,null,null,null,null,null,null,null,null,null,null,null,null,null,null,null,null,"TAK"]
[null,null,null,null,null,null,null,null,null,null,null,null,null,null,null,null,null,null,null,null,null,null,null,null,null,null,null,null,null,null,null,null,null,null,null,null,null,null,null,"NIE"]
[]
[]
[null,null,"2.","Rodzaj podmiotu:",null,null,null,null,null,null,null,null,"(wybierz z listy)"]
[null,null,null,null,null,null,null,null,null,null,null,null,null,null,null,null,null,null,null,null,null,null,null,null,null,null,null,null,null,null,null,null,null,null,null,null,null,null,null,null,null,"(wybierz z listy)"]
[null,null,"3.","Dane identyfikacyjne:",null,null,null,null,null,null,null,null,null,null,null,null,null,null,null,null,null,null,null,null,null,null,null,null,null,null,null,null,null,null,null,null,null,null,null,null,null,"KOBIETA "]
[null,null,"3.1. Nazwisko/Nazwa: ",null,null,null,null,null,null,null,null,null,null,null,null,null,null,null,null,null,"3.2. Pierwsze imię",null,null,null,null,null,null,null,null,null,null,null,null,null,null,null,null,null,null,null,null,"MĘŻCZYZNA "]
[]
[null,null,null,null,null,null,null,null,null,null,null,null,null,null,null,null,null,null,null,null,"3.3. PESEL/data urodzenia"]
[]
[null,null,"3.4. NIP",null,null,null,null,null,null,null,null,null,null,"3.5. REGON",null,null,null,null,null,null,null,null,null,"3.6. Kod kraju**"]
[null,null,null,null,null,null,null,null,null,null,null,null,null,null,null,null,null,null,null,null,null,null," "]
[null,null,"3.7. NIP oddziału przedsiębiorcy zagranicznego",null,null,null,null,null,null,null,null,null,null,"3.8.Numer paszportu lub innego dokumentu tożsamości**"]
[]
[]
[null,null,"4. Adres  (zamieszkania osoby fizycznej lub siedziby w przypadku pozostałych podmiotów)"]
[null,null,"4.1. Kraj",null,null,null,null,null,null,"4.2. Województwo",null,null,null,null,null,null,null,"4.3. Powiat",null,null,null,null,null,null,null,null,"4.4. Gmina"]
[null,null,"POLSKA",null,null,null,null,null,null,"wybierz z listy"]
[null,null,"4.5. Kod pocztowy",null,null,null,null,"4.6. Poczta",null,null,null,null,null,null,null,null,null,"4.7. Miejscowość",null,null,null,null,null,null,null,null,null,"4.8. Ulica"]
[]
[null,null,"4.9. Nr domu",null,null,null,null,null,"4.10. Nr lokalu",null,null,null,null,"4.11. Telefon stacjonarny/ komórkowy*",null,null,null,null,null,null,null,null,null,null,"4.12. Faks*"]
[]
[null,null,"4.13. E-mail*"]
[]
[null,null,"5. Adres do korespondencji  (wypełnić, jeśli jest inny niż w pkt 4 lub ustanowiono pełnomocnika)"]
[null,null,"5.1. Kraj",null,null,null,null,null,null,"5.2. Województwo",null,null,null,null,null,null,null,"5.3. Powiat",null,null,null,null,null,null,null,null,"5.4. Gmina"]
[null,null,"POLSKA",null,null,null,null,null,null,"(wybierz z listy)"]
[null,null,"5.5. Kod pocztowy",null,null,null,null,"5.6. Poczta",null,null,null,null,null,null,null,null,null,"5.7. Miejscowość",null,null,null,null,null,null,null,null,null,"5.8. Ulica"]
[]
[null,null,"5.9. Nr domu",null,null,null,"5.10. Nr lokalu",null,null,null,"5.11. Telefon stacjonarny/ komórkowy*",null,null,null,null,null,null,null,null,null,"5.12. Faks*",null,null,null,null,null,null,null,"5.13. E-mail*"]
[]
[]
[null,null,"6. Dane osób upoważnionych do reprezentowania współposiadacza/ wspólnika spółki cywilnej (dotyczy podmiotu nie będącego osobą fizyczną)"]
[null,null,"Lp.","Nazwisko/Nazwa",null,null,null,null,null,null,null,null,null,null,null,null,"Pierwsze imię",null,null,null,null,null,null,null,null,null,null,"PESEL"]
[null,null,"6.1"]
[]
[null,null,"7. Dane pełnomocnika współposiadacza/ wspólnika spółki cywilnej/ współmałżonka"]
[null,null,"7.1. Nazwisko/Nazwa: ",null,null,null,null,null,null,null,null,null,null,null,null,null,null,null,null,null,"7.2. Pierwsze imię"]
[]
[]
[null,null,"*Dane nieobowiązkowe."]
[null,null,"**Dotyczy osób nieposiadających obywatelstwa polskiego oraz w przypadku podawania numeru NIP oddziału przedsiębiorcy zagranicznego."]
[]
[]
[null,null,null,null,null,null,null,null,null,null,null,null,null,null,null,null,null,"(data i czytelny podpis współposiadacza/ wspólnika spółki cywilnej/ współmałżonka/ pełnomocnika współposiadacza/ wspólnika spółki cywilnej/ współmałżonka/ osoby reprezentującej współposiadacza/ wspólnika spółki cywilnej)"]
[]
[null,"II. B INFORMACJE DOTYCZĄCE PRZETWARZANIA DANYCH OSOBOWYCH (dotyczy osób fizycznych)"]
[null,null,"W związku z treścią art. 13 Rozporządzenia Parlamentu Europejskiego i Rady (UE) 2016/679 z dnia 27 kwietnia 2016 r. w sprawie ochrony osób fizycznych w związku z przetwarzaniem danych osobowych i w sprawie swobodnego przepływu takich danych oraz uchylenia dyrektywy 95/46/WE (ogólne rozporządzenie o ochronie danych) (Dz. Urz. UE L 119 z 04.05.2016, str. 1  oraz Dz. Urz. UE L 127 z 23.05.2018, str. 2.), dalej: Rozporządzenie RODO, Agencja Restrukturyzacji i Modernizacji Rolnictwa informuje, że:"]
[null,null,"1)","administratorem Pani/Pana danych osobowych (dalej: Administrator)  jest Agencja Restrukturyzacji i Modernizacji Rolnictwa z siedzibą w Warszawie, Al. Jana Pawła II 70, 00-175 Warszawa;"]
[null,null,"2)","z Administratorem  może Pani/Pan kontaktować się poprzez adres e-mail: info@arimr.gov.pl lub pisemnie na adres korespondencyjny Centrali Agencji Restrukturyzacji i Modernizacji Rolnictwa, ul. Poleczki 33, 02-822 Warszawa;"]
[null,null,"3)","Administrator  wyznaczył inspektora ochrony danych, z którym może Pani/Pan kontaktować się w sprawach dotyczących przetwarzania danych osobowych oraz korzystania z praw związanych z przetwarzaniem danych, poprzez adres e-mail: iod@arimr.gov.pl lub pisemnie na adres korespondencyjny Administratora, wskazany w pkt 2; "]
[null,null,"4)","zebrane Pani/Pana dane osobowe będą przetwarzane przez Administratora na podstawie art. 6 ust. 1 lit. c Rozporządzenia RODO, gdy jest to niezbędne do wypełnienia obowiązku prawnego ciążącego na  Administratorze (dane obowiązkowe) lub art. 6 ust. 1 lit. a Rozporządzenia RODO, tj. na podstawie odrębnej zgody na przetwarzanie danych osobowych, która obejmuje zakres danych szerszy, niż to wynika z powszechnie obowiązującego prawa (dane nieobowiązkowe*);\n"]
[null,null,"5)","Pani/Pana dane osobowe zebrane na podstawie art. 6 ust. 1 lit. c Rozporządzenia RODO, będą przetwarzane przez Administratora w celu realizacji zadań wynikających z art. 1 pkt 1 w związku z art. 3 ust. 1 pkt. 4 lit. a oraz art. 6 ust. 2 Ustawy z dnia 20 lutego 2015 r. o wspieraniu rozwoju obszarów wiejskich z udziałem środków Europejskiego Funduszu Rolnego na rzecz Rozwoju Obszarów Wiejskich w ramach Programu Rozwoju Obszarów Wiejskich na lata 2014-2020 (Dz. U. z 2020 r. poz. 217 i 300) w związku Rozporządzeniem Ministra Rolnictwa i Rozwoju Wsi z dnia 21 sierpnia 2015 r. w sprawie szczegółowych warunków i trybu przyznawania oraz wypłaty pomocy finansowej na operacje typu „Modernizacja gospodarstw rolnych” w ramach poddziałania „Wsparcie inwestycji w gospodarstwach rolnych” objętego Programem Rozwoju Obszarów Wiejskich na lata 2014–2020 (Dz. U. poz. 1371, z późn. zm.),  tj.  przyznania pomocy na operację typu „Modernizacja gospodarstw rolnych\";\n"]
[null,null,"6)","Pani/Pana dane osobowe mogą być udostępniane podmiotom publicznym uprawnionym do przetwarzania danych osobowych na podstawie przepisów powszechnie obowiązującego prawa oraz podmiotom przetwarzającym dane osobowe na zlecenie Administratora w związku z wykonywaniem powierzonego im zadania w drodze zawartej umowy, m.in. dostawcom IT;\n"]
[null,null,"7)","Pani/Pana dane osobowe zebrane na podstawie art. 6 ust. 1 lit. c Rozporządzenie RODO będą przetwarzane przez okres realizacji zadań, o których mowa w pkt 5, związany z przyzanawaniem pomocy w ramach poddziałania  „Wsparcie inwestycji w gospodarstwach rolnych” objętego Programem Rozwoju Obszarów Wiejskich na lata 2014–2020 na operację typu „Modernizacja gospodarstw rolnych\", w tym:\na) w przypadku przyznania pomocy - przez okres realizacji zobowiązania do dnia upływu 5 lat od wypłaty pierwszej raty pomocy oraz przez okres 5 lat przewidziany na potrzeby archiwizacji, licząc od dnia 1 stycznia roku następującego po roku, w którym upłynie okres zobowiązań,\nb) w przypadku odmowy przyznania pomocy – przez okres jaki upłynie do uprawomocnienia decyzji o odmowie przyznania pomocy oraz przez okres 5 lat przewidziany na potrzeby archiwizacji, licząc od dnia 1 stycznia roku następującego po roku, w którym decyzja o odmowie przyznania pomocy stała się prawomocna.\nOkres przechowywania danych może zostać każdorazowo przedłużony o okres przedawnienia roszczeń, jeżeli przetwarzanie danych będzie niezbędne do dochodzenia roszczeń lub do obrony przed takimi roszczeniami przez administratora danych;"]
[null,null,"8)","Pani/Pana dane osobowe zebrane, na podstawie art. 6 ust. 1 lit. a Rozporządzenia RODO, tj. na podstawie odrębnej zgody na przetwarzanie danych osobowych (dane nieobowiązkowe) będą przetwarzane w okresach wskazanych w pkt 7, w tym przez okres realizacji celów, o których mowa w sekcji II.C lub II.D poniżej lub do czasu jej odwołania lub zmiany."]
[null,null,"9)","przysługuje Pani/Panu prawo dostępu do Pani/Pana danych, prawo żądania ich sprostowania, usunięcia lub ograniczenia ich przetwarzania, w przypadkach określonych w Rozporządzeniu RODO. Ponadto, w zakresie danych pozyskanych na podstawie art. 6 ust 1 lit a Rozporządzenia RODO, tj. na podstawie odrębnej zgody na przetwarzanie danych osobowych przysługuje Pani/Panu prawo do przenoszenia tych danych;"]
[null,null,"10)","w przypadku uznania, że przetwarzanie danych osobowych narusza przepisy Rozporządzenia RODO, przysługuje Pani/Panu prawo wniesienia skargi do Prezesa Urzędu Ochrony Danych Osobowych;"]
[null,null,"11)","podanie Pani/Pana danych osobowych na podstawie art. 6 ust. 1 lit. c Rozporządzenia RODO we wniosku o przyznanie pomocy na operacje typu „Modernizacja gospodarstw rolnych” w ramach poddziałania „Wsparcie inwestycji w gospodarstwach rolnych” objetego Programem Rozwoju Obszarów Wiejskich na lata 2014-2020 wynika z obowiązku zawartego w przepisach obowiązującego prawa, a konsekwencją niepodania tych danych osobowych będzie pozostawienie wniosku bez rozpatrzenia bądź odmowa przyznania pomocy po uprzednim dwukrotnym wezwaniu do uzupełnienia braków we wniosku.\n"]
[]
[null,"II.C.",null,"ZGODA PODMIOTU WSKAZANEGO W SEKCJI II.A.3 NA PRZETWARZANIE DANYCH OSOBOWYCH"]
[]
[null,null,null,null,"Wyrażam zgodę na przetwarzanie przez Agencję Restrukturyzacji i Modernizacji Rolnictwa z siedzibą w Warszawie, Al. Jana Pawła II nr 70, 00-175 Warszawa (adres do korespondencji: ul. Poleczki 33, 02-822 Warszawa), jako administratora danych, moich danych osobowych podanych w zakresie szerszym, niż jest to wymagane na podstawie przepisów powszechnie obowiązującego prawa, oznaczonych w części IIA formularza wniosku jako „dane nieobowiązkowe”, w celu ułatwienia i przyspieszenia kontaktu w sprawach dotyczących złożonego wniosku."]
[null,null,null,null,null,null,null,null,null,null,null,null,null,null,null,null,null,null,null,null,null,null,null,null,null,null,null,null,null,null,null,null,null,null,null,null,null,null,null,null,null,null,null,null,null,null,null,"X"]
[null,null,"Podanie danych oznaczonych jako nieobowiązkowe jest dobrowolne, a ich niepodanie nie wpływa na proces przyjęcia i rozpatrzenia wniosku. Niepodanie tych danych uniemożliwi jedynie realizację celów wskazanych w  treści powyższej zgody. Zgodę można wycofać w dowolnym momencie, poprzez przesłanie „oświadczenia o wycofaniu zgody” na adres korespondencyjny Administratora danych z dopiskiem „Ochrona danych osobowych” lub na adres poczty elektronicznej (info@arimr.gov.pl, iod@arimr.gov.pl). Wycofanie zgody nie wpływa na zgodność z prawem przetwarzania, którego dokonano na podstawie zgody przed jej wycofaniem.\n"]
[]
[null,null,null,"miejscowość i data",null,null,null,null,null,null,null,null,null,null,null,null,null,null,null,null,"(czytelny podpis osoby, której dane zawarte są w tej części  lub jej pełnomocnika, posiadającego stosowne pełnomocnictwo)"]
[]
[null,"II.D. ",null,"ZGODA PEŁNOMOCNIKA PODMIOTU WSKAZANEGO W SEKCJI II.A.3 NA PRZETWARZANIE DANYCH OSOBOWYCH"]
[]
[null,null,null,null,"Wyrażam zgodę na przetwarzanie przez Agencję Restrukturyzacji i Modernizacji Rolnictwa z siedzibą w Warszawie, Al. Jana Pawła II nr 70, 00-175 Warszawa (adres do korespondencji: ul. Poleczki 33, 02-822 Warszawa), jako administratora danych, moich danych osobowych podanych w zakresie szerszym, niż jest to wymagane na podstawie przepisów powszechnie obowiązującego prawa, oznaczonych w części IIA formularza wniosku jako „dane nieobowiązkowe”,  w celu ułatwienia i przyspieszenia kontaktu w sprawach dotyczących złożonego wniosku."]
[]
[null,null,"Podanie danych oznaczonych jako nieobowiązkowe jest dobrowolne, a ich niepodanie nie wpływa na proces przyjęcia i rozpatrzenia wniosku. Niepodanie tych danych uniemożliwi jedynie realizację celów wskazanych w  treści powyższej zgody. Zgodę można wycofać w dowolnym momencie, poprzez przesłanie „oświadczenia o wycofaniu zgody” na adres korespondencyjny Administratora danych z dopiskiem „Ochrona danych osobowych” lub na adres poczty elektronicznej (info@arimr.gov.pl, iod@arimr.gov.pl). Wycofanie zgody nie wpływa na zgodność z prawem przetwarzania, którego dokonano na podstawie zgody przed jej wycofaniem."]
[]
[null,null,null,"miejscowość i data",null,null,null,null,null,null,null,null,null,null,null,null,null,null,null,null,"(czytelny podpis pełnomocnika osoby, której dane zawarte są w tej części)"]

{"sheet":"III.Opis operacji","index":2,"n_rows":66,"n_cols":50,"rows_kept":66,"cut":false,"hidden":false,"merged":[[56,18,58,22],[56,23,57,36],[60,2,60,3],[60,4,60,17],[60,18,60,22],[72,2,74,28],[59,2,59,3],[59,4,59,17],[59,18,59,22],[59,23,59,29],[59,30,59,36],[69,2,70,28],[64,30,64,32],[64,34,64,36],[65,2,66,26],[65,29,65,36],[62,29,62,36],[60,23,60,29],[60,30,60,36],[48,2,48,36],[53,29,53,36],[47,2,47,36],[44,2,44,14],[34,2,34,27],[30,30,30,32],[30,34,30,36],[31,29,31,36],[45,7,45,16],[1,1,1,9],[1,10,1,36],[2,1,2,37],[3,2,3,12],[5,2,5,36],[10,1,11,1],[6,2,6,36],[8,2,8,36],[15,2,17,3],[15,4,17,17],[15,25,17,36],[16,18,16,23],[10,2,11,24],[27,1,29,1],[27,2,29,28],[27,30,27,32],[27,34,27,36],[28,29,28,36],[50,2,50,36],[58,30,58,36],[52,34,52,36],[22,47,22,81],[25,2,25,34],[26,2,26,21],[56,2,58,3],[46,2,46,6],[46,7,46,16],[46,17,46,26],[46,27,46,36],[45,2,45,6],[43,26,43,36],[45,27,45,36],[44,15,44,20],[44,21,44,25],[44,26,44,36],[56,4,58,17],[58,23,58,29],[45,17,45,26],[12,2,14,3],[12,4,14,17],[12,25,14,36],[13,18,13,23],[20,2,20,36],[24,19,24,25],[22,2,22,36],[36,30,36,32],[41,26,41,36],[23,2,23,36],[24,29,24,35],[18,2,19,3],[18,4,19,17],[18,25,19,36],[19,18,19,23],[65,1,66,1],[62,2,63,26],[30,1,32,1],[30,2,32,28],[42,26,42,36],[37,2,37,27],[37,29,37,36],[52,1,54,1],[52,2,54,27],[52,31,52,33],[33,1,34,1],[33,30,33,32],[33,34,33,36],[34,29,34,36],[43,2,43,14],[43,15,43,20],[43,21,43,25],[42,2,42,14],[42,15,42,25],[36,34,36,36],[62,1,63,1],[39,2,39,36],[41,2,41,14],[41,15,41,25]]}
[]
[null,"Podmiot (Imię i Nazwisko/Nazwa):",null,null,null,null,null,null,null,null,{"$f":"'I.i II Ogólne i  Ident.'!U34&'I.i II Ogólne i  Ident.'!W38&'I.i II Ogólne i  Ident.'!AD34&'I.i II Ogólne i  Ident.'!W38&'I.i II Ogólne i  Ident.'!C34","v":"  "}]
[]
[null,null,"III. OPIS PLANOWANEJ OPERACJI"]
[]
[null,"1.","Zgodność operacji z celami Programu Rozwoju Obszarów Wiejskich na lata 2014-2020, zwanego dalej Programem"]
[null,"1.1. ","Cel szczegółowy"]
[]
[null,null,"Poprawa wyników gospodarczych wszystkich gospodarstw oraz ułatwianie restrukturyzacji i modernizacji gospodarstw, szczególnie z myślą o zwiększeniu uczestnictwa w rynku i zorientowania na rynek, a także zróżnicowania produkcji rolnej (2A)"]
[]
[null,"1.2. ","Zgodność operacji z celami przekrojowymi Programu"]
[]
[null,null,"1.2.1. ",null,"Innowacyjność"]
[null,null,null,null,null,null,null,null,null,null,null,null,null,null,null,null,null,null,"(wybierz z listy)"]
[null,null,null,null,null,null,null,null,null,null,null,null,null,null,null,null,null,null,null,null,null,null,null,null,null,null,null,null,null,null,null,null,null,null,null,null,null,null,null,null,"TAK"]
[null,null,"1.2.2.",null,"Środowisko ",null,null,null,null,null,null,null,null,null,null,null,null,null,null,null,null,null,null,null,null,null,null,null,null,null,null,null,null,null,null,null,null,null,null,null,"NIE"]
[null,null,null,null,null,null,null,null,null,null,null,null,null,null,null,null,null,null,"(wybierz z listy)"]
[]
[null,null,"1.2.3.",null,"Klimat"]
[null,null,null,null,null,null,null,null,null,null,null,null,null,null,null,null,null,null,"(wybierz z listy)"]
[null,"1.3","Cel operacji"]
[]
[null,null,{"$f":"AX24","v":"Cel operacji wpisywany automatycznie po wybraniu obszaru wsparcia na stronie tytułowej."}]
[null,null,null,null,null,null,null,null,null,null,null,null,null,null,null,null,null,null,null,null,null,null,null,null,null,null,null,null,null,null,null,null,null,null,null,null,null,null,null,null,null,null,null,null,null,null,null,null,null,{"$f":"IF('I.i II Ogólne i  Ident.'!B7='I.i II Ogólne i  Ident.'!AS7,AX39,IF('I.i II Ogólne i  Ident.'!B7='I.i II Ogólne i  Ident.'!AS8,AX40,IF('I.i II Ogólne i  Ident.'!B7='I.i II Ogólne i  Ident.'!AS9,AX41,IF('I.i II Ogólne i  Ident.'!B7='I.i II Ogólne i  Ident.'!AS10,AX42,IF('I.i II Ogólne i  Ident.'!B7='I.i II Ogólne i  Ident.'!AS11,AX43,IF('I.i II Ogólne i  Ident.'!B7='I.i II Ogólne i  Ident.'!AS12,AX44,\" \"))))))","v":"Cel operacji wpisywany automatycznie po wybraniu obszaru wsparcia na stronie tytułowej."}]
[]
[]
[null,"2.","Dodatkowo operacja przyczyni się do:",null,null,null,null,null,null,null,null,null,null,null,null,null,null,null,null,null,null,null,null,null,null,null,null,null,null,null,null,null,null,null,null,null,null,null,null,null,null,null,null,null,null,null,null,null,null,{"$f":"IF('I.i II Ogólne i  Ident.'!B7=\"rozwój produkcji bydła mięsnego\",\"Zwiększenie rentowności i konkurencyjności gospodarstwa w obszarze rozwój produkcji bydła mięsnego.\",AX29)","v":" "}]
[null,"2.1.","poprawy efektywności korzystania z zasobów wodnych w gospodarstwie"]
[null,null,null,null,null,null,null,null,null,null,null,null,null,null,null,null,null,null,null,null,null,null,null,null,null,null,null,null,null,"(wybierz z listy)",null,null,null,null,null,null,null,null,null,null,null,null,null,null,null,null,"(wybierz z listy)",null,null,{"$f":"IF('I.i II Ogólne i  Ident.'!B7=\"nawadniania w gospodarstwie\",\"Zwiększenie rentowności i konkurencyjności gospodarstwa w obszarze nawadniania w gospodarstwie.\",AX35)","v":" "}]
[null,null,null,null,null,null,null,null,null,null,null,null,null,null,null,null,null,null,null,null,null,null,null,null,null,null,null,null,null,null,null,null,null,null,null,null,null,null,null,null,null,null,null,null,null,null,"TAK"]
[null,"2.2.","poprawy efektywności wykorzystania energii w gospodarstwie",null,null,null,null,null,null,null,null,null,null,null,null,null,null,null,null,null,null,null,null,null,null,null,null,null,null,null,null,null,null,null,null,null,null,null,null,null,null,null,null,null,null,null,"NIE"]
[null,null,null,null,null,null,null,null,null,null,null,null,null,null,null,null,null,null,null,null,null,null,null,null,null,null,null,null,null,"(wybierz z listy)"]
[]
[null,"2.3."]
[null,null,"zwiększenia wykorzystywania odnawialnych źródeł energii w gospodarstwie",null,null,null,null,null,null,null,null,null,null,null,null,null,null,null,null,null,null,null,null,null,null,null,null,null,null,"(wybierz z listy)",null,null,null,null,null,null,null,null,null,null,null,null,null,null,null,null,null,null,null,{"$f":"IF('I.i II Ogólne i  Ident.'!B7=\"związanym z racjonalizacją technologii produkcji, wprowadzeniem innowacji, zmianą profilu produkcji, zwiększeniem skali produkcji, poprawą jakości produkcji lub zwiększeniem wartości dodanej produktu\",AX38,\" \")","v":" "}]
[]
[]
[null,"2.4.","redukcji emisji gazów cieplarnianych i amoniaku z rolnictwa w gospodarstwie",null,null,null,null,null,null,null,null,null,null,null,null,null,null,null,null,null,null,null,null,null,null,null,null,null,null,"(wybierz z listy)",null,null,null,null,null,null,null,null,null,null,null,null,null,null,null,null,null,null,null,"Zwiększenie rentowności i konkurencyjności gospodarstwa w obszarze związanym z racjonalizacją technologii produkcji, wprowadzeniem innowacji, zmianą profilu produkcji, zwiększeniem skali produkcji, poprawą jakości produkcji lub zwiększeniem wartości dodanej produktu."]
[null,null,null,null,null,null,null,null,null,null,null,null,null,null,null,null,null,null,null,null,null,null,null,null,null,null,null,null,null,null,null,null,null,null,null,null,null,null,null,null,null,null,null,null,null,null,null,null,null,"Cel operacji wpisywany automatycznie po wybraniu obszaru wsparcia na stronie tytułowej."]
[null,"3.","Lokalizacja operacji (miejsce realizacji inwestycji)",null,null,null,null,null,null,null,null,null,null,null,null,null,null,null,null,null,null,null,null,null,null,null,null,null,null,null,null,null,null,null,null,null,null,null,null,null,null,null,null,null,null,null,null,null,null,"Zwiększenie rentowności i konkurencyjności gospodarstwa w obszarze rozwój produkcji prosiąt."]
[null,null,null,null,null,null,null,null,null,null,null,null,null,null,null,null,null,null,null,null,null,null,null,null,null,null,null,null,null,null,null,null,null,null,null,null,null,null,null,null,null,null,null,null,null,null,null,null,null,"Zwiększenie rentowności i konkurencyjności gospodarstwa w obszarze rozwój produkcji mleka krowiego."]
[null,null,"3.1.1. Województwo",null,null,null,null,null,null,null,null,null,null,null,null,"3.1.2. Powiat",null,null,null,null,null,null,null,null,null,null,"3.1.3. Gmina",null,null,null,null,null,null,null,null,null,null,null,null,null,null,null,null,null,null,null,"(wybierz z listy)",null,null,"Zwiększenie rentowności i konkurencyjności gospodarstwa w obszarze rozwój produkcji bydła mięsnego."]
[null,null,"wybierz z listy",null,null,null,null,null,null,null,null,null,null,null,null,null,null,null,null,null,null,null,null,null,null,null,null,null,null,null,null,null,null,null,null,null,null,null,null,null,null,null,null,null,null,null,"DOLNOŚLĄSKIE",null,null,"Zwiększenie rentowności i konkurencyjności gospodarstwa w obszarze związanym z racjonalizacją technologii produkcji, wprowadzeniem innowacji, zmianą profilu produkcji, zwiększeniem skali produkcji, poprawą jakości produkcji lub zwiększeniem wartości dodanej produktu."]
[null,null,"3.1.4. Ulica",null,null,null,null,null,null,null,null,null,null,null,null,"3.1.5. Nr domu",null,null,null,null,null,"3.1.6. Nr lokalu",null,null,null,null,"3.1.7. Miejscowość",null,null,null,null,null,null,null,null,null,null,null,null,null,null,null,null,null,null,null,"KUJAWSKO-POMORSKIE"]
[null,null,null,null,null,null,null,null,null,null,null,null,null,null,null,null,null,null,null,null,null,null,null,null,null,null,null,null,null,null,null,null,null,null,null,null,null,null,null,null,null,null,null,null,null,null,"LUBELSKIE"]
[null,null,"3.1.8. Kod pocztowy",null,null,null,null,"3.1.9. Poczta",null,null,null,null,null,null,null,null,null,"3.1.10. Nazwa i nr obrębu ewidencyjnego",null,null,null,null,null,null,null,null,null,"3.1.11. Nr działki ewidencyjnej",null,null,null,null,null,null,null,null,null,null,null,null,null,null,null,null,null,null,"LUBUSKIE"]
[null,null,null,null,null,null,null,null,null,null,null,null,null,null,null,null,null,null,null,null,null,null,null,null,null,null,null,null,null,null,null,null,null,null,null,null,null,null,null,null,null,null,null,null,null,null,"ŁÓDZKIE"]
[null,null,"Uwaga: Szczegółowe dane dotyczące działek ewidencyjnych wchodzących w skład nieruchomości, na której będzie realizowana operacja bezpośrednio związana z nieruchomością (tj. dotycząca budowy, przebudowy, remontu połączonego z modernizacją, nasadzenia, infrastruktury, zagospodarowania terenu oraz zakupu maszyn, urządzeń, sprzętu i wyposażenia związanego (wykorzystywanego)  z nieruchomością), należy umieścić w Biznesplanie  będącym załącznikiem do wniosku o przyznanie pomocy.",null,null,null,null,null,null,null,null,null,null,null,null,null,null,null,null,null,null,null,null,null,null,null,null,null,null,null,null,null,null,null,null,null,null,null,null,null,null,null,null,null,null,null,"MAŁOPOLSKIE"]
[null,"3.2.","Miejsce przechowywania/garażowania (inne niż wskazane w pkt. 3)",null,null,null,null,null,null,null,null,null,null,null,null,null,null,null,null,null,null,null,null,null,null,null,null,null,null,null,null,null,null,null,null,null,null,null,null,null,null,null,null,null,null,null,"MAZOWIECKIE"]
[null,null,null,null,null,null,null,null,null,null,null,null,null,null,null,null,null,null,null,null,null,null,null,null,null,null,null,null,null,null,null,null,null,null,null,null,null,null,null,null,null,null,null,null,null,null,"OPOLSKIE "]
[null,"3.2.1",null,null,null,null,null,null,null,null,null,null,null,null,null,null,null,null,null,null,null,null,null,null,null,null,null,null,null,null,null,null,null,null,null,null,null,null,null,null,null,null,null,null,null,null,"PODKARPACKIE"]
[null,null,null,null,null,null,null,null,null,null,null,null,null,null,null,null,null,null,null,null,null,null,null,null,null,null,null,null,null,null,null,null,null,null,null,null,null,null,null,null,null,null,null,null,null,null,"PODLASKIE"]
[null,"4.","OPERACJA DOTYCZY PRODUKCJI W DZIEDZINIE OBJĘTEJ LIMITOWANIEM PRODUKCJI",null,null,null,null,null,null,null,null,null,null,null,null,null,null,null,null,null,null,null,null,null,null,null,null,null,null,null,null,null,null,null,null,null,null,null,null,null,null,null,null,null,null,null,"POMORSKIE"]
[null,null,null,null,null,null,null,null,null,null,null,null,null,null,null,null,null,null,null,null,null,null,null,null,null,null,null,null,null,"(wybierz z listy)",null,null,null,null,null,null,null,null,null,null,null,null,null,null,null,null,"ŚLĄSKIE"]
[null,null,null,null,null,null,null,null,null,null,null,null,null,null,null,null,null,null,null,null,null,null,null,null,null,null,null,null,null,null,null,null,null,null,null,null,null,null,null,null,null,null,null,null,null,null,"ŚWIĘTOKRZYSKIE"]
[null,null,null,null,null,null,null,null,null,null,null,null,null,null,null,null,null,null,null,null,null,null,null,null,null,null,null,null,null,null,null,null,null,null,null,null,null,null,null,null,null,null,null,null,null,null,"WARMIŃSKO-MAZURSKIE"]
[null,null,"L.p.",null,"Wielkość limitów produkcji przyznanych podmiotowi ubiegającemu się o przyznanie pomocy",null,null,null,null,null,null,null,null,null,null,null,null,null,"Jednostka",null,null,null,null,"Wielkość",null,null,null,null,null,null,null,null,null,null,null,null,null,null,null,null,null,null,null,null,null,null,"WIELKOPOLSKIE"]
[null,null,null,null,null,null,null,null,null,null,null,null,null,null,null,null,null,null,null,null,null,null,null,null,null,null,null,null,null,null,null,null,null,null,null,null,null,null,null,null,null,null,null,null,null,null,"ZACHODNIOPOMORSKIE"]
[null,null,null,null,null,null,null,null,null,null,null,null,null,null,null,null,null,null,null,null,null,null,null,"Obecna",null,null,null,null,null,null,"Docelowa"]
[null,null,"1."]
[null,null,"2."]
[]
[null,"5.","Operacja dotyczy wsparcia gospodarstwa w zakresie chowu drobiu - produkcja ekologiczna",null,null,null,null,null,null,null,null,null,null,null,null,null,null,null,null,null,null,null,null,null,null,null,null,null,null,"(wybierz z listy)"]
[]
[]
[null,"6.","Operacja dotyczy wsparcia gospodarstwa w zakresie chowu drobiu - zmiana sposobu chowu z nieekologicznego na ekologiczny",null,null,null,null,null,null,null,null,null,null,null,null,null,null,null,null,null,null,null,null,null,null,null,null,null,null,"(wybierz z listy)"]

{"sheet":"I.A WUM","index":3,"n_rows":58,"n_cols":57,"rows_kept":58,"cut":false,"hidden":false,"merged":[[0,19,0,43],[0,1,0,18],[2,2,2,43],[8,34,8,35],[9,34,11,35],[7,22,8,27],[7,2,8,2],[7,13,7,15],[8,13,8,15],[9,30,11,31],[7,3,8,12],[9,3,11,12],[3,28,3,30],[3,32,3,34],[4,29,4,33],[8,28,8,29],[8,30,8,31],[4,3,4,25],[7,16,8,21],[9,42,11,43],[8,36,8,37],[7,28,7,41],[8,38,8,39],[10,23,10,26],[18,2,18,20],[18,21,18,26],[18,27,18,31],[18,32,18,37],[18,38,18,43],[6,3,6,36],[8,32,8,33],[9,32,11,33],[7,42,8,43],[8,40,8,41],[31,38,31,43],[32,38,32,43],[21,27,30,31],[21,32,21,37],[9,40,11,41],[9,28,11,29],[9,36,11,37],[9,38,11,39],[16,3,16,43],[21,38,21,43],[20,2,20,43],[21,25,21,26],[22,4,22,20],[22,21,22,24],[22,25,22,26],[22,32,22,37],[22,38,22,43],[21,2,30,3],[21,4,21,20],[23,4,23,20],[23,21,23,24],[23,25,23,26],[23,32,23,37],[9,16,11,21],[23,38,23,43],[24,4,24,20],[24,21,24,24],[24,25,24,26],[24,32,24,37],[24,38,24,43],[19,2,19,20],[19,21,19,26],[19,27,19,31],[19,32,19,37],[19,38,19,43],[21,21,21,24],[26,4,26,20],[26,21,26,24],[26,25,26,26],[26,32,26,37],[26,38,26,43],[25,4,25,20],[25,21,25,24],[25,25,25,26],[25,32,25,37],[25,38,25,43],[28,4,28,20],[28,21,28,24],[28,25,28,26],[28,32,28,37],[28,38,28,43],[27,4,27,20],[27,21,27,24],[27,25,27,26],[27,32,27,37],[27,38,27,43],[30,4,30,20],[30,21,30,24],[30,25,30,26],[30,32,30,37],[30,38,30,43],[29,4,29,20],[29,21,29,24],[29,25,29,26],[29,32,29,37],[29,38,29,43],[32,2,32,20],[32,21,32,24],[32,25,32,26],[32,27,32,31],[32,32,32,37],[31,2,31,20],[31,21,31,24],[31,25,31,26],[31,27,31,31],[31,32,31,37],[35,2,35,31],[35,32,35,37],[34,2,34,31],[34,32,34,37],[35,38,35,43],[38,36,43,43],[41,2,42,35],[33,2,33,15],[33,21,33,26],[33,27,33,31],[33,32,33,37],[33,38,33,43],[34,38,34,43],[57,2,57,35],[57,36,57,43],[54,2,54,35],[54,36,54,43],[55,2,55,35],[55,36,55,43],[56,2,56,35],[56,36,56,43],[45,36,48,43],[46,2,47,35],[50,2,52,35],[50,36,52,43],[53,2,53,35],[53,36,53,43]]}
[null,"Podmiot (Imię i Nazwisko/Nazwa):",null,null,null,null,null,null,null,null,null,null,null,null,null,null,null,null,null,{"$f":"'I.i II Ogólne i  Ident.'!U34&'I.i II Ogólne i  Ident.'!W38&'I.i II Ogólne i  Ident.'!AD34&'I.i II Ogólne i  Ident.'!W38&'I.i II Ogólne i  Ident.'!C34","v":"  "},null,null,null,null,null,null,null,null,null,null,null,null,null,null,null,null,null,null,null,null,null,null,null,null,null,null,null,null,null,"(wybierz z listy)"]
[null,null,null,null,null,null,null,null,null,null,null,null,null,null,null,null,null,null,null,null,null,null,null,null,null,null,null,null,null,null,null,null,null,null,null,null,null,null,null,null,null,null,null,null,null,null,null,null,null,"TAK"]
[null,null,"I.A INFORMACJE PODAWANE W PRZYPADKU WNIOSKU O PRZYZNANIE POMOCY SKŁADANEGO PRZEZ OSOBY WSPÓLNIE WNIOSKUJĄCE - (wypełnia tylko osoba wiodąca) ",null,null,null,null,null,null,null,null,null,null,null,null,null,null,null,null,null,null,null,null,null,null,null,null,null,null,null,null,null,null,null,null,null,null,null,null,null,null,null,null,null,null,null,null,null,null,"NIE"]
[]
[null," ","1. ","Liczba osób wspólnie wnioskujących:",null,null,null,null,null,null,null,null,null,null,null,null,null,null,null,null,null,null,null,null,null,null,null,null,null,null,null,null,null,null,null,null,null,null,null,null,null,null,null,null,null,null,null,null,null,null,null,null,null,null,"X"]
[]
[null,null,"2.","W skład grupy osób wspólnie wnioskujących wchodzą:"]
[null,null,"Lp","Dane osób wspólnie wnioskujących",null,null,null,null,null,null,null,null,null,"Osoba wiodąca",null,null,"Numer identyfikacyjny producenta",null,null,null,null,null,"Wielkość ekonomiczna gospodarstwa pow. 13000 EURO",null,null,null,null,null,"zakres prac w odniesieniu do każdego przedmiotu operacji (w %)",null,null,null,null,null,null,null,null,null,null,null,null,null,"średnia arytme-tyczna"]
[null,null,null,null,null,null,null,null,null,null,null,null,null,"TAK",null,null,null,null,null,null,null,null,null,null,null,null,null,null,1,null,2,null,3,null,4,null,5,null,6,null,7]
[null,null,null,null,null,null,null,null,null,null,null,null,null,null,null,null,null,null,null,null,null,null,null,null,null,null,null,null,null,null,null,null,null,null,null,null,null,null,null,null,null,null,{"$f":"IF(SUM(AC10:AP12)=0,0,SUM(AC10:AP12)/COUNTIF(AC10:AP12,\">0\"))","v":0}]
[null,null,1,null,null,null,null,null,null,null,null,null,null,null,null,null,null,null,null,null,null,null,null,"(wybierz z listy)",null,null,null,null,null,null,null,null,null,null,null,null,null,null,null,null,null,null,null,null,null,null,null,null,null,null,null,null,null,null,null,null,"x"]
[]
[]
[]
[]
[]
[null,null,"3.","PLANOWANE KOSZTY REALIZACJI OPERACJI -  łącznie dla osób wspólnie wnioskujących"]
[]
[null,null,"Rodzaje kosztów",null,null,null,null,null,null,null,null,null,null,null,null,null,null,null,null,null,null,"Ilość ",null,null,null,null,null,"Powie-rzchnia/\nObjętość",null,null,null,null,"Całkowity koszt operacji\n(w zł z VAT)",null,null,null,null,null,"Koszty kwalifikowalne operacji\n(w zł bez VAT)"]
[null,null,1,null,null,null,null,null,null,null,null,null,null,null,null,null,null,null,null,null,null,2,null,null,null,null,null,3,null,null,null,null,4,null,null,null,null,null,5]
[null,null,"Planowane do zakupienia sprzęty ruchome"]
[null,null,"w tym:",null,"ciągniki rolnicze",null,null,null,null,null,null,null,null,null,null,null,null,null,null,null,null,null,null,null,null,"szt"]
[null,null,null,null,"ładowarki samobieżne",null,null,null,null,null,null,null,null,null,null,null,null,null,null,null,null,null,null,null,null,"szt"]
[null,null,null,null,"kombajny zbożowe",null,null,null,null,null,null,null,null,null,null,null,null,null,null,null,null,null,null,null,null,"szt"]
[null,null,null,null,"maszyny do zbioru (z wyłączeniem kombajnów zbożowych) ",null,null,null,null,null,null,null,null,null,null,null,null,null,null,null,null,null,null,null,null,"szt"]
[null,null,null,null,"przyczepy transportowe",null,null,null,null,null,null,null,null,null,null,null,null,null,null,null,null,null,null,null,null,"szt"]
[null,null,null,null,"narzędzia i maszyny do uprawy gleby",null,null,null,null,null,null,null,null,null,null,null,null,null,null,null,null,null,null,null,null,"szt"]
[null,null,null,null,"maszyny do nawożenia",null,null,null,null,null,null,null,null,null,null,null,null,null,null,null,null,null,null,null,null,"szt"]
[null,null,null,null,"maszyny i urządzenia do siewu i sadzenia",null,null,null,null,null,null,null,null,null,null,null,null,null,null,null,null,null,null,null,null,"szt"]
[null,null,null,null,"pozostałe maszyny i urządzenia",null,null,null,null,null,null,null,null,null,null,null,null,null,null,null,null,null,null,null,null,"szt"]
[null,null,null,null,"elementy wyposażenia, elementy maszyn, narzędzi, wyposażenie dodatkowe",null,null,null,null,null,null,null,null,null,null,null,null,null,null,null,null,null,null,null,null,"szt"]
[null,null,"Planowany do zakupu sprzęt komputerowy",null,null,null,null,null,null,null,null,null,null,null,null,null,null,null,null,null,null,null,null,null,null,"szt"]
[null,null,"Pozostałe inwestycje",null,null,null,null,null,null,null,null,null,null,null,null,null,null,null,null,null,null,null,null,null,null,"szt"]
[null,null,"Koszty ogólne"]
[null,null,"Koszty niekwalifikowalne"]
[null,null,"Suma kosztów",null,null,null,null,null,null,null,null,null,null,null,null,null,null,null,null,null,null,null,null,null,null,null,null,null,null,null,null,null,{"$f":"SUM(AG22:AL35)","v":0},null,null,null,null,null,{"$f":"SUM(AM22:AR35)","v":0}]
[]
[]
[]
[]
[]
[null,null,"4. Limit pomocy dla osób wspólnie wnioskujących (w zł):"]
[]
[]
[]
[]
[null,null,"5.  Kwota do wykorzystania przez osoby wspólnie wnioskujące (w zł):"]
[]
[]
[]
[null,null,"6. WNIOSKOWANA KWOTA POMOCY ŁĄCZNIE przez osoby wspólnie wnioskujące\n(suma pkt 6.1. - 6.5.) w tym:"]
[]
[]
[null,null,"6.1. Wnioskowana kwota pomocy łącznie dla I etapu operacji"]
[null,null,"6.2. Wnioskowana kwota pomocy łącznie dla II etapu operacji"]
[null,null,"6.3. Wnioskowana kwota pomocy łącznie dla III etapu operacji"]
[null,null,"6.4. Wnioskowana kwota pomocy łącznie dla IV etapu operacji"]
[null,null,"6.5. Wnioskowana kwota pomocy łącznie dla V etapu operacji"]

{"sheet":"III A. Kryteria prosięta","index":4,"n_rows":31,"n_cols":54,"rows_kept":31,"cut":false,"hidden":false,"merged":[[11,2,12,27],[13,29,13,36],[19,29,19,36],[16,2,16,20],[8,1,10,1],[8,2,10,27],[11,1,12,1],[9,29,9,36],[12,29,12,36],[13,21,13,28],[14,2,14,27],[15,29,15,36],[15,21,15,28],[14,29,14,36],[30,2,30,34],[27,1,29,1],[27,2,29,28],[28,29,28,36],[16,29,16,36],[17,31,17,33],[18,1,21,1],[16,21,16,27],[23,29,23,36],[18,2,21,28],[22,1,25,1],[22,2,25,28],[3,1,3,37],[1,1,1,9],[1,10,1,36],[4,2,5,36],[7,2,7,19],[7,20,7,27],[7,29,7,36]]}
[]
[null,"Podmiot (Imię i Nazwisko/Nazwa):",null,null,null,null,null,null,null,null,{"$f":"'I.i II Ogólne i  Ident.'!U34&'I.i II Ogólne i  Ident.'!W38&'I.i II Ogólne i  Ident.'!AD34&'I.i II Ogólne i  Ident.'!W38&'I.i II Ogólne i  Ident.'!C34","v":"  "}]
[]
[]
[null,"III.A.","DANE NA POTRZEBY USTALENIA M.IN. KRYTERIÓW W OBSZARZE ROZWÓJ PRODUKCJI PROSIĄT"]
[]
[]
[]
[null,"1.","W wyniku realizacji operacji wzrost średniej rocznej liczby loch w stadzie wyniesie (w szt.) "]
[null,null,null,null,null,null,null,null,null,null,null,null,null,null,null,null,null,null,null,null,null,null,null,null,null,null,null,null,null,null,null,null,null,null,null,null,null,null,null,null,null,null,null,null,null,null,null,null,null,null,null,null,null,"(wybierz z listy)"]
[null,null,null,null,null,null,null,null,null,null,null,null,null,null,null,null,null,null,null,null,null,null,null,null,null,null,null,null,null,null,null,null,null,null,null,null,null,null,null,null,null,null,null,null,null,null,null,null,null,null,null,null,null,"TAK"]
[null,"2.","W wyniku realizacji operacji średnia roczna liczba loch w stadzie będzie wynosiła (w szt.) 3",null,null,null,null,null,null,null,null,null,null,null,null,null,null,null,null,null,null,null,null,null,null,null,null,null,null,null,null,null,null,null,null,null,null,null,null,null,null,null,null,null,null,null,null,null,null,null,null,null,null,"NIE"]
[]
[]
[null,"3.","Liczba utrzymywanych loch w okresie bazowym (w szt.) 3"]
[]
[null,"4.","Liczba prosiąt w okresie bazowym (w szt.) 3"]
[null,null,null,null,null,null,null,null,null,null,null,null,null,null,null,null,null,null,null,null,null,null,null,null,null,null,null,null,null,null,null,null,null,null,"NIE"]
[null,"5.","W dniu złożenia wniosku o przyznanie pomocy podmiot ubiegający się o przyznanie pomocy posiada certyfikat lub świadectwo potwierdzające, że uczestniczy w unijnym systemie jakości, o którym mowa w art. 16 ust. 1 lit. a ppkt i, iii–v rozporządzenia nr 1305/2013, lub w krajowym systemie jakości, o którym mowa w art. 16 ust. 1 lit. b rozporządzenia nr 1305/2013, w ramach działania „Systemy jakości produktów rolnych i środków spożywczych” objętego programem, a operacja dotyczy produkcji objętej tym systemem.\n\n\n\n\n\n"]
[null,null,null,null,null,null,null,null,null,null,null,null,null,null,null,null,null,null,null,null,null,null,null,null,null,null,null,null,null,"(wybierz z listy)"]
[]
[]
[null,"6.","W dniu złożenia wniosku o przyznanie pomocy podmiot ubiegający się o przyznanie pomocy posiada certyfikat potwierdzający uczestnictwo w unijnym systemie jakości, o którym mowa w art. 16 ust. 1 lit. a ppkt ii rozporządzenia nr 1305/2013, a operacja dotyczy produkcji objętej tym systemem i suma powierzchni gruntów ornych, sadów, łąk trwałych i pastwisk trwałych w gospodarstwie objętych tym systemem stanowi co najmniej 50% sumy powierzchni gruntów ornych, sadów, łąk trwałych i pastwisk trwałych w tym gospodarstwie.\n"]
[null,null,null,null,null,null,null,null,null,null,null,null,null,null,null,null,null,null,null,null,null,null,null,null,null,null,null,null,null,"(wybierz z listy)"]
[]
[]
[]
[null,"7.","Operacja uwzględnia inwestycje służące ochronie środowiska lub zapobieganiu zmianie klimatu."]
[null,null,null,null,null,null,null,null,null,null,null,null,null,null,null,null,null,null,null,null,null,null,null,null,null,null,null,null,null,"(wybierz z listy)"]
[]
[null,null,"3 Należy wypełnić w oparciu o dane określone w Biznesplanie."]

{"sheet":"III B. Kryteria mleko","index":5,"n_rows":35,"n_cols":54,"rows_kept":35,"cut":false,"hidden":false,"merged":[[0,2,0,35],[7,2,7,19],[7,20,7,27],[7,29,7,36],[1,10,1,36],[1,1,1,9],[22,29,22,36],[20,31,20,33],[17,2,18,28],[16,21,16,28],[16,29,16,36],[17,29,17,36],[8,2,10,27],[9,29,9,36],[15,21,15,28],[15,29,15,36],[12,2,14,27],[13,29,13,36],[14,29,14,36],[35,2,35,34],[34,2,34,34],[3,2,5,36],[29,31,29,33],[30,1,32,1],[25,1,28,1],[25,2,28,28],[21,2,24,28],[21,1,23,1],[30,2,32,28],[31,29,31,36],[8,1,9,1],[12,1,14,1],[26,29,26,36],[19,2,19,27],[19,29,19,36]]}
[]
[null,"Podmiot (Imię i Nazwisko/Nazwa):",null,null,null,null,null,null,null,null,{"$f":"'I.i II Ogólne i  Ident.'!U34&'I.i II Ogólne i  Ident.'!W38&'I.i II Ogólne i  Ident.'!AD34&'I.i II Ogólne i  Ident.'!W38&'I.i II Ogólne i  Ident.'!C34","v":"  "}]
[]
[null,"III.B. ","DANE NA POTRZEBY USTALENIA M. IN. KRYTERIÓW W OBSZARZE ROZWÓJ PRODUKCJI MLEKA KROWIEGO"]
[]
[]
[]
[]
[null,"1.","W wyniku realizacji operacji wzrost średniej rocznej liczby krów mlecznych w stadzie wyniesie (w szt.) ",null,null,null,null,null,null,null,null,null,null,null,null,null,null,null,null,null,null,null,null,null,null,null,null,null,null,null,null,null,null,null,null,null,null,null,null,null,null,null,null,null,null,null,null,null,null,null,null,null,null,"(wybierz z listy)"]
[null,null,null,null,null,null,null,null,null,null,null,null,null,null,null,null,null,null,null,null,null,null,null,null,null,null,null,null,null,null,null,null,null,null,null,null,null,null,null,null,null,null,null,null,null,null,null,null,null,null,null,null,null,"TAK"]
[null,null,null,null,null,null,null,null,null,null,null,null,null,null,null,null,null,null,null,null,null,null,null,null,null,null,null,null,null,null,null,null,null,null,null,null,null,null,null,null,null,null,null,null,null,null,null,null,null,null,null,null,null,"NIE"]
[]
[null,"2.","W wyniku realizacji operacji średnia roczna liczba krów mlecznych w stadzie będzie wynosiła (w szt.) 3"]
[]
[]
[]
[]
[null,"3.","Liczba utrzymywanych w okresie bazowym krów mlecznych lub krów, które przekroczą wiek 24 miesięcy najpóźniej w dniu 15 maja roku w którym został złożony wniosek o przyznanie pomocy  (w szt.) 3"]
[]
[null,"4.","Wielkość produkcji mleka w okresie bazowym (w l) 3"]
[null,null,null,null,null,null,null,null,null,null,null,null,null,null,null,null,null,null,null,null,null,null,null,null,null,null,null,null,null,null,null,null,null,null,"NIE"]
[null,"5.","W dniu złożenia wniosku o przyznanie pomocy podmiot ubiegający się o przyznanie pomocy posiada certyfikat lub świadectwo potwierdzające, że uczestniczy w unijnym systemie jakości, o którym mowa w art. 16 ust. 1 lit. a ppkt i, iii–v rozporządzenia nr 1305/2013, lub w krajowym systemie jakości, o którym mowa w art. 16 ust. 1 lit. b rozporządzenia nr 1305/2013, w ramach działania „Systemy jakości produktów rolnych i środków spożywczych” objętego programem, a operacja dotyczy produkcji objętej tym systemem\n\n\n\n\n\n"]
[null,null,null,null,null,null,null,null,null,null,null,null,null,null,null,null,null,null,null,null,null,null,null,null,null,null,null,null,null,"(wybierz z listy)"]
[]
[]
[null,"6.","W dniu złożenia wniosku o przyznanie pomocy podmiot ubiegający się o przyznanie pomocy posiada certyfikat potwierdzający uczestnictwo w unijnym systemie jakości, o którym mowa w art. 16 ust. 1 lit. a ppkt ii rozporządzenia nr 1305/2013, a operacja dotyczy produkcji objętej tym systemem i suma powierzchni gruntów ornych, sadów, łąk trwałych i pastwisk trwałych w gospodarstwie objętych tym systemem stanowi co najmniej 50% sumy powierzchni gruntów ornych, sadów, łąk trwałych i pastwisk trwałych w tym gospodarstwie\n"]
[null,null,null,null,null,null,null,null,null,null,null,null,null,null,null,null,null,null,null,null,null,null,null,null,null,null,null,null,null,"(wybierz z listy)"]
[]
[]
[]
[null,"7.","Operacja uwzględnia inwestycje służące ochronie środowiska lub zapobieganiu zmianie klimatu"]
[null,null,null,null,null,null,null,null,null,null,null,null,null,null,null,null,null,null,null,null,null,null,null,null,null,null,null,null,null,"(wybierz z listy)"]
[]
[]
[null,null,"3Należy wypełnić w oparciu o dane określone w Biznesplanie"]

{"sheet":"III C. Kryteria opasy","index":6,"n_rows":34,"n_cols":41,"rows_kept":34,"cut":false,"hidden":false,"merged":[[33,2,33,34],[26,1,29,1],[26,2,29,28],[27,29,27,36],[30,31,30,33],[31,1,32,1],[31,2,32,28],[32,29,32,36],[22,29,22,36],[19,29,19,36],[7,2,7,19],[1,1,1,9],[1,10,1,36],[3,1,3,37],[4,2,5,36],[7,20,7,27],[7,29,7,36],[8,1,9,1],[8,2,10,27],[9,29,9,36],[21,1,24,1],[21,2,24,28],[12,2,14,27],[17,31,17,33],[13,29,13,36],[14,29,14,36],[19,2,19,27],[12,1,14,1],[15,21,15,28],[16,2,16,27],[18,29,18,36],[16,29,16,36],[15,29,15,36],[18,21,18,28]]}
[]
[null,"Podmiot (Imię i Nazwisko/Nazwa):",null,null,null,null,null,null,null,null,{"$f":"'I.i II Ogólne i  Ident.'!U34&'I.i II Ogólne i  Ident.'!W38&'I.i II Ogólne i  Ident.'!AD34&'I.i II Ogólne i  Ident.'!W38&'I.i II Ogólne i  Ident.'!C34","v":"  "}]
[]
[]
[null,"III.C. ","DANE NA POTRZEBY USTALENIA M. IN. KRYTERIÓW W OBSZARZE ROZWÓJ PRODUKCJI BYDŁA MIĘSNEGO"]
[]
[]
[]
[null,"1.","W wyniku realizacji operacji wzrost średniej rocznej liczby krów nieprzeznaczonych do produkcji mleka w stadzie wyniesie (w szt.)"]
[null,null,null,null,null,null,null,null,null,null,null,null,null,null,null,null,null,null,null,null,null,null,null,null,null,null,null,null,null,null,null,null,null,null,null,null,null,null,null,null,"(wybierz z listy)"]
[null,null,null,null,null,null,null,null,null,null,null,null,null,null,null,null,null,null,null,null,null,null,null,null,null,null,null,null,null,null,null,null,null,null,null,null,null,null,null,null,"TAK"]
[null,null,null,null,null,null,null,null,null,null,null,null,null,null,null,null,null,null,null,null,null,null,null,null,null,null,null,null,null,null,null,null,null,null,null,null,null,null,null,null,"NIE"]
[null,"2.","W wyniku realizacji operacji średnia roczna liczba krów nieprzeznaczonych do produkcji mleka w stadzie będzie wynosiła (w szt.) 3"]
[]
[]
[]
[null,"3.","Ilość wyprodukowanego żywca w okresie bazowym (w szt.) 3"]
[]
[]
[null,"4.","Ilość sprzedanego żywca w okresie bazowym (w szt.) 3"]
[]
[null,"5.","W dniu złożenia wniosku o przyznanie pomocy podmiot ubiegający się o przyznanie pomocy posiada certyfikat lub świadectwo potwierdzające, że uczestniczy w unijnym systemie jakości, o którym mowa w art. 16 ust. 1 lit. a ppkt i, iii–v rozporządzenia nr 1305/2013, lub w krajowym systemie jakości, o którym mowa w art. 16 ust. 1 lit. b rozporządzenia nr 1305/2013, w ramach działania „Systemy jakości produktów rolnych i środków spożywczych” objętego programem, a operacja dotyczy produkcji objętej tym systemem\n\n\n\n\n\n"]
[null,null,null,null,null,null,null,null,null,null,null,null,null,null,null,null,null,null,null,null,null,null,null,null,null,null,null,null,null,"(wybierz z listy)"]
[]
[]
[]
[null,"6.","W dniu złożenia wniosku o przyznanie pomocy podmiot ubiegający się o przyznanie pomocy posiada certyfikat potwierdzający uczestnictwo w unijnym systemie jakości, o którym mowa w art. 16 ust. 1 lit. a ppkt ii rozporządzenia nr 1305/2013, a operacja dotyczy produkcji objętej tym systemem i suma powierzchni gruntów ornych, sadów, łąk trwałych i pastwisk trwałych w gospodarstwie objętych tym systemem stanowi co najmniej 50% sumy powierzchni gruntów ornych, sadów, łąk trwałych i pastwisk trwałych w tym gospodarstwie\n"]
[null,null,null,null,null,null,null,null,null,null,null,null,null,null,null,null,null,null,null,null,null,null,null,null,null,null,null,null,null,"(wybierz z listy)"]
[]
[]
[]
[null,"7.","Operacja uwzględnia inwestycje służące ochronie środowiska lub zapobieganiu zmianie klimatu"]
[null,null,null,null,null,null,null,null,null,null,null,null,null,null,null,null,null,null,null,null,null,null,null,null,null,null,null,null,null,"(wybierz z listy)"]
[null,null,"3 Należy wypełnić w oparciu o dane określone w Biznesplanie"]

{"sheet":"III D. Kryteria rent i konkuren","index":7,"n_rows":38,"n_cols":54,"rows_kept":38,"cut":false,"hidden":false,"merged":[[26,1,29,1],[26,2,29,30],[27,31,27,36],[14,1,15,1],[33,1,35,1],[33,2,35,30],[34,31,34,36],[30,1,32,1],[30,2,32,30],[31,31,31,36],[22,1,24,1],[0,2,0,34],[9,29,9,36],[3,1,3,37],[4,2,7,36],[1,1,1,9],[9,2,9,19],[9,20,9,27],[1,10,1,36],[12,31,12,36],[11,2,13,30],[22,2,24,26],[18,1,20,1],[11,1,12,1],[15,31,15,36],[37,2,37,35],[18,2,20,29],[19,31,19,36],[14,2,16,30],[23,31,23,36]]}
[]
[null,"Podmiot (Imię i Nazwisko/Nazwa):",null,null,null,null,null,null,null,null,{"$f":"'I.i II Ogólne i  Ident.'!U34&'I.i II Ogólne i  Ident.'!W38&'I.i II Ogólne i  Ident.'!AD34&'I.i II Ogólne i  Ident.'!W38&'I.i II Ogólne i  Ident.'!C34","v":"  "}]
[]
[]
[null,"III.D. ","DANE NA POTRZEBY USTALENIA KRYTERIÓW W OBSZARZE  ZWIĄZANYM Z RACJONALIZACJĄ TECHNOLOGII PRODUKCJI, WPROWADZENIEM INNOWACJI, ZMIANĄ PROFILU PRODUKCJI, ZWIĘKSZENIEM SKALI PRODUKCJI, POPRAWĄ JAKOŚCI PRODUKCJI LUB ZWIĘKSZENIEM WARTOŚCI DODANEJ PRODUKTU"]
[]
[]
[]
[]
[null,null,null,null,null,null,null,null,null,null,null,null,null,null,null,null,null,null,null,null,null,null,null,null,null,null,null,null,null,null,null,null,null,null,null,null,null,null,null,null,null,null,null,null,null,null,null,null,null,null,null,null,null,"(wybierz z listy)"]
[null,null,null,null,null,null,null,null,null,null,null,null,null,null,null,null,null,null,null,null,null,null,null,null,null,null,null,null,null,null,null,null,null,null,null,null,null,null,null,null,null,null,null,null,null,null,null,null,null,null,null,null,null,"TAK"]
[null,"1.","Operacja obejmuje wyłącznie koszty budowy lub modernizacji budynków inwentarskich, w tym ich wyposażenia, lub magazynu paszowego, w tym jego wyposażenia",null,null,null,null,null,null,null,null,null,null,null,null,null,null,null,null,null,null,null,null,null,null,null,null,null,null,null,null,null,null,null,null,null,null,null,null,null,null,null,null,null,null,null,null,null,null,null,null,null,null,"NIE"]
[null,null,null,null,null,null,null,null,null,null,null,null,null,null,null,null,null,null,null,null,null,null,null,null,null,null,null,null,null,null,null,"(wybierz z listy)"]
[]
[null,"2.","Operacja obejmuje  inwestycje, gdzie koszty budowy lub modernizacji budynków inwentarskich, w tym ich wyposażenia, lub magazynu paszowego, w tym jego wyposażenia, stanowią co najmniej 50% wszystkich kosztów operacji"]
[null,null,null,null,null,null,null,null,null,null,null,null,null,null,null,null,null,null,null,null,null,null,null,null,null,null,null,null,null,null,null,"(wybierz z listy)"]
[]
[]
[null,"3.","Operacja związana jest ze zwiększeniem skali produkcji rolnej, której realizacja wpłynie również na zwiększenie uczestnictwa w rynku 3"]
[null,null,null,null,null,null,null,null,null,null,null,null,null,null,null,null,null,null,null,null,null,null,null,null,null,null,null,null,null,null,null,"(wybierz z listy)"]
[]
[]
[null,"4.","Operacja związana jest ze zmianą profilu produkcji rolnej, której realizacja wpłynie również na zróżnicowanie produkcji rolnej w gospodarstwie 3"]
[null,null,null,null,null,null,null,null,null,null,null,null,null,null,null,null,null,null,null,null,null,null,null,null,null,null,null,null,null,null,null,"(wybierz z listy)"]
[]
[]
[null,"5.","W dniu złożenia wniosku o przyznanie pomocy podmiot ubiegający się o przyznanie pomocy posiada certyfikat lub świadectwo potwierdzające, że uczestniczy w unijnym systemie jakości, o którym mowa w art. 16 ust. 1 lit. a ppkt i, iii–v rozporządzenia nr 1305/2013, lub w krajowym systemie jakości, o którym mowa w art. 16 ust. 1 lit. b rozporządzenia nr 1305/2013, w ramach działania „Systemy jakości produktów rolnych i środków spożywczych” objętego programem, a operacja dotyczy produkcji objętej tym systemem"]
[null,null,null,null,null,null,null,null,null,null,null,null,null,null,null,null,null,null,null,null,null,null,null,null,null,null,null,null,null,null,null,"(wybierz z listy)"]
[]
[]
[null,"6.","W dniu złożenia wniosku o przyznanie pomocy podmiot ubiegający się o przyznanie pomocy posiada certyfikat potwierdzający uczestnictwo w unijnym systemie jakości, o którym mowa w art. 16 ust. 1 lit. a ppkt ii rozporządzenia nr 1305/2013, a operacja dotyczy produkcji objętej tym systemem i suma powierzchni gruntów ornych, sadów, łąk trwałych i pastwisk trwałych w gospodarstwie objętych tym systemem stanowi co najmniej 50% sumy powierzchni gruntów ornych, sadów, łąk trwałych i pastwisk trwałych w tym gospodarstwie"]
[null,null,null,null,null,null,null,null,null,null,null,null,null,null,null,null,null,null,null,null,null,null,null,null,null,null,null,null,null,null,null,"(wybierz z listy)"]
[]
[null,"7.","Operacja uwzględnia inwestycje służące ochronie środowiska lub zapobieganiu zmianie klimatu"]
[null,null,null,null,null,null,null,null,null,null,null,null,null,null,null,null,null,null,null,null,null,null,null,null,null,null,null,null,null,null,null,"(wybierz z listy)"]
[]
[]
[null,null,"3 Należy wypełnić w oparciu o dane określone w Biznesplanie."]

{"sheet":"IV.zestawienie RF","index":8,"n_rows":32,"n_cols":16,"rows_kept":32,"cut":false,"hidden":false,"merged":[[20,19,29,19],[3,3,3,5],[4,3,5,3],[4,5,5,5],[4,8,5,8],[20,17,29,17],[4,4,5,4],[3,6,3,7],[20,18,29,18],[4,7,5,7],[15,1,15,7],[0,3,0,11],[7,3,7,5],[13,2,13,13],[2,1,2,13],[3,8,3,13],[4,6,5,6],[8,2,8,13],[12,1,12,7],[3,2,5,2],[3,1,5,1],[4,9,4,13],[31,1,31,13],[29,1,29,13],[30,1,30,13],[23,2,23,13],[16,2,16,13],[28,1,28,13],[26,2,26,7],[25,1,25,7],[22,1,22,7],[21,1,21,7],[19,2,19,13],[18,1,18,7]]}
[null,null,"Podmiot (Imię i Nazwisko/Nazwa):",{"$f":"'I.i II Ogólne i  Ident.'!U34&'I.i II Ogólne i  Ident.'!W38&'I.i II Ogólne i  Ident.'!AD34&'I.i II Ogólne i  Ident.'!W38&'I.i II Ogólne i  Ident.'!C34","v":"  "}]
[null,null,null,null,null,null,null,null,null,null,null,null,null,null,null,"TAK"]
[null,"IV. ZESTAWIENIE RZECZOWO-FINANSOWE OPERACJI"]
[null,"Lp.","Wyszczególnienie zakresu rzeczowego (przedział mocy, wydajność, szerokość robocza, wyposażenie, powierzchnia, itp. ze szczególnym uwzględnieniem cech charakterystycznych wpływających na ocenę kryterium środowisko i klimat)","Wpływ na cel przekrojowy",null,null,"Mierniki rzeczowe",null,"Koszty kwalifikowalne operacji ",null,null,null,null,null,null,"NIE"]
[null,null,null,"Innowacy-jność***","Środowi-sko *** ","Klimat***","Jednostka miary","Ilość\n (liczba)"," Ogółem \n(w zł)"," w tym etapy (w zł)****:"]
[null,null,null,null,null,null,null,null,null,"I","II","III","IV","V"]
[null,1,2,3,4,5,6,7,8,9,10,11,12,13]
[null,"I.","Koszty inwestycyjne nieobjęte leasingiem (Ki):"]
[null,"A*"]
[null,1,null,null,null,null,null,null,{"$f":"J10+K10+L10+M10+N10","v":0}]
[null,null,null,null,null,null,null,null,{"$f":"SUM(J11:N11)","v":0}]
[null,1,null,null,null,null,null,null,{"$f":"SUM(J12:N12)","v":0}]
[null,"Suma A",null,null,null,null,null,null,{"$f":"SUM(I10:I12)","v":0},0,0,0,0,0]
[null,"B *"]
[null,1,null,null,null,null,null,null,{"$f":"SUM(J15:N15)","v":0}]
[null,"Suma B",null,null,null,null,null,null,{"$f":"SUM(I15:I15)","v":0},0,0,0,0,0]
[null,"C"]
[null,1,null,null,null,null,null,null,{"$f":"SUM(J18:N18)","v":0}]
[null,"Suma C",null,null,null,null,null,null,{"$f":"SUM(I18:I18)","v":0},0,0,0,0,0]
[null,"II","Koszty inwestycyjne objęte leasingiem (Kl)"]
[null,1,null,null,null,null,null,null,{"$f":"SUM(J21:N21)","v":0}]
[null,"Suma II",null,null,null,null,null,null,{"$f":"SUM(I21:I21)","v":0},0,0,0,0,0]
[null,"Suma poszczególnych sum zadań inwestycyjnych (Ki+Kl)",null,null,null,null,null,null,{"$f":"I13 + I16 + I19 + I22","v":0},{"$f":"J13 + J16 + J19 + J22","v":0},{"$f":"K13 + K16 + K19 + K22","v":0},{"$f":"L13 + L16 + L19 + L22","v":0},{"$f":"M13 + M16 + M19 + M22","v":0},{"$f":"N13 + N16 + N1922","v":0}]
[null,"III","Koszty ogólne (Ko)"]
[null,1,null,null,null,null,null,null,{"$f":"SUM(J25:N25)","v":0}]
[null,"Suma Koszty ogólne (Ko) ",null,null,null,null,null,null,{"$f":"SUM(I25:I25)","v":0},0,0,0,0,0]
[null,"IV","Suma kosztów kwalifikowalnych operacji (Ki + Kl + Ko)",null,null,null,null,null,{"$f":"I23 + I26","v":0},0,0,0,0,0]
[]
[null,"* Zadanie lub grupa zadań realizowanych w ramach operacji. Zadanie – jedna lub kilka pozycji w zestawieniu rzeczowo-finansowym operacji, obejmujących dostawę, robotę budowlaną lub usługę mającą być przedmiotem nabycia, mogącą pochodzić od jednego dostawcy lub wykonawcy o ściśle określonym przeznaczeniu lub funkcjonalności, przy czym dostawa może obejmować zarówno jeden przedmiot, jak i całą partię, robota budowlana może składać się z jednej roboty budowlanej bądź kilku robót budowlanych, a usługa może składać się z jednej usługi bądź kilku rodzajów usług. Przy ustalaniu wartości zadania bierze się pod uwagę spełnienie łącznie następujących kryteriów:a) sumowaniu podlegają usługi, dostawy i roboty budowlane tego samego rodzaju i o tym samym przeznaczeniu; b) możliwe jest udzielenie zamówienia w tym samym czasie; c) możliwe jest wykonanie zadania przez jednego wykonawcę."]
[null,"** Zadanie lub dostawa/ robota/ usługa realizowana w ramach zadania."]
[null,"*** Wpisać TAK/NIE."]
[null,"****Operacja obejmująca wyłącznie inwestycje niepolegające na nabyciu rzeczy będących przedmiotem leasingu może być realizowana maksymalnie w 2 etapach."]

{"sheet":"V.Finans.","index":9,"n_rows":181,"n_cols":52,"rows_kept":181,"cut":false,"hidden":false,"merged":[[129,21,130,36],[123,3,123,29],[127,30,127,35],[131,21,133,36],[165,21,167,36],[153,21,155,36],[156,21,158,36],[140,21,142,36],[149,30,149,35],[143,21,145,36],[147,1,147,36],[163,5,163,10],[160,12,160,20],[160,2,160,3],[144,2,144,11],[149,3,149,29],[159,21,161,36],[162,21,164,36],[157,2,157,3],[157,5,157,10],[151,21,152,36],[141,2,141,11],[154,5,154,10],[154,12,154,20],[137,21,139,36],[166,2,166,3],[166,12,166,20],[160,5,160,10],[166,5,166,10],[163,12,163,20],[151,2,152,20],[154,2,154,3],[163,2,163,3],[138,2,138,11],[157,12,157,20],[107,21,107,28],[107,29,107,36],[127,9,127,14],[127,3,127,8],[127,19,127,26],[114,2,115,36],[119,31,119,36],[112,2,112,20],[110,2,110,11],[122,3,122,21],[107,2,107,11],[116,1,117,36],[112,21,112,28],[110,21,110,28],[110,29,110,36],[125,3,125,29],[125,30,125,35],[123,30,123,35],[112,29,112,36],[122,24,122,31],[65,2,65,28],[62,28,62,36],[62,4,62,27],[61,28,61,36],[68,1,68,36],[69,2,69,29],[52,1,53,1],[72,21,73,28],[67,2,67,28],[60,2,60,3],[65,31,65,36],[62,2,62,3],[46,15,46,19],[43,18,43,19],[38,31,38,36],[47,25,47,30],[48,25,48,30],[61,4,61,27],[63,28,63,36],[59,4,59,27],[34,15,34,17],[38,23,38,24],[44,15,44,17],[36,15,36,17],[32,15,32,17],[43,15,43,17],[34,18,34,19],[35,15,35,17],[48,2,48,24],[44,23,44,24],[38,2,39,3],[37,2,37,36],[17,4,17,14],[18,18,18,19],[20,4,20,14],[17,18,17,19],[20,18,20,19],[22,15,22,17],[18,4,18,14],[22,4,22,14],[19,4,19,14],[20,15,20,17],[18,15,18,17],[19,18,19,19],[21,4,21,14],[24,2,24,14],[24,18,24,19],[28,4,28,14],[43,23,43,24],[44,18,44,19],[44,25,44,30],[38,4,38,14],[43,25,43,30],[43,2,43,14],[44,2,44,14],[39,4,39,14],[36,25,36,30],[39,25,39,30],[24,15,24,17],[26,15,26,17],[28,18,28,19],[35,25,35,30],[35,18,35,19],[31,15,31,17],[39,15,39,17],[38,18,38,19],[29,4,29,14],[39,18,39,19],[95,29,96,36],[43,31,43,36],[44,20,44,22],[43,20,43,22],[90,21,90,28],[94,2,94,28],[92,2,92,20],[74,21,74,28],[74,29,74,36],[78,21,78,28],[75,21,75,28],[84,2,84,36],[78,2,78,20],[75,29,75,36],[75,2,75,20],[77,2,77,20],[76,21,76,28],[45,20,45,24],[45,18,45,19],[45,15,45,17],[48,31,48,36],[58,28,58,36],[71,2,71,36],[64,29,64,36],[101,29,101,36],[8,2,8,14],[10,2,15,3],[88,2,88,20],[91,21,91,28],[98,29,98,36],[58,2,58,3],[72,2,73,20],[74,2,74,20],[72,29,73,36],[11,20,11,22],[11,18,11,19],[10,4,10,14],[91,29,91,36],[88,29,88,36],[90,29,90,36],[89,29,89,36],[60,4,60,27],[67,31,67,36],[33,4,33,14],[26,20,35,24],[15,18,15,19],[15,15,15,17],[15,4,15,14],[23,18,23,19],[32,25,32,30],[30,15,30,17],[18,31,18,36],[29,15,29,17],[30,25,30,30],[31,25,31,30],[20,20,20,22],[19,23,19,24],[22,18,22,19],[21,18,21,19],[23,15,23,17],[26,18,26,19],[31,18,31,19],[30,18,30,19],[22,31,22,36],[23,20,23,22],[21,20,21,22],[21,15,21,17],[21,31,21,36],[23,31,23,36],[29,18,29,19],[22,20,22,22],[27,4,27,14],[23,2,23,14],[26,2,35,3],[32,31,32,36],[34,25,34,30],[35,4,35,14],[31,4,31,14],[32,4,32,14],[33,18,33,19],[33,15,33,17],[26,4,26,14],[17,2,22,3],[17,15,17,17],[23,23,23,24],[20,23,20,24],[19,15,19,17],[64,46,64,47],[60,28,60,36],[63,46,63,47],[62,46,62,47],[50,31,50,36],[52,2,53,36],[63,2,63,27],[58,4,58,27],[34,46,51,47],[36,31,36,36],[59,2,59,3],[55,28,57,36],[59,28,59,36],[39,31,39,36],[38,20,38,22],[55,2,57,27],[47,2,47,24],[45,2,45,14],[46,2,46,14],[46,25,46,30],[50,2,50,28],[47,31,47,36],[36,18,36,19],[61,2,61,3],[35,31,35,36],[26,25,26,30],[39,20,39,22],[39,23,39,24],[29,25,29,30],[38,25,38,30],[24,31,24,36],[33,31,33,36],[28,25,28,30],[24,20,24,22],[26,31,26,36],[31,31,31,36],[24,25,24,30],[29,31,29,36],[28,31,28,36],[25,2,25,36],[27,18,27,19],[30,31,30,36],[28,15,28,17],[27,15,27,17],[30,4,30,14],[36,2,36,14],[34,4,34,14],[38,15,38,17],[15,20,15,22],[15,25,15,30],[15,23,15,24],[13,20,13,22],[13,23,13,24],[14,20,14,22],[14,23,14,24],[19,25,19,30],[33,25,33,30],[22,23,22,24],[18,25,18,30],[18,20,18,22],[20,25,20,30],[23,25,23,30],[3,1,3,36],[11,31,11,36],[10,31,10,36],[11,4,11,14],[6,2,6,25],[7,15,7,19],[8,15,8,19],[1,1,1,9],[1,10,1,36],[7,31,7,36],[7,20,7,24],[7,25,7,30],[8,20,8,24],[8,25,8,30],[8,31,8,36],[11,23,11,24],[9,2,9,36],[11,25,11,30],[10,25,10,30],[10,23,10,24],[10,18,10,19],[10,15,10,17],[11,15,11,17],[14,31,14,36],[7,2,7,14],[14,25,14,30],[12,25,12,30],[14,18,14,19],[13,25,13,30],[13,31,13,36],[10,20,10,22],[14,4,14,14],[12,20,12,22],[12,23,12,24],[13,15,13,17],[12,31,12,36],[12,4,12,14],[12,15,12,17],[12,18,12,19],[13,4,13,14],[13,18,13,19],[14,15,14,17],[15,31,15,36],[19,20,19,22],[17,31,17,36],[20,31,20,36],[16,2,16,36],[19,31,19,36],[46,31,46,36],[45,31,45,36],[27,31,27,36],[32,18,32,19],[27,25,27,30],[45,25,45,30],[44,31,44,36],[46,20,46,24],[34,31,34,36],[36,20,36,24],[17,25,17,30],[21,23,21,24],[17,20,17,22],[21,25,21,30],[18,23,18,24],[24,23,24,24],[22,25,22,30],[17,23,17,24],[79,21,79,28],[87,21,87,28],[77,29,77,36],[87,2,87,20],[76,29,76,36],[77,21,77,28],[85,29,86,36],[79,29,79,36],[85,21,86,28],[85,2,86,20],[76,2,76,20],[79,2,79,20],[89,21,89,28],[87,29,87,36],[78,29,78,36],[101,2,101,11],[173,28,173,31],[175,32,175,36],[175,28,175,31],[178,32,178,36],[170,2,170,37],[134,21,136,36],[135,2,135,11],[89,2,89,20],[88,21,88,28],[172,28,172,36],[95,12,96,20],[98,21,98,28],[98,2,98,11],[95,2,96,11],[92,21,92,28],[90,2,90,20],[95,21,96,28],[104,2,104,11],[104,21,104,28],[104,29,104,36],[182,1,184,37],[174,3,174,36],[175,3,175,27],[179,28,179,31],[176,3,176,27],[94,29,94,36],[91,2,91,20],[180,3,180,27],[180,28,180,36],[176,28,176,36],[172,2,173,27],[179,3,179,27],[178,3,178,27],[173,32,173,36],[101,21,101,28],[179,32,179,36],[177,3,177,36],[178,28,178,31],[92,29,92,36],[122,33,122,34],[122,1,122,2],[129,12,130,20],[132,2,132,11],[129,2,130,11]]}
[]
[null,"Podmiot (Imię i Nazwisko/Nazwa):",null,null,null,null,null,null,null,null,{"$f":"'I.i II Ogólne i  Ident.'!U34&'I.i II Ogólne i  Ident.'!W38&'I.i II Ogólne i  Ident.'!AD34&'I.i II Ogólne i  Ident.'!W38&'I.i II Ogólne i  Ident.'!C34","v":"  "}]
[]
[null,"V. PLAN FINANSOWY OPERACJI"]
[]
[null,null,null,null,null,null,null,null,null,null,null,null,null,null,null,null,null,null,null,null,null,null,null,null,null,null,null,null,null,null,null,null,null,null,null,null,null,null,null,null,null,null,null,500000]
[null,"1.","Planowane koszty realizacji operacji"]
[null,null,"Nazwa wskaźnika",null,null,null,null,null,null,null,null,null,null,null,null,"Ilość ",null,null,null,null,"Powierzchnia/\nObjętość",null,null,null,null,"Całkowity koszt operacji\n(w zł z VAT)",null,null,null,null,null,"Koszty kwalifikowalne operacji (w zł bez VAT)"]
[null,null,1,null,null,null,null,null,null,null,null,null,null,null,null,2,null,null,null,null,3,null,null,null,null,4,null,null,null,null,null,5]
[null,null,"1.1. Planowane do wybudowania budynki produkcyjne"]
[null,null,"w tym:",null,"obory",null,null,null,null,null,null,null,null,null,null,null,null,null,"szt",null,null,null,null,"m2"]
[null,null,null,null,"chlewnie",null,null,null,null,null,null,null,null,null,null,null,null,null,"szt",null,null,null,null,"m2"]
[null,null,null,null,"inne budynki przeznaczone na inwentarz żywy",null,null,null,null,null,null,null,null,null,null,null,null,null,"szt",null,null,null,null,"m2"]
[null,null,null,null,"szklarnie",null,null,null,null,null,null,null,null,null,null,null,null,null,"szt",null,null,null,null,"m2"]
[null,null,null,null,"magazyny paszowe",null,null,null,null,null,null,null,null,null,null,null,null,null,"szt",null,null,null,null,"m2"]
[null,null,null,null,"pozostałe budynki gospodarcze",null,null,null,null,null,null,null,null,null,null,null,null,null,"szt",null,null,null,null,"m2"]
[null,null,"1.2. Planowane do modernizacji budynki produkcyjne"]
[null,null,"w tym:",null,"obory",null,null,null,null,null,null,null,null,null,null,null,null,null,"szt",null,null,null,null,"m2"]
[null,null,null,null,"chlewnie",null,null,null,null,null,null,null,null,null,null,null,null,null,"szt",null,null,null,null,"m2"]
[null,null,null,null,"inne budynki przeznaczone na inwentarz żywy",null,null,null,null,null,null,null,null,null,null,null,null,null,"szt",null,null,null,null,"m2"]
[null,null,null,null,"szklarnie",null,null,null,null,null,null,null,null,null,null,null,null,null,"szt",null,null,null,null,"m2"]
[null,null,null,null,"magazyny paszowe",null,null,null,null,null,null,null,null,null,null,null,null,null,"szt",null,null,null,null,"m2"]
[null,null,null,null,"pozostałe budynki gospodarcze",null,null,null,null,null,null,null,null,null,null,null,null,null,"szt",null,null,null,null,"m2"]
[null,null,"1.3. Płyty obornikowe",null,null,null,null,null,null,null,null,null,null,null,null,null,null,null,"szt",null,null,null,null,"m2"]
[null,null,"1.4. Zbiorniki na gnojówkę \ni gnojowicę",null,null,null,null,null,null,null,null,null,null,null,null,null,null,null,"szt",null,null,null,null,"m3"]
[null,null,"1.5. Planowane do zakupienia sprzęty ruchome"]
[null,null,"w tym:",null,"ciągniki rolnicze",null,null,null,null,null,null,null,null,null,null,null,null,null,"szt"]
[null,null,null,null,"ładowarki samobieżne",null,null,null,null,null,null,null,null,null,null,null,null,null,"szt"]
[null,null,null,null,"kombajny zbożowe",null,null,null,null,null,null,null,null,null,null,null,null,null,"szt"]
[null,null,null,null,"maszyny do zbioru (z wyłączeniem kombajnów zbożowych) ",null,null,null,null,null,null,null,null,null,null,null,null,null,"szt"]
[null,null,null,null,"przyczepy transportowe",null,null,null,null,null,null,null,null,null,null,null,null,null,"szt"]
[null,null,null,null,"narzędzia i maszyny do uprawy gleby",null,null,null,null,null,null,null,null,null,null,null,null,null,"szt"]
[null,null,null,null,"maszyny do nawożenia",null,null,null,null,null,null,null,null,null,null,null,null,null,"szt"]
[null,null,null,null,"maszyny i urządzenia do siewu i sadzenia",null,null,null,null,null,null,null,null,null,null,null,null,null,"szt"]
[null,null,null,null,"pozostałe maszyny i urządzenia",null,null,null,null,null,null,null,null,null,null,null,null,null,"szt"]
[null,null,null,null,"elementy wyposażenia, elementy maszyn, narzędzi, wyposażenie dodatkowe",null,null,null,null,null,null,null,null,null,null,null,null,null,"szt"]
[null,null,"1.6. Planowany do zakupu sprzęt komputerowy",null,null,null,null,null,null,null,null,null,null,null,null,null,null,null,"szt"]
[null,null,"1.7. Elementy infrastruktury technicznej"]
[null,null,"w tym:",null,"place manewrowe",null,null,null,null,null,null,null,null,null,null,null,null,null,"szt",null,null,null,null,"m2"]
[null,null,null,null,"drogi dojazdowe",null,null,null,null,null,null,null,null,null,null,null,null,null,"szt",null,null,null,null,"mb"]
[]
[]
[]
[null,null,"1.8. Planowane  do założenia sady lub plantacje krzewów owocowych, gatunków owocujących efektywnie dłużej niż 5 lat",null,null,null,null,null,null,null,null,null,null,null,null,null,null,null,"szt",null,null,null,null,"ha"]
[null,null,"1.9. Planowane do wybudowania lub zmodernizowania obiekty służące do przygotowania do sprzedaży produktów rolnych wytwarzanych w gospodarstwie",null,null,null,null,null,null,null,null,null,null,null,null,null,null,null,"szt",null,null,null,null,"m2"]
[null,null,"1.10. Pozostałe inwestycje",null,null,null,null,null,null,null,null,null,null,null,null,null,null,null,"szt"]
[null,null,"1.11. Koszty ogólne"]
[null,null,"1.12. Koszty niekwalifikowalne"]
[null,null,"1.13. Suma kosztów",null,null,null,null,null,null,null,null,null,null,null,null,null,null,null,null,null,null,null,null,null,null,{"$f":"SUM(Z11:AE16)+SUM(Z18:AE25)+SUM(Z27:AE37)+SUM(Z39:AE40)+SUM(Z44:AE47)+Z48","v":0},null,null,null,null,null,{"$f":"SUM(AF11:AK16)+SUM(AF18:AK25)+SUM(AF27:AK37)+SUM(AF39:AK40)+SUM(AF44:AK48)","v":0}]
[null,null,null,null,null,null,null,null,null,null,null,null,null,null,null,null,null,null,null,null,null,null,null,null,null,null,null,null,null,null,null,null,null,null,null,null,null,null,null,null,null,null,null,null,"(wybierz z listy)"]
[null,"2.","Limit pomocy na gospodarstwo i beneficjenta (w zł)",null,null,null,null,null,null,null,null,null,null,null,null,null,null,null,null,null,null,null,null,null,null,null,null,null,null,null,null,"(wybierz z listy)"]
[null,null,null,null,null,null,null,null,null,null,null,null,null,null,null,null,null,null,null,null,null,null,null,null,null,null,null,null,null,null,null,null,null,null,null,null,null,null,null,null,null,null,null,null,200000]
[null,"3.","Pomoc uzyskana uprzednio w ramach PROW na lata 2014-2020 w zakresie typu operacji \"MODERNIZACJA GOSPODARSTW ROLNYCH\" w ramach poddziałania \"WSPARCIE INWESTYCJI W GOSPODARSTWACH ROLNYCH\" oraz typu operacji \"RESTRUKTURYZACJA MAŁYCH GOSPODARSTW\" w ramach poddziałania \"POMOC NA ROZPOCZĘCIE DZIAŁALNOŚCI GOSPODARCZEJ NA RZECZ ROZWOJU MAŁYCH GOSPODARSTW\" (kwoty pomocy wypłacone lub określone w umowie o przyznaniu pomocy/decyzji) ",null,null,null,null,null,null,null,null,null,null,null,null,null,null,null,null,null,null,null,null,null,null,null,null,null,null,null,null,null,null,null,null,null,null,null,null,null,null,null,null,null,500000]
[null,null,null,null,null,null,null,null,null,null,null,null,null,null,null,null,null,null,null,null,null,null,null,null,null,null,null,null,null,null,null,null,null,null,null,null,null,null,null,null,null,null,null,null,900000]
[]
[null,null,"Numer umowy/ numer decyzji",null,null,null,null,null,null,null,null,null,null,null,null,null,null,null,null,null,null,null,null,null,null,null,null,null,"Kwota (w zł)"]
[]
[]
[null,null,"3.1."]
[null,null,"3.2."]
[null,null,"3.3."]
[null,null,"3.4."]
[null,null,"3.5."]
[null,null,"3.6. Suma pkt  3.1. - 3.5.:",null,null,null,null,null,null,null,null,null,null,null,null,null,null,null,null,null,null,null,null,null,null,null,null,null,{"$f":"SUM(AC59:AK63)","v":0}]
[]
[null,"4.","Kwota do wykorzystania"]
[]
[null,"5.","Poziom współfinansowania operacji nie więcej niż (procentowo):",null,null,null,null,null,null,null,null,null,null,null,null,null,null,null,null,null,null,null,null,null,null,null,null,null,null,null,null,"(wybierz z listy)",null,null,null,null,null,null,null,"(wybierz z listy)"]
[null,null,null,null,null,null,null,null,null,null,null,null,null,null,null,null,null,null,null,null,null,null,null,null,null,null,null,null,null,null,null,null,null,null,null,null,null,null,null,0.5]
[null,"6.","Podział na etapy planowanej do realizacji operacji:",null,null,null,null,null,null,null,null,null,null,null,null,null,null,null,null,null,null,null,null,null,null,null,null,null,null,null,null,null,null,null,null,null,null,null,null,0.6]
[]
[null,"6.1.","Operacja związana bezpośrednio z budową, modernizacją budynków inwentarskich, w tym ich wyposażaniem lub adaptacją innych istniejących w gospodarstwie budynków na budynki inwentarskie, w tym ich wyposażaniem, lub budową lub modernizacją magazynów paszowych w gospodarstwach, w których jest prowadzona produkcja zwierzęca, w tym ich wyposażaniem:"]
[null,null,"Etapy4:",null,null,null,null,null,null,null,null,null,null,null,null,null,null,null,null,null,null,"Koszty kwalifikowalne operacji",null,null,null,null,null,null,null,"Wnioskowana kwota pomocy "]
[]
[null,null,"6.1.1.    I etap operacji"]
[null,null,"6.1.2.   II etap operacji"]
[null,null,"6.1.3.   III etap operacji"]
[null,null,"6.1.4.   IV etap operacji"]
[null,null,"6.1.5.   V etap operacji"]
[null,null,"6.1.6. Suma pkt. 6.1.1. - 6.1.5.:",null,null,null,null,null,null,null,null,null,null,null,null,null,null,null,null,null,null,{"$f":"SUM(V75:AC79)","v":0},null,null,null,null,null,null,null,{"$f":"SUM(AD75:AK79)","v":0}]
[]
[]
[]
[]
[null,"6.2.","Operacja niezwiązana bezpośrednio z budową, modernizacją budynków inwentarskich, w tym ich wyposażaniem, lub adaptacją innych istniejących w gospodarstwie budynków na budynki inwentarskie, w tym ich wyposażaniem, lub budową lub modernizacją magazynów paszowych w gospodarstwach, w których jest prowadzona produkcja zwierzęca, w tym ich wyposażaniem:"]
[null,null,"Etapy4:",null,null,null,null,null,null,null,null,null,null,null,null,null,null,null,null,null,null,"Koszty kwalifikowalne operacji",null,null,null,null,null,null,null,"Wnioskowana kwota pomocy "]
[]
[null,null,"6.2.1.   I etap operacji"]
[null,null,"6.2.2.   II etap operacji"]
[null,null,"6.2.3.   III etap operacji"]
[null,null,"6.2.4.   IV etap operacji"]
[null,null,"6.2.5.   V etap operacji"]
[null,null,"6.2.6. Suma pkt. 6.2.1. - 6.2.5.:",null,null,null,null,null,null,null,null,null,null,null,null,null,null,null,null,null,null,{"$f":"SUM(V88:AC92)","v":0},null,null,null,null,null,null,null,{"$f":"SUM(AD88:AK92)","v":0}]
[]
[null,"6.3."," Podział na etapy planowanej do realizacji operacji ogółem:"]
[null,null,"Etapy4:",null,null,null,null,null,null,null,null,null,"Planowany termin zakończenia etapu (miesiąc/rok)",null,null,null,null,null,null,null,null,"Koszty kwalifikowalne operacji",null,null,null,null,null,null,null,"Wnioskowana kwota pomocy "]
[]
[]
[null,null,"6.3.1.   I etap operacji",null,null,null,null,null,null,null,null,null,null,null,null,"-",null,null,null,null,null,{"$f":"V75+V88","v":0},null,null,null,null,null,null,null,{"$f":"AD75+AD88","v":0}]
[]
[]
[null,null,"6.3.2.   II etap operacji",null,null,null,null,null,null,null,null,null,null,null,null,"-",null,null,null,null,null,{"$f":"V76+V89","v":0},null,null,null,null,null,null,null,{"$f":"AD76+AD89","v":0}]
[]
[]
[null,null,"6.3.3.   III etap operacji",null,null,null,null,null,null,null,null,null,null,null,null,"-",null,null,null,null,null,{"$f":"V77+V90","v":0},null,null,null,null,null,null,null,{"$f":"AD77+AD90","v":0}]
[]
[]
[null,null,"6.3.4.   IV etap operacji",null,null,null,null,null,null,null,null,null,null,null,null,"-",null,null,null,null,null,{"$f":"V78+V91","v":0},null,null,null,null,null,null,null,{"$f":"AD78+AD91","v":0}]
[]
[]
[null,null,"6.3.5.   V etap operacji",null,null,null,null,null,null,null,null,null,null,null,null,"-",null,null,null,null,null,{"$f":"V79+V92","v":0},null,null,null,null,null,null,null,{"$f":"AD79+AD92","v":0}]
[]
[null,null,"6.3.6. Suma pkt. 6.3.1. - 6.3.5.:",null,null,null,null,null,null,null,null,null,null,null,null,null,null,null,null,null,null,{"$f":"SUM(V99:AC111)","v":0},null,null,null,null,null,null,null,{"$f":"SUM(AD99:AK111)","v":0}]
[]
[]
[]
[null,"4Operacja obejmująca wyłącznie inwestycje niepolegające na nabyciu rzeczy będących przedmiotem leasingu może być realizowana maksymalnie w 2 etapach. W przypadku operacji obejmującej inwestycje polegające na nabyciu rzeczy będących przedmiotem leasingu pomoc może być wypłacona maksymalnie w 5 etapach z zastrzeżeniem, że wniosek o płatność będzie składany nie częściej niż co 6 miesięcy."]
[]
[]
[null,"7.","Wnioskowana zaliczka",null,null,null,null,null,null,null,null,null,null,null,null,null,null,null,null,null,null,null,null,null,null,null,null,null,null,null,null,"(wybierz z listy)",null,null,null,null,null,null,null,"(wybierz z listy)"]
[null,null,null,null,null,null,null,null,null,null,null,null,null,null,null,null,null,null,null,null,null,null,null,null,null,null,null,null,null,null,null,null,null,null,null,null,null,null,null,"TAK"]
[null,null,null,null,null,null,null,null,null,null,null,null,null,null,null,null,null,null,null,null,null,null,null,null,null,null,null,null,null,null,null,null,null,null,null,null,null,null,null,"NIE"]
[null,"7.1.",null,"Wysokość zaliczki",null,null,null,null,null,null,null,null,null,null,null,null,null,null,null,null,null,null,null,null,null,null,null,null,null,null,null,null,","]
[null,"7.2. ",null,"Wypłata zaliczki:"]
[]
[null,"7.2.1. ",null,"jednorazowo",null,null,null,null,null,null,null,null,null,null,null,null,null,null,null,null,null,null,null,null,null,null,null,null,null,null,"(wybierz z listy)"]
[]
[null,"7.2.2. ",null,"w transzach",null,null,null,null,null,"(wybierz z listy)",null,null,null,null,null,null,null,null,null,"liczba transz:"]
[]
[null,null,"Transze zaliczki",null,null,null,null,null,null,null,null,null,"Termin wypłaty transzy (miesiąc/rok)",null,null,null,null,null,null,null,null,"Wnioskowana kwota transzy"]
[]
[]
[null,null,"7.2.2.1.  I transza zaliczki",null,null,null,null,null,null,null,null,null,null,null,null,"-"]
[]
[]
[null,null,"7.2.2.2.  II transza zaliczki5",null,null,null,null,null,null,null,null,null,null,null,null,"-"]
[]
[]
[null,null,"7.2.2.3.  III transza zaliczki5",null,null,null,null,null,null,null,null,null,null,null,null,"-"]
[]
[]
[null,null,"7.2.2.4.  IV transza zaliczki5",null,null,null,null,null,null,null,null,null,null,null,null,"-"]
[]
[]
[null,null,"7.2.2.5.  V transza zaliczki5",null,null,null,null,null,null,null,null,null,null,null,null,"-"]
[]
[]
[null,"5Wypłata drugiej  i kolejnych transz nastąpi po rozliczeniu we wniosku o płatność, określonej w umowie o przyznaniu pomocy części, nie niższej jednak niż 60%, dotychczas otrzymanej zaliczki."]
[]
[null,"7.3. ",null,"Rozliczenie zaliczki (w przypadku operacji realizowanej w kilku etapach)"]
[]
[null,null,"Rozliczenie zaliczki nastąpi wraz z wnioskiem o płatność dla:",null,null,null,null,null,null,null,null,null,null,null,null,null,null,null,null,null,null,"Kwota rozliczanej zaliczki"]
[]
[null,null,null,null,"-"]
[null,null,"7.3.1. ",null,null,"(wybierz z listy)",null,null,null,null,null,null,"etapu",null,null,null,null,null,null,null,null,null,null,null,null,null,null,null,null,null,null,null,null,null,null,null,null,null,null,null,null,null,null,null,null,null,null,"(wybierz z listy)"]
[null,null,null,null,null,null,null,null,null,null,null,null,null,null,null,null,null,null,null,null,null,null,null,null,null,null,null,null,null,null,null,null,null,null,null,null,null,null,null,null,null,null,null,null,null,null,null,"I"]
[null,null,null,null,null,null,null,null,null,null,null,null,null,null,null,null,null,null,null,null,null,null,null,null,null,null,null,null,null,null,null,null,null,null,null,null,null,null,null,null,null,null,null,null,null,null,null,"II"]
[null,null,"7.3.2. ",null,null,"(wybierz z listy)",null,null,null,null,null,null,"etapu",null,null,null,null,null,null,null,null,null,null,null,null,null,null,null,null,null,null,null,null,null,null,null,null,null,null,null,null,null,null,null,null,null,null,"III"]
[null,null,null,null,null,null,null,null,null,null,null,null,null,null,null,null,null,null,null,null,null,null,null,null,null,null,null,null,null,null,null,null,null,null,null,null,null,null,null,null,null,null,null,null,null,null,null,"IV"]
[null,null,null,null,null,null,null,null,null,null,null,null,null,null,null,null,null,null,null,null,null,null,null,null,null,null,null,null,null,null,null,null,null,null,null,null,null,null,null,null,null,null,null,null,null,null,null,"V"]
[null,null,"7.3.3.",null,null,"(wybierz z listy)",null,null,null,null,null,null,"etapu"]
[]
[]
[null,null,"7.3.4.",null,null,"(wybierz z listy)",null,null,null,null,null,null,"etapu"]
[]
[]
[null,null,"7.3.5.",null,null,"(wybierz z listy)",null,null,null,null,null,null,"etapu"]
[]
[]
[]
[null,"8.","Określenie możliwości realizacji operacji przez podmiot ubiegający się o przyznanie pomocy bez udziału środków publicznych"]
[]
[null,null,"Pytanie",null,null,null,null,null,null,null,null,null,null,null,null,null,null,null,null,null,null,null,null,null,null,null,null,null,"Odpowiedź (należy wstawić znak X we właściwym polu)"]
[null,null,null,null,null,null,null,null,null,null,null,null,null,null,null,null,null,null,null,null,null,null,null,null,null,null,null,null,"TAK",null,null,null,"NIE"]
[null,null,"A.","Określenie poziomu i zakresu, do jakiego podmiot ubiegający się o przyznanie pomocy zrealizowałby inwestycję bez pomocy publicznej:"]
[null,null,"1.","Czy planowana do realizacji operacja powstałaby bez pomocy publicznej w zakresie identycznym jak wskazany we wniosku o przyznanie pomocy, z zastosowaniem tych samych rozwiązań technicznych / technologicznych?",null,null,null,null,null,null,null,null,null,null,null,null,null,null,null,null,null,null,null,null,null,null,null,null,null,null,null,null,null,null,null,null,null,null,null,null,null,null,null,null,null,null,null,null,null,null,null,"x"]
[null,null,"2.","Jeżeli w punkcie A1 zaznaczono odpowiedź NIE, należy podać wartość netto nakładów inwestycyjnych, które zostałyby poniesione w przypadku nieotrzymania pomocy (szacunkowo w zł)."]
[null,null,"B.","Określenie czasu realizacji inwestycji przez podmiot ubiegający się o przyznanie pomocy:"]
[null,null,"3.","Czy w przypadku niekorzystania z pomocy finansowej podmiot ubiegający się o przyznanie pomocy rozpocząłby realizację inwestycji w tym samym czasie?"]
[null,null,"4.","Czy w przypadku niekorzystania z pomocy finansowej podmiot ubiegający się o przyznanie pomocy zakończyłby inwestycję w tym samym czasie (tzn. w miesiącu, w którym zaplanowano złożenie wniosku o płatność)?"]
[null,null,"5.","Jeżeli w punkcie B3 lub B4 wskazano odpowiedź NIE, należy podać, o ile dłużej trwałby proces inwestycyjny (od momentu rozpoczęcia inwestycji do momentu złożenia wniosku o płatność) w przypadku niekorzystania z pomocy finansowej przez podmiot ubiegający się o przyznanie pomocy (w miesiącach)."]

{"sheet":"VI.Inf.zał.","index":10,"n_rows":100,"n_cols":42,"rows_kept":100,"cut":false,"hidden":false,"merged":[[4,1,4,35],[47,1,49,2],[47,3,49,26],[53,1,55,2],[47,27,49,29],[50,1,52,2],[29,3,31,26],[29,1,31,2],[41,1,43,2],[41,3,43,26],[17,27,19,29],[14,1,19,2],[17,3,19,26],[44,27,46,29],[32,27,34,29],[20,1,28,2],[38,1,40,2],[32,1,34,2],[5,3,7,26],[100,1,100,35],[41,27,43,29],[38,27,40,29],[44,3,46,26],[68,1,70,2],[35,3,37,26],[59,27,61,29],[9,1,11,2],[68,27,70,29],[65,27,67,29],[44,1,46,2],[62,1,64,2],[71,1,73,2],[65,3,67,26],[59,3,61,26],[68,3,70,26],[62,3,64,26],[50,27,52,29],[20,3,28,26],[20,27,28,29],[98,33,98,35],[83,27,85,29],[86,27,88,29],[89,3,91,26],[45,40,46,63],[38,3,40,26],[99,1,99,35],[1,1,1,9],[2,1,2,37],[1,10,1,35],[9,27,11,29],[12,1,12,35],[56,3,58,26],[3,1,3,35],[50,3,52,26],[5,33,7,35],[8,1,8,35],[5,1,7,2],[29,27,31,29],[5,30,7,32],[35,27,37,29],[32,3,34,26],[14,3,16,26],[9,3,11,26],[13,1,13,35],[5,27,7,29],[35,1,37,2],[59,1,61,2],[17,36,19,41],[14,27,16,29],[29,40,29,63],[54,40,56,63],[56,27,58,29],[71,27,73,29],[62,27,64,29],[14,36,16,41],[53,27,55,29],[60,40,74,63],[36,40,37,63],[47,40,47,63],[74,27,76,29],[21,40,23,63],[24,40,28,63],[62,30,62,32],[64,30,64,32],[62,33,62,35],[64,33,64,35],[30,40,32,63],[33,40,34,63],[57,40,59,63],[39,38,44,66],[48,40,49,63],[50,40,50,63],[51,40,53,63],[53,3,55,26],[83,1,85,2],[86,1,88,2],[86,3,88,26],[80,1,82,2],[65,1,67,2],[56,1,58,2],[77,3,79,26],[71,3,73,26],[86,33,88,35],[77,27,79,29],[89,33,91,35],[92,33,94,35],[95,27,97,29],[95,3,97,26],[98,1,98,2],[98,3,98,26],[83,3,85,26],[89,27,91,29],[75,40,76,63],[81,40,82,63],[77,40,80,63],[80,27,82,29],[89,1,91,2],[98,30,98,32],[98,27,98,29],[92,3,94,26],[95,1,97,2],[92,27,94,29],[92,1,94,2],[74,3,76,26],[74,1,76,2],[77,1,79,2],[80,3,82,26],[95,33,97,35]]}
[]
[null,"Podmiot (Imię i Nazwisko/Nazwa):",null,null,null,null,null,null,null,null,{"$f":"'I.i II Ogólne i  Ident.'!U34&'I.i II Ogólne i  Ident.'!W38&'I.i II Ogólne i  Ident.'!AD34&'I.i II Ogólne i  Ident.'!W38&'I.i II Ogólne i  Ident.'!C34","v":"  "}]
[]
[null,"VI. INFORMACJA O ZAŁĄCZNIKACH"]
[null,"Do wniosku o przyznanie pomocy dołącza się:"]
[null,"Lp.",null,"Nazwa załącznika",null,null,null,null,null,null,null,null,null,null,null,null,null,null,null,null,null,null,null,null,null,null,null,"Liczba załączników",null,null,"Tak",null,null,"ND"]
[]
[]
[null,"Załącznik niezbędny do przeprowadzenia wstępnej weryfikacji spełniania podstawowych wymogów formalnych:"]
[null,"1.",null,"Wniosek o wpis do ewidencji producentów, o której mowa w przepisach o krajowym systemie ewidencji producentów, ewidencji gospodarstw rolnych oraz ewidencji wniosków o przyznanie płatności, jeżeli podmiotowi ubiegającemu się o przyznanie pomocy, spółce cywilnej, której jest wspólnikiem, nie został nadany numer identyfikacyjny - kopia, a w przypadku składania wniosku o wpis tego podmiotu do tej ewidencji łącznie z wnioskiem o przyznanie pomocy – oryginał wniosku."]
[null,null,null,null,null,null,null,null,null,null,null,null,null,null,null,null,null,null,null,null,null,null,null,null,null,null,null,null,null,null,null,null,null,null,null,null,null,null,null,null,null,"x"]
[]
[null,"UWAGA: Niedołączenie wymienionego powyżej załącznika przez podmiot ubiegający się o przyznanie pomocy, który nie wypełnił pola 1.1 części II wniosku, zgodnie z przepisem  § 14 ust. 1 rozporządzenia, skutkuje pozostawieniem wniosku bez rozpatrzenia (z zastrzeżeniem § 14 ust. 2 rozporządzenia)."]
[null,"Pozostałe załączniki wymagane do przeprowadzenia weryfikacji wniosku"]
[null,"2.",null,"Biznesplan: \n- na elektronicznym nośniku danych (CD lub DVD), opracowany na formularzu udostępnionym przez ARiMR, oraz"]
[null,null,null,null,null,null,null,null,null,null,null,null,null,null,null,null,null,null,null,null,null,null,null,null,null,null,null,null,null,null,null,null,null,null," "]
[]
[null,null,null,"- wydruk arkusza podsumowującego biznesplan - oryginał (w przypadku operacji w obszarze, o którym mowa w § 4 ust. 1 pkt 1 lit. a–d)"]
[null,null,null,null,null,null,null,null,null,null,null,null,null,null,null,null,null,null,null,null,null,null,null,null,null,null,null,null,null,null,null,null,null,null," "]
[]
[null,"3.",null,"Oświadczenie: \na) właściciela albo współwłaściciela gospodarstwa albo jego części o wyrażeniu zgody na realizację operacji - w przypadku gdy operacja będzie realizowana w gospodarstwie niestanowiącym własności podmiotu ubiegającego się o przyznanie pomocy albo stanowiącym współwłasność tego podmiotu i nie dotyczy wyłącznie nabycia rzeczy ruchomych, które nie wymagają instalacji;\n\nb) współposiadacza gospodarstwa o wyrażeniu zgody na ubieganie się o przyznanie pomocy przez podmiot ubiegający się o przyznanie pomocy - w przypadku gdy operacja będzie realizowana w gospodarstwie stanowiącym przedmiot współposiadania; \n\nc) współposiadacza nieruchomości wchodzącej w skład gospodarstwa o wyrażeniu zgody na ubieganie się o przyznanie pomocy przez podmiot ubiegający się o przyznanie pomocy - w przypadku gdy operacja będzie realizowana w gospodarstwie, w skład którego wchodzi nieruchomość będąca przedmiotem współposiadania z wyłączeniem współposiadania nieruchomości w ramach wspólnot gruntowych;\nsporządzone na formularzu opracowanym i udostępnionym przez ARiMR (Załącznik Nr 1 do Wniosku o przyznanie pomocy) - oryginał.",null,null,null,null,null,null,null,null,null,null,null,null,null,null,null,null,null,null,null,null,null,null,null,null,null,null," ",null,null," "]
[]
[]
[]
[]
[]
[]
[]
[]
[null,"4.",null,"Umowa spółki cywilnej - w przypadku gdy operacja będzie realizowana w ramach wykonywania działalności gospodarczej w formie spółki cywilnej – kopia."]
[]
[]
[null,"5.",null,"Uchwała wspólników spółki cywilnej upoważniająca wspólnika tej spółki do złożenia wniosku w imieniu wspólników – w przypadku gdy operacja będzie realizowana w ramach wykonywania działalności gospodarczej w formie spółki cywilnej i wspólnik składa wniosek w imieniu wspólników - kopia."]
[]
[]
[null,"6.",null,"Zaświadczenie wydane przez naczelnika właściwego urzędu skarbowego potwierdzające wpis w ewidencji podatników podatku dochodowego od osób fizycznych z tytułu prowadzenia działów specjalnych produkcji rolnej - w przypadku gdy podmiot ubiegający się o przyznanie pomocy prowadzi produkcję w zakresie działów specjalnych produkcji rolnej - oryginał."]
[]
[]
[null,"7.",null,"Dokumenty określone w:                                                                                                                                                                                                                                                                                                                                                                                 \na) załączniku nr 1 do rozporządzenia Ministra Rolnictwa i Rozwoju Wsi z dnia 13 lipca 2015 r. w sprawie szczegółowych warunków i trybu przyznawania, wypłaty oraz zwrotu pomocy finansowej na operacje typu „Premie dla młodych rolników” w ramach poddziałania „Pomoc w rozpoczęciu działalności gospodarczej na rzecz młodych rolników” objętego Programem Rozwoju Obszarów Wiejskich na lata 2014–2020 (Dz. U. z 2018 poz. 759 i 1021 i z 2019 r. poz 760)  potwierdzające posiadanie kwalifikacji zawodowych w zakresie wykształcenia,\nb) § 4 ust. 6b   rozporządzenia potwierdzające posiadanie kwalifikacji zawodowych w zakresie stażu pracy \n–  w przypadku operacji realizowanej przez \"młodego rolnika\"- kopie\n"]
[]
[]
[null,"8.",null,"Dokumenty potwierdzające osiągnięcie przychodu z tytułu prowadzenia działalności rolniczej, o którym mowa w § 2 ust. 3 rozporządzenia z wyjątkiem podmiotu ubiegającego się o przyznanie pomocy będącego rolnikiem, o którym mowa w § 2 ust. 3a rozporządzenia (rolnik będący osobą fizyczną, który prowadzi działalność rolniczą przez okres krótszy niż 12 miesięcy poprzedzających miesiąc złożenia wniosku o przyznanie pomocy) - kopia."]
[]
[]
[null,"9.",null,"Umowa, o której mowa w § 3 pkt 2 rozporządzenia  - w przypadku osób wspólnie wnioskujących – kopia."]
[]
[]
[null,"10.",null,"Kosztorys inwestorski – w przypadku gdy operacja obejmuje inwestycję polegającą na budowie, przebudowie lub remoncie połączonym z modernizacją  - oryginał."]
[]
[]
[null,"11.",null,"Umowa przedwstępna sprzedaży całej produkcji wytworzonej w gospodarstwie w związku z realizacją operacji, jeżeli podmiot ubiegający się o przyznanie pomocy jest w jej posiadaniu – w przypadku gdy w związku z realizacją operacji wzrośnie produkcja - kopia."]
[]
[]
[null,"12.",null,"Dokument albo dokumenty potwierdzające posiadanie samoistne lub zależne gospodarstwa, w którym będzie realizowana operacja, przy czym w przypadku posiadania samoistnego nieruchomości, dla której księga wieczysta jest prowadzona w systemie informatycznym, o którym mowa w art. 251 ustawy z dnia 6 lipca 1982 r. o księgach wieczystych i hipotece (Dz. U. z 2019 r. poz. 2204), jest wystarczające podanie numeru księgi wieczystej - kopia."]
[]
[]
[null,"13.",null,"Plan rozmieszczenia na terenie gospodarstwa budynków i budowli, a w przypadku operacji związanych z zakładaniem lub wyposażeniem plantacji wieloletnich – również tych plantacji, oraz rzuty budynków służących do produkcji rolnej wraz z ich rozplanowaniem wewnętrznym w zakresie niezbędnym do oceny realizowanej operacji – w przypadku operacji niedotyczącej wyłącznie zakupu maszyn lub urządzeń, które będą wykorzystywane wyłącznie poza budynkami i budowlami  - oryginał."]
[]
[]
[null,"14.",null,"Projekt budowlany – w przypadku gdy operacja obejmuje inwestycję polegającą na budowie, przebudowie lub remoncie połączonym z modernizacją, na realizację której wymagane jest uzyskanie pozwolenia na budowę - kopia."]
[]
[]
[null,"15.",null,"Rysunki planowanych do wykonania robót budowlanych umożliwiające poprawne zweryfikowanie kosztorysu inwestorskiego dołączonego do wniosku o przyznanie pomocy wraz z opisem zakresu planowanych robót budowlanych  i szkicem sytuacyjnym rozmieszczenia przedmiotu objętego operacją w stosunku do pozostałych budynków na terenie gospodarstwa rolnego – w przypadku operacji obejmujących inwestycję polegającą na budowie, przebudowie lub remoncie połączonym z modernizacją niewymagającej pozwolenia na budowę - oryginał."]
[]
[]
[null,"16.",null,"Ostateczne pozwolenia, zezwolenia lub inne decyzje, w tym dotyczące ocen oddziaływania na środowisko, których uzyskanie jest wymagane przez odrębne przepisy do realizacji inwestycji objętych operacją, a także inne dokumenty w tym opinie potwierdzające spełnienie określonych w odrębnych przepisach warunków realizacji inwestycji objętych operacją – w przypadku gdy w ramach operacji będą realizowane tego typu inwestycje, kopie."]
[]
[]
[null,"17.",null,"Zaświadczenie wydane przez powiatowego lekarza weterynarii dotyczące warunków utrzymania zwierząt gospodarskich w zakresie niezbędnym do ubiegania się lub otrzymania pomocy finansowej ze środków pochodzących z Europejskiego Funduszu Rolnego na rzecz Rozwoju Obszarów Wiejskich – w przypadku gdy operacja jest związana z produkcją zwierzęcą - oryginał."]
[]
[]
[null,"18.",null,"Dokumentacja dotycząca ewidencji środków trwałych oraz wartości niematerialnych i prawnych – w przypadku podmiotów  ubiegających się o przyznanie pomocy obowiązanych do prowadzenia ewidencji zgodnie z przepisami o podatku dochodowym od osób fizycznych lub przepisami o rachunkowości - kopia."]
[]
[]
[null,"19.",null,"Dokumentacja dotycząca wykazu środków trwałych oraz wartości niematerialnych i prawnych – w przypadku podmiotów ubiegających się o przyznanie pomocy obowiązanych do prowadzenia wykazu zgodnie z przepisami o zryczałtowanym podatku dochodowym od niektórych przychodów osiąganych przez osoby fizyczne - kopia."]
[]
[]
[null,"20.",null,"Dokumenty potwierdzające uczestnictwo podmiotu ubiegającego się o przyznanie pomocy w unijnym systemie jakości, o którym mowa w art. 16 ust. 1 lit. a rozporządzenia nr 1305/2013 lub krajowym systemie jakości, o którym mowa w art. 16 ust. 1 lit. b tego rozporządzenia w ramach działania „Systemy jakości produktów rolnych i środków spożywczych” objętego PROW 2014-2020 - kopia."]
[]
[]
[null,"21.",null,"Informacja o numerze rachunku bankowego podmiotu ubiegającego się o przyznanie pomocy – w przypadku gdy podmiot ten ubiega się o zaliczkę - oryginał."]
[]
[]
[null,"22.",null,"Inne dokumenty potwierdzające spełnienie warunków do przyznania pomocy:"]
[]
[]
[null,"22.1",null,null,null,null,null,null,null,null,null,null,null,null,null,null,null,null,null,null,null,null,null,null,null,null,null,null,null,null,null,null,null," "]
[]
[]
[null,"22.2",null,null,null,null,null,null,null,null,null,null,null,null,null,null,null,null,null,null,null,null,null,null,null,null,null,null,null,null,null,null,null," "]
[]
[]
[null,"22.3",null,null,null,null,null,null,null,null,null,null,null,null,null,null,null,null,null,null,null,null,null,null,null,null,null,null,null,null,null,null,null," "]
[]
[]
[null,"22.4",null,null,null,null,null,null,null,null,null,null,null,null,null,null,null,null,null,null,null,null,null,null,null,null,null,null,null,null,null,null,null," "]
[]
[]
[null,"22.5",null,null,null,null,null,null,null,null,null,null,null,null,null,null,null,null,null,null,null,null,null,null,null,null,null,null,null,null,null,null,null," "]
[null,"UWAGA: \nKopie dokumentów dołącza się w formie kopii potwierdzonych za zgodność z oryginałem przez pracownika ARiMR lub podmiot, który wydał dokument, albo poświadczonych za zgodność z oryginałem przez notariusza lub przez występującego w sprawie pełnomocnika będącego radcą prawnym lub adwokatem, z tym że kopie, o których mowa w pkt 9, 18 i 19 mogą być potwierdzone przez podmiot ubiegający się o przyznanie pomocy lub jedną z osób wspólnie wnioskujących."]

{"sheet":"VI.Inf.zał. NN","index":11,"n_rows":27,"n_cols":41,"rows_kept":27,"cut":false,"hidden":false,"merged":[[26,1,26,35],[23,1,25,2],[23,3,25,26],[23,27,25,29],[20,1,22,2],[20,3,22,26],[20,27,22,29],[14,1,16,2],[14,3,16,26],[14,27,16,29],[17,1,19,2],[17,3,19,26],[17,27,19,29],[9,1,13,2],[9,3,13,26],[9,27,13,29],[1,1,1,9],[1,10,1,35],[2,1,2,37],[3,1,5,29],[6,1,8,2],[6,3,8,26],[6,27,8,29]]}
[]
[null,"Podmiot (Imię i Nazwisko/Nazwa):",null,null,null,null,null,null,null,null,{"$f":"'I.i II Ogólne i  Ident.'!U34&'I.i II Ogólne i  Ident.'!W38&'I.i II Ogólne i  Ident.'!AD34&'I.i II Ogólne i  Ident.'!W38&'I.i II Ogólne i  Ident.'!C34","v":"  "}]
[]
[null,"Dodatkowe załączniki wymagane do przeprowadzenia weryfikacji wniosku o przyznanie pomocy następcy prawnego beneficjenta albo nabywcy gospodarstwa rolnego lub jego części"]
[]
[]
[null,"23.",null,"Dodatkowe dane dotyczące wniosku  o przyznanie pomocy następcy prawnego beneficjenta albo nabywcy gospodarstwa rolnego lub jego części - sporządzone na formularzu opracowanym i udostępnionym przez ARiMR (Załącznik Nr 2 do Wniosku o przyznanie pomocy) - oryginał."]
[null,null,null,null,null,null,null,null,null,null,null,null,null,null,null,null,null,null,null,null,null,null,null,null,null,null,null,null,null,null,null,null,null,null,null,null,null,null,null,null,"x"]
[]
[null,"24.",null,"Dokument potwierdzający fakt zaistnienia następstwa prawnego - kopia lub oświadczenie o trwającym  postępowaniu sądowym o stwierdzenie nabycia spadku albo w przedmiocie wydania europejskiego poświadczenia spadkowego ze wskazaniem sądu prowadzącego sprawę i sygnatury akt sprawy  - oryginał."]
[]
[]
[]
[]
[null,"25.",null,"Dokument potwierdzający fakt nabycia gospodarstwa lub jego części - kopia.                                      "]
[]
[]
[null,"26.",null,"Oświadczenie następcy prawnego o jego wstąpieniu w prawa i obowiązki beneficjenta wynikające z umowy o przyznaniu pomocy - sporządzone na formularzu udostępnionym przez ARiMR (Załącznik nr 3 do Wniosku o przyznanie pomocy) - oryginał."]
[]
[]
[null,"27.",null,"Oświadczenie osoby wspólnie wnioskującej o wyrażeniu zgody na przyznanie pomocy następcy prawnemu jednego z beneficjentów albo nabywcy gospodarstwa lub jego części, sporządzone na formularzu udostępnionym przez ARiMR - (Załącznik nr 4 do Wniosku o przyznanie pomocy) - oryginał."]
[]
[]
[null,"28.",null,"Umowa cesji wierzytelności - w przypadku, gdy podmiotem ubiegającym się o przyznanie pomocy jest nabywca gospodarstwa beneficjenta lub jego części i nie zostały zrealizowane przez ARiMR wszystkie płatności na rzecz beneficjenta – kopia."]
[]
[]
[null,"UWAGA: \nKopie dokumentów dołącza się w formie kopii potwierdzonych za zgodność z oryginałem przez  pracownika ARiMR lub podmiot, który wydał dokument, albo poświadczonych za zgodność z oryginałem przez notariusza lub przez występującego w sprawie pełnomocnika będącego radcą prawnym albo adwokatem."]

{"sheet":"VII. Ośw. Podmiotu","index":12,"n_rows":78,"n_cols":40,"rows_kept":78,"cut":false,"hidden":false,"merged":[[48,2,48,36],[49,2,49,36],[71,24,71,36],[56,4,57,36],[18,2,18,36],[39,3,39,36],[33,1,33,34],[41,2,41,36],[26,2,26,36],[35,22,36,35],[25,2,25,35],[27,2,27,36],[78,1,78,34],[74,2,74,36],[64,1,64,2],[70,3,70,17],[50,2,50,36],[61,24,61,36],[62,3,62,16],[62,24,63,36],[63,3,63,17],[69,2,69,36],[67,4,68,36],[65,4,66,36],[77,23,77,35],[70,24,70,35],[71,3,71,16],[79,1,79,35],[72,1,72,36],[28,2,28,36],[29,2,29,36],[30,2,30,36],[75,2,76,15],[77,3,77,13],[75,23,76,35],[47,2,47,36],[58,4,59,36],[51,2,51,36],[53,1,53,2],[53,3,54,36],[64,3,64,36],[60,2,60,36],[61,3,61,16],[1,1,1,9],[1,10,1,35],[13,2,14,5],[11,24,11,32],[9,33,9,34],[2,3,2,26],[5,2,5,21],[13,6,14,35],[9,29,9,30],[5,33,5,34],[5,24,5,32],[7,6,8,35],[3,2,3,34],[4,1,4,32],[11,2,11,20],[10,2,10,27],[45,2,45,36],[46,2,46,36],[37,2,37,12],[40,1,40,35],[42,2,42,36],[43,2,43,36],[44,2,44,36],[39,1,39,2],[37,22,37,35],[7,2,8,5],[31,2,31,36],[32,1,32,36],[35,1,36,14],[19,2,19,36],[22,2,22,36],[21,2,21,36],[20,2,20,36],[17,2,17,36],[16,2,16,36],[24,2,24,36],[23,2,23,36]]}
[]
[null,"Podmiot (Imię i Nazwisko/Nazwa):",null,null,null,null,null,null,null,null,{"$f":"'I.i II Ogólne i  Ident.'!U34&'I.i II Ogólne i  Ident.'!W38&'I.i II Ogólne i  Ident.'!AD34&'I.i II Ogólne i  Ident.'!W38&'I.i II Ogólne i  Ident.'!C34","v":"  "}]
[]
[null,null,"VII. OŚWIADCZENIE PODMIOTU UBIEGAJĄCEGO SIĘ O PRZYZNANIE POMOCY"]
[]
[null,"1a.","Wnioskuję o przyznanie pomocy finansowej w wysokości:",null,null,null,null,null,null,null,null,null,null,null,null,null,null,null,null,null,null,null,null,null,{"$f":"V.Finans.!AD113","v":0},null,null,null,null,null,null,null,null,"zł"]
[]
[null,null,"słownie zł.:",null,null,null,{"$f":"Słownie(TRUE,Y6)","v":"zero"}]
[]
[]
[]
[null,"1b.","Wnioskuję o wypłatę zaliczki w wysokości5:",null,null,null,null,null,null,null,null,null,null,null,null,null,null,null,null,null,null,null,null,null,{"$f":"V.Finans.!Y123+(V.Finans.!AH123)/100","v":0},null,null,null,null,null,null,null,null,"zł"]
[]
[null,null,"słownie zł.:",null,null,null,{"$f":"Słownie(TRUE,Y12)","v":"zero"}]
[]
[]
[null,"2.","Oświadczam, że znane mi są zasady ubiegania się i przyznawania pomocy określone w przepisach rozporządzenia Ministra Rolnictwa i Rozwoju Wsi z dnia 21 sierpnia 2015 r. w sprawie szczegółowych warunków i trybu przyznawania oraz wypłaty pomocy finansowej na operacje typu „Modernizacja gospodarstw rolnych” w ramach poddziałania „Wsparcie inwestycji w gospodarstwach rolnych” objętego Programem Rozwoju Obszarów Wiejskich na lata 2014–2020 (Dz. U. poz. 1371, z późn. zm.) oraz zasady wypełniania wniosku zawarte w Instrukcji wypełniania wniosku o przyznanie pomocy (dalej: wniosek), w tym zasady refundacji kosztów kwalifikowalnych określonych we wniosku, poniesionych w związku z realizacją operacji oraz zasady udzielania zaliczek.        "]
[null,"3.","Oświadczam, że koszty kwalifikowalne w niniejszym wniosku nie będą finansowane z innych środków publicznych. Oświadczam również, że znane mi są zasady łączenia pomocy finansowej udzielanej w ramach Programu Rozwoju Obszarów Wiejskich na lata 2014-2020 z pomocą w formie gwarancji udzielanych z Funduszu Gwarancji Rolnych, w odniesieniu do tego samego kosztu kwalifikowalnego, zgodnie z art. 37 ust. 7–9 rozporządzenia Parlamentu Europejskiego i Rady (UE) nr 1303/2013 z dnia 17 grudnia 2013 r. ustanawiającego wspólne przepisy dotyczące Europejskiego Funduszu Rozwoju Regionalnego, Europejskiego Funduszu Społecznego, Funduszu Spójności, Europejskiego Funduszu Rolnego na rzecz Rozwoju Obszarów Wiejskich oraz Europejskiego Funduszu Morskiego i Rybackiego oraz ustanawiającym przepisy ogólne dotyczące Europejskiego Funduszu Rozwoju Regionalnego, Europejskiego Funduszu Społecznego, Funduszu Spójności i Europejskiego Funduszu Morskiego i Rybackiego oraz uchylającym rozporządzenie Rady (WE) nr 1083/2006 (Dz. Urz. UE L 347 z 20.12.2013, str. 320, z późn. zm.), z zachowaniem poziomów intensywności pomocy określonych w załączniku II do rozporządzenia Parlamentu Europejskiego i Rady (UE) nr 1305/2013 z dnia 17 grudnia 2013 r. w sprawie wsparcia rozwoju obszarów wiejskich przez Europejski Fundusz Rolny na rzecz Rozwoju Obszarów Wiejskich (EFRROW) i uchylającym rozporządzenie Rady (WE) nr 1698/2005 (Dz. Urz. UE L 347 z 20.12.2013, str. 487, z późn. zm.). \n"]
[null,"4.","Oświadczam, że realizacja operacji nie jest możliwa bez udziału środków publicznych."]
[null,"5.","Oświadczam, że informacje zawarte we wniosku oraz jego załącznikach są prawdziwe i zgodne ze stanem prawnym i faktycznym, znane mi są skutki składania fałszywych oświadczeń wynikajace z art. 297 § 1 ustawy z dnia 6 czerwca 1997 r. Kodeks karny (Dz. U.  z  2019 r. poz. 1950 i 2128)."]
[null,"6.","Oświadczam, że nie podlegam zakazowi dostępu do środków publicznych, o których mowa w art. 5 ust. 3 pkt 4 ustawy z dnia 27 sierpnia 2009 r. o finansach publicznych (Dz. U. z 2019 r. poz. 869, 1622, 1649, 2020 oraz z 2020 r. poz. 284 i 374), na podstawie prawomocnego orzeczenia sądu. Jednocześnie zobowiązuję się do niezwłocznego poinformowania Agencji o zakazie dostępu do środków publicznych, na podstawie prawomocnego orzeczenia sądu, orzeczonym w stosunku do mnie po złożeniu wniosku o przyznanie pomocy."]
[null,"7.","Oświadczam, że znane mi są regulacje art. 59 ust. 7 rozporządzenia Parlamentu Europejskiego i Rady (UE) nr  1306/2013 z dnia 17 grudnia 2013 r. w sprawie finansowania wspólnej polityki rolnej, zarządzania nią i monitorowania jej oraz uchylającego rozporządzenia Rady (EWG) nr 352/78, (WE) nr 165/94, (WE) nr 2799/98, (WE) nr 814/2000, (WE) nr 1290/2005 i (WE) nr 485/2008 (Dz. Urz. UE L 347 z 20.12.2013, str. 549, z późn. zm.) stanowiące, iż wniosek o przyznanie pomocy jest odrzucany, jeżeli Podmiot ubiegający się o przyznanie pomocy lub jego przedstawiciel uniemożliwia przeprowadzenie kontroli na miejscu, z wyjątkiem przypadków siły wyższej lub nadzwyczajnych okoliczności.\n"]
[null,"8.","Oświadczam, że znane mi są regulacje dotyczące prowadzenia oddzielnego systemu rachunkowości albo korzystania z odpowiedniego kodu rachunkowego, o których mowa w art. 66 ust. 1 lit. c pkt i rozporządzenia Parlamentu Europejskiego i Rady (UE) nr 1305/2013 z dnia 17 grudnia 2013 r. w sprawie wsparcia rozwoju obszarów wiejskich przez Europejski Fundusz Rolny na rzecz Rozwoju Obszarów Wiejskich (EFRROW) i uchylającego rozporządzenie Rady (WE) nr 1698/2005 (Dz. Urz. UE L 347 z 20.12.2013, str. 487, z późn. zm.), dla wszystkich transakcji związanych z realizacją operacji, w ramach prowadzonych ksiąg rachunkowych albo przez prowadzenie zestawienia faktur lub równoważnych dokumentów księgowych na formularzu udostępnionym przez ARiMR, gdy beneficjent nie jest zobowiązany do prowadzenia ksiąg rachunkowych na podstawie przepisów odrębnych."]
[null,"9.","Jestem świadomy, że zgodnie z art. 35 ust. 5 oraz ust. 6 rozporządzenia delegowanego Komisji (UE) nr 640/2014 z dnia 11 marca 2014 r. uzupełniającego  rozporządzenie  Parlamentu  Europejskiego i  Rady  (UE) nr  1306/2013 w  odniesieniu  do  zintegrowanego  systemu  zarządzania i  kontroli  oraz  warunków  odmowy lub  wycofania  płatności  oraz  do  kar  administracyjnych  mających  zastosowanie  do  płatności bezpośrednich, wsparcia rozwoju obszarów wiejskich oraz zasady wzajemnej zgodności w przypadku ustalenia poważnej niezgodności/przedstawienia fałszywych dowodów w celu otrzymania wsparcia lub w wyniku zaniedbania nie dostarczenia niezbędnych informacji, wsparcia odmawia się lub cofa się je w całości oraz że zostanę wykluczony z takiego samego środka lub rodzaju operacji w roku kalendarzowym, w którym stwierdzono niezgodność, oraz w kolejnym roku kalendarzowym."]
[null,"10.","Oświadczam, że znane mi są regulacje dotyczące obowiązku ponoszenia wszystkich kosztów kwalifikowalnych operacji z zachowaniem zasad równego traktowania, uczciwej konkurencji i przejrzystości oraz dołożenia wszelkich starań w celu uniknięcia konfliktu interesów, rozumianego jako brak bezstronności i obiektywności w wypełnianiu zadań objętych umową. W związku z tym zobowiązuję się do ponoszenia kosztów kwalifikowalnych operacji, zgodnie z przepisami ustawy określającymi konkurencyjny tryb wyboru wykonawcy i przepisami wydanymi na podstawie art. 43a ust. 6 ustawy o wspieraniu rozwoju obszarów wiejskich z udziałem środków Europejskiego Funduszu Rolnego na rzecz Rozwoju Obszarów Wiejskich w ramach Programu Rozwoju Obszarów Wiejskich na lata 2014–2020 (Dz. U. z 2020 r. poz. 217 i 300) – w przypadku gdy te przepisy mają zastosowanie."]
[null,"11.","Przyjmuję do wiadomości, iż Prezes ARiMR poda do publicznej wiadomości, na stronie internetowej administrowanej przez ARiMR, informację o kolejności przysługiwania pomocy, ustalonej przy zastosowaniu kryteriów oceny operacji. "]
[null,"12.","Przyjmuję do wiadomości, że dane beneficjenta mogą być przetwarzane przez organy audytowe i dochodzeniowe Unii Europejskiej i państw członkowskich dla zabezpieczenia interesów finansowych Unii Europejskiej."]
[null,"13.","Przyjmuję do wiadomości, iż dane Beneficjenta oraz kwota wypłaty pomocy z publicznych środków finansowych, w tym wypłacona kwota z tytułu udzielonej pomocy na operacje typu „Modernizacja gospodarstw rolnych” w ramach poddziałania \"Wsparcie inwestycji w gospodarstwach rolnych” objętego Programem Rozwoju Obszarów Wiejskich na lata 2014–2020 będzie publikowana na stronie internetowej MRiRW."]
[null,"14.","Przyjmuję do wiadomości, że zaliczki w danym roku kalendarzowym będą wypłacane jedynie do wysokości środków finansowych, ustalonych na zabezpieczenie płatności w ramach PROW na lata 2014-2020 w danym roku budżetowym. Brak środków finansowych w danym roku budżetowym nie może stanowić podstawy do roszczeń z tytułu przekroczenia terminu rozpatrywania wniosku lub odmowy wypłaty zaliczki6."]
[null,"15.","Przyjmuję do wiadomości, że zaliczka wykorzystana niezgodnie z przeznaczeniem, pobrana nienależnie lub w nadmiernej wysokości podlega zwrotowi przez Beneficjenta wraz z odsetkami w wysokości określonej jak dla zaległości podatkowych, liczonymi od dnia przekazania zaliczki, w terminie 14 dni od dnia doręczenia wezwania do jej zwrotu zgodnie z Ustawą z dnia 27 maja 2015 r. o finansowaniu wspólnej polityki rolnej (Dz. U. z 2018 r. poz. 719) 6."]
[null,"16.","Przyjmuję do wiadomości, że zwrotowi, o którym mowa w pkt. 15, podlega odpowiednio ta część zaliczki, która została wykorzystana niezgodnie z przeznaczeniem albo pobrana nienależnie lub w nadmiernej wysokości6."]
[null,"17.","Oświadczam, że zapoznałem się z Informacjami dotyczącymi przetwarzania danych osobowych zawartymi w części VII A. wniosku o przyznanie pomocy."]
[null,"6 Dotyczy podmiotów ubiegających się o przyznanie pomocy, ubiegających się o zaliczkę."]
[]
[]
[]
[]
[null,null,"(miejscowość i data)",null,null,null,null,null,null,null,null,null,null,null,null,null,null,null,null,null,null,null,"(czytelny podpis podmiotu ubiegającego się o przyznanie pomocy/ osoby reprezentującej ten podmiot/ pełnomocnika tego podmiotu)"]
[]
[null,"VII A. ",null,"INFORMACJE DOTYCZĄCE PRZETWARZANIA DANYCH OSOBOWYCH (DOTYCZY OSÓB FIZYCZNYCH)"]
[null,"W związku z treścią art. 13 Rozporządzenia RODO, Agencja Restrukturyzacji i Modernizacji Rolnictwa informuje, że:"]
[null,"1)","administratorem Pani/Pana danych osobowych (dalej: Administrator)  jest Agencja Restrukturyzacji i Modernizacji Rolnictwa z siedzibą w Warszawie, Al. Jana Pawła II 70, 00-175 Warszawa;"]
[null,"2)","z Administratorem  może Pani/Pan kontaktować się poprzez adres e-mail: info@arimr.gov.pl lub pisemnie na adres korespondencyjny Centrali Agencji Restrukturyzacji i Modernizacji Rolnictwa, ul. Poleczki 33, 02-822 Warszawa;"]
[null,"3)","Administrator  wyznaczył inspektora ochrony danych, z którym może Pani/Pan kontaktować się w sprawach dotyczących przetwarzania danych osobowych oraz korzystania z praw związanych z przetwarzaniem danych, poprzez adres e-mail: iod@arimr.gov.pl lub pisemnie na adres korespondencyjny administratora, wskazany w pkt 2;"]
[null,"4)","zebrane Pani/Pana dane osobowe będą przetwarzane przez Administratora na podstawie art. 6 ust. 1 lit. c Rozporządzenia RODO, gdy jest to niezbędne do wypełnienia obowiązku prawnego ciążącego na Administratorze  (dane obowiązkowe) lub art. 6 ust. 1 lit. a Rozporządzenia RODO, tj. na podstawie odrębnej zgody na przetwarzanie danych osobowych, która obejmuje zakres danych szerszy, niż to wynika z powszechnie obowiązującego prawa (dane nieobowiązkowe*);\n"]
[null,"5)","Pani/ Pana dane osobowe, zebrane na podstawie art. 6 ust. 1 lit. c Rozporządzenia RODO, będą przetwarzane przez Administratora w celu realizacji zadań wynikających z art. 1 pkt 1 w związku z art. 3 ust. 1 pkt. 4 lit. a oraz art. 6 ust. 2 Ustawy z dnia 20 lutego 2015 r. o wspieraniu rozwoju obszarów wiejskich z udziałem środków Europejskiego Funduszu Rolnego na rzecz Rozwoju Obszarów Wiejskich w ramach Programu Rozwoju Obszarów Wiejskich na lata 2014-2020 (Dz. U. z 2020 r. poz. 217 i 300) w związku Rozporządzeniem Ministra Rolnictwa i Rozwoju Wsi z dnia 21 sierpnia 2015 r. w sprawie szczegółowych warunków i trybu przyznawania oraz wypłaty pomocy finansowej na operacje typu „Modernizacja gospodarstw rolnych” w ramach poddziałania „Wsparcie inwestycji w gospodarstwach rolnych” objętego Programem Rozwoju Obszarów Wiejskich na lata 2014–2020 (Dz. U. z 2015 r.  poz. 1371, z późn. zm.),  tj. przyznania pomocy na operację typu „Modernizacja gospodarstw rolnych\";"]
[null,"6)","zebrane Pani/Pana dane osobowe mogą być udostępniane podmiotom publicznym uprawnionym do przetwarzania danych osobowych na podstawie przepisów powszechnie obowiązującego prawa oraz podmiotom przetwarzającym dane osobowe na zlecenie Administratora w związku z wykonywaniem powierzonego im zadania w drodze zawartej umowy, m.in. dostawcom IT;\n"]
[null,"7)","Pani/ Pana dane osobowe zebrane, na podstawie art. 6 ust. 1 lit. c Rozporządzenia RODO będą przetwarzane przez okres realizacji zadań, o których mowa w pkt 5, związany z przyznawaniem pomocy w ramach poddziałania  „Wsparcie inwestycji w gospodarstwach rolnych” objętego Programem Rozwoju Obszarów Wiejskich na lata 2014–2020 na operację typu „Modernizacja gospodarstw rolnych\", w tym:\na) w przypadku przyznania pomocy - przez okres realizacji zobowiązania do dnia upływu 5 lat od wypłaty pierwszej raty pomocy oraz przez okres 5 lat przewidziany na potrzeby archiwizacji, licząc od dnia 1 stycznia roku następującego po roku, w którym upłynie okres zobowiązań,\nb) w przypadku odmowy przyznania pomocy – przez okres jaki upłynie do uprawomocnienia decyzji o odmowie przyznania pomocy oraz przez okres 5 lat przewidziany na potrzeby archiwizacji, licząc od dnia 1 stycznia roku następującego po roku, w którym decyzja o odmowie przyznania pomocy stała się prawomocna.\nOkres przechowywania danych może zostać każdorazowo przedłużony o okres przedawnienia roszczeń, jeżeli przetwarzanie danych będzie niezbędne do dochodzenia roszczeń lub do obrony przed takimi roszczeniami przez administratora danych;"]
[null,"8)","Pani/Pana dane osobowe zebrane, na podstawie art. 6 ust. 1 lit. a Rozporządzenia RODO, tj. na podstawie odrębnej zgody na przetwarzanie danych osobowych (dane nieobowiązkowe) będą przetwarzane w okresach wskazanych w pkt 7, w tym przez okres realizacji celów, o których mowa w sekcji VII.B lub VII.C poniżej lub do czasu jej odwołania lub zmiany.\nPonadto, okres przechowywania danych może zostać przedłużony na okres potrzebny do przeprowadzenia archiwizacji;\n"]
[null,"9)","przysługuje Pani/Panu prawo dostępu do Pani/Pana danych, prawo żądania ich sprostowania, usunięcia lub ograniczenia ich przetwarzania, w przypadkach określonych w Rozporządzeniu RODO. Ponadto w zakresie danych pozyskanych na podstawie art. 6 ust. 1 lit a, tj. na podstawie odrębnej zgody na przetwarzanie danych osobowych przysługuje Pani/Panu prawo do przenoszenia tych danych;"]
[null,"10)"," w przypadku uznania, że przetwarzanie danych osobowych narusza przepisy Rozporządzenia RODO, przysługuje Pani/ Panu prawo wniesienia skargi do Prezesa Urzędu Ochrony Danych Osobowych;"]
[null,"11)","podanie Pani/ Pana danych osobowych na podstawie art. 6 ust. 1 lit. c Rozporządzenia RODO wynika z obowiązku zawartego w przepisach obowiązującego prawa, a konsekwencją niepodania tych danych osobowych będzie pozostawienie wniosku bez rozpatrzenia/odmowa przyznania pomocy po uprzednim dwukrotnym wezwaniu do uzupełnienia braków we wniosku."]
[]
[null,"VII B. ",null,"ZGODA PODMIOTU UBIEGAJĄCEGO SIĘ O PRZYZNANIE POMOCY NA PRZETWARZANIE DANYCH OSOBOWYCH"]
[]
[]
[null,null,null,null,"Wyrażam zgodę na przetwarzanie przez Agencję Restrukturyzacji i Modernizacji Rolnictwa z siedzibą w Warszawie, Al. Jana Pawła II nr 70, 00-175 Warszawa (adres do korespondencji: ul. Poleczki 33, 02-822 Warszawa), jako Administratora, moich danych osobowych podanych w zakresie szerszym, niż jest to wymagane na podstawie przepisów powszechnie obowiązującego prawa, oznaczonych w części II formularza wniosku jako „dane nieobowiązkowe”,  w celu ułatwienia i przyspieszenia kontaktu w sprawach dotyczących złożonego wniosku.",null,null,null,null,null,null,null,null,null,null,null,null,null,null,null,null,null,null,null,null,null,null,null,null,null,null,null,null,null,null,null,null,null,null,"X"]
[]
[null,null,null,null,"Wyrażam zgodę na przetwarzanie przez Agencję Restrukturyzacji i Modernizacji Rolnictwa z siedzibą w Warszawie, Al. Jana Pawła II nr 70, 00-175 Warszawa (adres do korespondencji: ul. Poleczki 33, 02-822 Warszawa), jako Administratora, moich danych osobowych podanych w zakresie szerszym, niż jest to wymagane na podstawie przepisów powszechnie obowiązującego prawa, oznaczonych w  części II. formularza wniosku, jako „dane nieobowiązkowe”, w celu otrzymywania/kierowania do mnie treści informacyjnych lub promocyjnych o działaniach realizowanych przez Agencję, za pośrednictwem SMS/MMS na podany przeze mnie numer telefonu."]
[]
[null,null,"Podanie danych oznaczonych jako nieobowiązkowe jest dobrowolne, a ich niepodanie nie wpływa na proces przyjęcia i rozpatrzenia wniosku. Niepodanie tych danych uniemożliwi jedynie realizację celów wskazanych w  treści poszczególnych zgód. Każdą z powyższych zgód można wycofać w dowolnym momencie, poprzez przesłanie „oświadczenia o wycofaniu zgody” na adres korespondencyjny Administratora danych z dopiskiem „Ochrona danych osobowych” lub na adres poczty elektronicznej (info@arimr.gov.pl, iod@arimr.gov.pl). Wycofanie zgody nie wpływa na zgodność z prawem przetwarzania, którego dokonano na podstawie zgody przed jej wycofaniem."]
[]
[null,null,null,"miejscowość i data",null,null,null,null,null,null,null,null,null,null,null,null,null,null,null,null,null,null,null,null,"(czytelny podpis podmiotu ubiegającego się o przyznanie pomocy/ pełnomocnika tego podmiotu)"]
[]
[null,"VII C. ",null,"ZGODA PEŁNOMOCNIKA PODMIOTU UBIEGAJĄCEGO SIĘ O PRZYZNANIE POMOCY NA PRZETWARZANIE DANYCH OSOBOWYCH\n"]
[null,null,null,null,"Wyrażam zgodę na przetwarzanie przez Agencję Restrukturyzacji i Modernizacji Rolnictwa z siedzibą w Warszawie, Al. Jana Pawła II nr 70, 00-175 Warszawa (adres do korespondencji: ul. Poleczki 33, 02-822 Warszawa), jako Administratora, moich danych osobowych podanych w zakresie szerszym, niż jest to wymagane na podstawie przepisów powszechnie obowiązującego prawa, oznaczonych w części II formularza wniosku jako „dane nieobowiązkowe”,  w celu ułatwienia i przyspieszenia kontaktu w sprawach dotyczących złożonego wniosku."]
[]
[null,null,null,null,"Wyrażam zgodę na przetwarzanie przez Agencję Restrukturyzacji i Modernizacji Rolnictwa z siedzibą w Warszawie, Al. Jana Pawła II nr 70, 00-175 Warszawa (adres do korespondencji: ul. Poleczki 33, 02-822 Warszawa), jako Administratora, moich danych osobowych podanych w zakresie szerszym, niż jest to wymagane na podstawie przepisów powszechnie obowiązującego prawa, oznaczonych w  części II. formularza wniosku, jako „dane nieobowiązkowe”, w celu otrzymywania/kierowania do mnie treści informacyjnych lub promocyjnych o działaniach realizowanych przez Agencję, za pośrednictwem SMS/MMS na podany przeze mnie numer telefonu."]
[]
[null,null,"Podanie danych oznaczonych jako nieobowiązkowe jest dobrowolne, a ich niepodanie nie wpływa na proces przyjęcia i rozpatrzenia wniosku. Niepodanie tych danych uniemożliwi jedynie realizację celów wskazanych w  treści poszczególnych zgód. Każdą z powyższych zgód można wycofać w dowolnym momencie, poprzez przesłanie „oświadczenia o wycofaniu zgody” na adres korespondencyjny Administratora danych z dopiskiem „Ochrona danych osobowych” lub na adres poczty elektronicznej (info@arimr.gov.pl, iod@arimr.gov.pl). Wycofanie zgody nie wpływa na zgodność z prawem przetwarzania, którego dokonano na podstawie zgody przed jej wycofaniem.\n"]
[]
[null,null,null,"miejscowość i data",null,null,null,null,null,null,null,null,null,null,null,null,null,null,null,null,null,null,null,null,"(czytelny podpis pełnomocnika podmiotu ubiegajacego się o przyznanie pomocy)"]
[null,"VII D. OŚWIADCZENIE WOBEC ARiMR O WYPEŁNIENIU OBOWIĄZKU INFORMACYJNEGO WOBEC INNYCH OSÓB FIZYCZNYCH"]
[]
[null,null,"1. ARiMR informuje, że staje się administratorem danych osobowych osoby/osób fizycznych, pozyskanych od Podmiotu ubiegającego się o przyznanie pomocy, które to dane osobowe Podmiot bezpośrednio lub pośrednio pozyskał w celu przyznania pomocy.\n2. Podmiot ubiegający się o przyznanie pomocy oświadcza, że dane osobowe, o których mowa w pkt 1, przetwarza zgodnie z obowiązującymi w tym zakresie regulacjami prawnymi i jest uprawniony do ich przekazania ARiMR oraz uczynił zadość wszelkim obowiązkom związanym z ich przekazaniem, a w szczególności poinformował osobę/osoby, których dane przekazuje, o fakcie i celu ich przekazania.\n3. Podmiot ubiegający się o przyznanie pomocy oświadcza, iż poinformował osobę/osoby fizyczne, o których mowa w pkt 1, o treści klauzuli stanowiącej Załącznik nr 5 do wniosku o przyznanie pomocy."]
[null,null,null,null,null,null,null,null,null,null,null,null,null,null,null,null,null,null,null,null,null,null,null," "]
[]
[null,null,null,"(miejscowość i data)",null,null,null,null,null,null,null,null,null,null,null,null,null,null,null,null,null,null,null,"(czytelny podpis podmiotu ubiegającego się o przyznanie pomocy/ osoby reprezentującej ten podmiot/ pełnomocnika tego podmiotu)"]

{"sheet":"Zał 1. Oświadczenia współ 3","index":13,"n_rows":55,"n_cols":42,"rows_kept":55,"cut":false,"hidden":false,"merged":[[42,1,42,36],[50,2,50,36],[33,1,35,16],[33,20,35,36],[49,2,49,36],[36,2,36,16],[36,20,36,36],[38,20,38,36],[39,20,39,36],[23,1,24,36],[25,2,25,36],[27,1,27,36],[28,1,28,36],[30,1,31,36],[26,1,26,36],[20,1,20,36],[21,1,21,36],[22,1,22,36],[19,1,19,36],[0,32,0,36],[1,1,1,28],[1,32,1,36],[2,32,2,36],[3,1,6,18],[3,33,3,35],[4,33,4,35],[7,2,7,18],[8,3,8,35],[10,3,11,36],[13,3,14,36],[16,3,17,36],[51,2,51,36],[52,2,52,36],[53,2,53,36],[54,2,54,36],[44,1,44,36],[45,2,45,36],[46,2,46,36],[47,2,47,36],[48,2,48,36]]}
[]
[null,"Załącznik Nr 1 do wniosku o przyznanie pomocy ",null,null,null,null,null,null,null,null,null,null,null,null,null,null,null,null,null,null,null,null,null,null,null,null,null,null,null,null,null,null,"W-1.1_4.1.3"]
[]
[]
[]
[]
[]
[null,null,"(Imię i Nazwisko, Adres, PESEL, NIP/ Nazwa, Adres siedziby, NIP/NIP oddziału przedsiębiorcy zagranicznego, REGON)"]
[null,null,null,"Oświadczenie"]
[]
[null,null,null,"Właściciela albo współwłaściciela gospodarstwa albo jego części o wyrażeniu zgody na realizację operacji,  w przypadku gdy operacja będzie realizowana w gospodarstwie niestanowiącym własności podmiotu ubiegającego się o przyznanie pomocy albo stanowiącym współwłasność tego podmiotu i nie dotyczy wyłącznie nabycia rzeczy ruchomych, które nie wymagają instalacji"]
[null,null,null,null,null,null,null,null,null,null,null,null,null,null,null,null,null,null,null,null,null,null,null,null,null,null,null,null,null,null,null,null,null,null,null,null,null,null,null,null,null,"x"]
[]
[null,null,null,"Współposiadacza gospodarstwa o wyrażeniu zgody na ubieganie się o przyznanie pomocy przez podmiot ubiegający się o przyznanie pomocy, w przypadku gdy operacja będzie realizowana w gospodarstwie stanowiącym przedmiot współposiadania"]
[]
[]
[null,null,null,"Współposiadacza nieruchomości wchodzącej w skład gospodarstwa o wyrażeniu zgody na ubieganie się o przyznanie pomocy przez podmiot ubiegający się o przyznanie pomocy - w przypadku gdy operacja będzie realizowana w gospodarstwie, w skład którego wchodzi działka ewidencyjna będąca przedmiotem współposiadania, z wyłączeniem współposiadania nieruchomości w ramach wspólnot gruntowych"]
[]
[]
[null,"Oświadczam, iż wyrażam zgodę na ubieganie się o przyznanie pomocy/ realizację operacji przez:"]
[]
[null,"(Imię i Nazwisko podmiotu ubiegającego się o przyznanie pomocy, Adres Nazwa podmiotu, Adres siedziby, NIP, REGON)"]
[null,"w ramach poddziałania „Wsparcie inwestycji w gospodarstwach rolnych” PROW 2014-2020, typ operacji „Modernizacja gospodarstw rolnych”, celem realizacji operacji polegającej na:"]
[]
[]
[null,null,"(zakres operacji)"]
[null,"w gospodarstwie zlokalizowanym w:"]
[]
[null,"(adres gospodarstwa i nr działki/działek)"]
[]
[null,"Jednocześnie oświadczam, że jestem świadomy, iż pomoc udzielona współposiadaczowi gospodarstwa wpływa na zmniejszenie ogólnego limitu pomocy na jedno gospodarstwo i jednego beneficjenta, a pomoc udzielona współposiadaczowi nieruchomości  wchodzącej w skład gospodarstwa może mieć wpływ na zmniejszenie tego limitu. Jednocześnie zobowiązuję się do umożliwienia wskazanemu wyżej podmiotowi ubiegającemu się o przyznanie pomocy realizacji wieloletnich zobowiązań związanych z operacją."]
[]
[]
[]
[]
[]
[null,null,"(miejscowość i data)",null,null,null,null,null,null,null,null,null,null,null,null,null,null,null,null,null,"(czytelny podpis właściciela albo współposiadacza/ osoby reprezentującej właściciela albo współposiadacza/ pełnomocnika właściciela albo współposiadacza)"]
[]
[]
[null,null,null,null,null,null,null,null,null,null,null,null,null,null,null,null,null,null,null,null,"(czytelny podpis podmiotu ubiegającego się o przyznanie pomocy/ osoby reprezentującej ten podmiot/ pełnomocnika tego podmiotu)"]
[]
[]
[null,"INFORMACJE DOTYCZĄCE PRZETWARZANIA DANYCH OSOBOWYCH (DOTYCZY OSÓB FIZYCZNYCH)"]
[]
[null,"W związku z treścią art. 13 Rozporządzenia RODO, Agencja Restrukturyzacji i Modernizacji Rolnictwa informuje, że:"]
[null,"1)","administratorem Pani/Pana danych osobowych (dalej: Administrator)  jest Agencja Restrukturyzacji i Modernizacji Rolnictwa z siedzibą w Warszawie, Al. Jana Pawła II 70, 00-175 Warszawa;\n"]
[null,"2)","z Administratorem  może Pani/Pan kontaktować się poprzez adres e-mail: info@arimr.gov.pl lub pisemnie na adres korespondencyjny Centrali Agencji Restrukturyzacji i Modernizacji Rolnictwa, ul. Poleczki 33, 02-822 Warszawa;"]
[null,"3)","Administrator  wyznaczył inspektora ochrony danych, z którym może się Pani/ Pan kontaktować w sprawach dotyczących przetwarzania danych osobowych oraz korzystania z praw związanych z przetwarzaniem danych, poprzez adres e-mail: iod@arimr.gov.pl lub pisemnie na adres korespondencyjny administratora danych, wskazany w pkt 2; "]
[null,"4)","zebrane Pani/Pana dane osobowe będą przetwarzane przez Administratora na podstawie art. 6 ust. 1 lit. c Rozporządzenia RODO, gdy jest to niezbędne do wypełnienia obowiązku prawnego ciążącego na Administratorze  (dane obowiązkowe);"]
[null,"5)","Pani/Pana dane osobowe, zebrane na podstawie art. 6 ust. 1 lit. c Rozporządzenia RODO, będą przetwarzane przez Administratora w celu realizacji zadań wynikających z art. 1 pkt 1 w związku z art. 3 ust. 1 pkt. 4 lit. a oraz art. 6 ust. 2 Ustawy z dnia 20 lutego 2015 r. o wspieraniu rozwoju obszarów wiejskich z udziałem środków Europejskiego Funduszu Rolnego na rzecz Rozwoju Obszarów Wiejskich w ramach Programu Rozwoju Obszarów Wiejskich na lata 2014-2020 (Dz. U. z 2020 r. poz. 217 i 300) w związku z rozporządzeniem Ministra Rolnictwa i Rozwoju Wsi z dnia 21 sierpnia 2015 r. w sprawie szczegółowych warunków i trybu przyznawania oraz wypłaty pomocy finansowej na operacje typu „Modernizacja gospodarstw rolnych” w ramach poddziałania „Wsparcie inwestycji w gospodarstwach rolnych” objętego Programem Rozwoju Obszarów Wiejskich na lata 2014–2020 (Dz. U. poz. 1371, z późn. zm.),  tj. przyznania pomocy na operację typu „Modernizacja gospodarstw rolnych\";\n"]
[null,"6)","zebrane Pani/Pana dane osobowe mogą być udostępniane podmiotom publicznym uprawnionym do przetwarzania danych osobowych na podstawie przepisów powszechnie obowiązującego prawa; oraz podmiotom przetwarzającym dane osobowe na zlecenie Administratora w związku z wykonywaniem powierzonego im zadania w drodze zawartej umowy, m.in. dostawcom IT;"]
[null,"7)","Pani/ Pana dane osobowe zebrane, na podstawie art. 6 ust. 1 lit. c Rozporządzenia RODO będą przetwarzane przez okres realizacji zadań, o których mowa w pkt 5, okres zobowiązań oraz przez okres 5 lat liczony od dnia  następującego po dniu upływu okresu zobowiązań w związku z przyznaniem pomocy. Okres przechowywania danych może zostać każdorazowo przedłużony o okres przedawnienia roszczeń, jeżeli przetwarzanie danych będzie niezbędne do dochodzenia roszczeń lub do obrony przed takimi roszczeniami przez Administratora.\nPonadto, okres przechowywania danych może zostać przedłużony na okres potrzebny do przeprowadzenia archiwizacji;\n \n"]
[null,"8)","przysługuje Pani/Panu prawo dostępu do Pani/Pana danych, prawo żądania ich sprostowania, usunięcia lub ograniczenia ich przetwarzania, w przypadkach określonych w Rozporządzeniu RODO;"]
[null,"9)","w przypadku uznania, że przetwarzanie danych osobowych narusza przepisy Rozporządzenia RODO, przysługuje Pani/Panu prawo wniesienia skargi do Prezesa Urzędu Ochrony Danych Osobowych;"]
[null,"10)","podanie Pani/Pana danych osobowych na podstawie art. 6 ust. 1 lit. c Rozporządzenia RODO wynika z obowiązku zawartego w przepisach obowiązującego prawa, a konsekwencją niepodania tych danych osobowych będzie odmowa przyznania pomocy po uprzednim dwukrotnym wezwaniu do uzupełnienia braków we wniosku.\n"]

{"sheet":"zał. 2. Następca_nabywca","index":14,"n_rows":60,"n_cols":42,"rows_kept":60,"cut":false,"hidden":false,"merged":[[27,1,29,19],[27,26,29,31],[27,32,29,37],[25,2,25,37],[11,21,11,28],[11,29,11,37],[27,20,29,25],[8,22,9,22],[8,23,9,23],[8,35,9,35],[8,32,9,32],[8,21,9,21],[8,27,9,27],[8,28,9,28],[8,29,9,29],[3,1,3,37],[8,1,9,11],[8,12,9,13],[8,14,9,14],[8,15,9,15],[8,16,9,16],[8,17,9,17],[8,24,9,24],[8,25,9,25],[8,18,9,18],[8,31,9,31],[8,30,9,30],[8,33,9,33],[8,34,9,34],[8,26,9,26],[5,24,6,37],[8,37,9,37],[5,4,5,21],[11,1,13,1],[11,2,11,20],[41,32,41,37],[17,2,18,30],[23,2,23,37],[32,2,32,19],[31,20,31,25],[33,32,33,37],[33,2,33,19],[33,20,33,25],[35,1,36,1],[8,19,9,19],[8,20,9,20],[8,36,9,36],[33,26,33,31],[35,2,36,30],[35,32,35,37],[30,2,30,19],[30,20,30,25],[34,29,34,36],[32,32,32,37],[31,2,31,19],[30,26,30,31],[31,32,31,37],[30,32,30,37],[32,20,32,25],[1,31,1,35],[17,32,17,37],[20,32,20,37],[57,1,58,15],[57,21,58,38],[49,3,50,30],[31,26,31,31],[12,29,13,37],[20,2,21,30],[12,2,13,20],[12,21,13,28],[44,3,44,37],[49,32,49,37],[52,3,53,30],[52,32,52,37],[32,26,32,31],[59,1,59,14],[59,21,60,38],[47,3,47,30],[47,32,47,37],[38,32,38,37],[38,1,39,1],[45,3,46,30],[45,32,45,37],[41,2,42,30],[38,2,39,30]]}
[]
[null,"Załącznik nr 2 do wniosku o przyznanie pomocy",null,null,null,null,null,null,null,null,null,null,null,null,null,null,null,null,null,null,null,null,null,null,null,null,null,null,null,null,null,"W-1.2_4.1.3"]
[]
[null,"Dodatkowe dane dotyczące wniosku o przyznanie pomocy"]
[]
[null,null,null,null,"następcy prawnego beneficjenta",null,null,null,null,null,null,null,null,null,null,null,null,null,null,null,null,null,null,null," nabywcy całości gospodarstwa rolnego lub jego części",null,null,null,null,null,null,null,null,null,null,null,null,null,null,null,null,"x"]
[]
[]
[null,"1. Numer umowy beneficjenta "]
[]
[]
[null,"1.1.","Nazwisko/Nazwa",null,null,null,null,null,null,null,null,null,null,null,null,null,null,null,null,null,null,"Pierwsze imię"]
[]
[]
[]
[]
[]
[null,"2.","Data zaistnienia następstwa prawnego albo data nabycia gospodarstwa beneficjenta lub części tego gospodarstwa",null,null,null,null,null,null,null,null,null,null,null,null,null,null,null,null,null,null,null,null,null,null,null,null,null,null,null,null,null,null,null,null,null,null,null,null,null,null,"(wybierz z listy)"]
[null,null,null,null,null,null,null,null,null,null,null,null,null,null,null,null,null,null,null,null,null,null,null,null,null,null,null,null,null,null,null,null,null,null,null,null,null,null,null,null,null,"nie dotyczy"]
[null,null,null,null,null,null,null,null,null,null,null,null,null,null,null,null,null,null,null,null,null,null,null,null,null,null,null,null,null,null,null,null,null,null,null,null,null,null,null,null,null,"TAK"]
[null,"3.","Beneficjent zgłosił uprzednio Agencji Restrukturyzacji i Modernizacji Rolnictwa zamiar zbycia gospodarstwa albo jego części",null,null,null,null,null,null,null,null,null,null,null,null,null,null,null,null,null,null,null,null,null,null,null,null,null,null,null,null,null,"(wybierz z listy)",null,null,null,null,null,null,null,null,"NIE"]
[]
[]
[null,"4.","Pomoc uzyskana przez beneficjenta i następcę prawnego beneficjenta lub nabywcę"]
[]
[null,"4.1.","Pomoc uzyskana uprzednio (przed zaistnieniem następstwa prawnego albo zbyciem gospodarstwa rolnego lub jego części) przez beneficjenta w zakresie typu operacji \"MODERNIZACJA GOSPODARSTW ROLNYCH\" w ramach poddziałania \"WSPARCIE INWESTYCJI W GOSPODARSTWACH ROLNYCH\" oraz typu operacji \"RESTRUKTURYZACJA MAŁYCH GOSPODARSTW\" w ramach poddziałania \"POMOC NA ROZPOCZĘCIE DZIAŁALNOŚCI GOSPODARCZEJ NA RZECZ ROZWOJU MAŁYCH GOSPODARSTW\" (kwoty pomocy wypłacone lub określone w umowie o przyznaniu pomocy/decyzji)."]
[]
[null,"Numer umowy/ nr decyzji",null,null,null,null,null,null,null,null,null,null,null,null,null,null,null,null,null,null,"Kwota przyznana ",null,null,null,null,null,"Kwota dotychczas wypłacona ",null,null,null,null,null,"Kwota pozostała do wypłaty"]
[]
[]
[null,"4.1.1."]
[null,"4.1.2."]
[null,"4.1.3."]
[null,null,"4.1.4. Suma pkt  4.1.1. - 4.1.3.:",null,null,null,null,null,null,null,null,null,null,null,null,null,null,null,null,null,{"$f":"SUM(U31:Z33)","v":0},null,null,null,null,null,{"$f":"SUM(AA31:AF33)","v":0},null,null,null,null,null,{"$f":"SUM(AG31:AL33)","v":0}]
[]
[null,"4.2.","Suma kwot pomocy wypłaconej w ramach operacji zrealizowanych przez beneficjenta i jego następcę prawnego albo nabywcę i kwot pomocy przyznanej w ramach operacji, których realizacja nie została jeszcze zakończona przez beneficjenta i jego następcę prawnego albo nabywcę przed zaistnieniem następstwa prawnego/ nabyciem (w zł) "]
[]
[]
[null,"4.3.","Kwota niewypłaconej części pomocy beneficjentowi w ramach umowy o przejęcie zobowiązań, o którą ubiega się następca prawny lub nabywca"]
[]
[]
[null,"4.4.","Kwota do wykorzystania przez następcę prawnego lub nabywcę na operację objętą wnioskiem, z uwzględnieniem limitu pomocy "]
[]
[]
[null,"5. ",null,"Wysokość zaliczki"]
[null,"5.1.",null,"Beneficjentowi przyznano zaliczkę na realizację operacji określonej w umowie o przyznaniu pomocy",null,null,null,null,null,null,null,null,null,null,null,null,null,null,null,null,null,null,null,null,null,null,null,null,null,null,null,null,"(wybierz z listy)",null,null,null,null,null,null,null,null,"(wybierz z listy)"]
[null,null,null,null,null,null,null,null,null,null,null,null,null,null,null,null,null,null,null,null,null,null,null,null,null,null,null,null,null,null,null,null,null,null,null,null,null,null,null,null,null,"TAK"]
[null,"5.2.",null,"Kwota wypłaconej beneficjentowi zaliczki na realizację operacji (w zł)",null,null,null,null,null,null,null,null,null,null,null,null,null,null,null,null,null,null,null,null,null,null,null,null,null,null,null,null,null,null,null,null,null,null,null,null,null,"NIE"]
[]
[null,"5.3.",null,"Wypłacona zaliczka, przed zaistnieniem następstwa prawnego/ nabyciem gospodarstwa została w całości rozliczona",null,null,null,null,null,null,null,null,null,null,null,null,null,null,null,null,null,null,null,null,null,null,null,null,null,null,null,null,"(wybierz z listy)"]
[]
[]
[null,"5.4.",null,"Kwota zaliczki pozostałej do rozliczenia w ramach kontynuacji operacji przez następcę prawnego/ nabywcę"]
[]
[]
[]
[]
[]
[]
[null,"(miejscowość i data)",null,null,null,null,null,null,null,null,null,null,null,null,null,null,null,null,null,null,null,"(czytelny podpis następcy prawnego lub nabywcy/ osoby reprezentującej następcę prawnego lub nabywcę/ jego pełnomocnika)"]

{"sheet":"Zał 3 Ośw. następcy prawneg","index":15,"n_rows":35,"n_cols":34,"rows_kept":35,"cut":false,"hidden":false,"merged":[[19,3,20,37],[23,3,23,33],[21,3,21,37],[34,25,34,37],[28,3,28,37],[13,4,14,37],[17,3,17,37],[0,33,0,37],[1,2,1,18],[1,33,1,37],[2,2,2,18],[2,33,3,37],[4,34,4,36],[5,34,5,36],[10,3,10,18],[10,27,12,37],[4,3,9,18],[41,2,41,20],[25,3,25,37],[26,3,26,37],[27,3,27,37],[31,3,33,17],[29,25,29,37],[39,3,39,37],[34,3,34,16],[37,25,37,37],[31,25,33,37]]}
[]
[null,null,"Załącznik Nr 3 do wniosku o przyznanie pomocy",null,null,null,null,null,null,null,null,null,null,null,null,null,null,null,null,null,null,null,null,null,null,null,null,null,null,null,null,null,null,"W-1.3_4.1.3"]
[]
[]
[]
[]
[]
[]
[]
[]
[null,null,null,"(Imię i Nazwisko, Adres,PESEL, NIP/ Nazwa, Adres siedziby, NIP/NIP oddziału przedsiębiorcy zagranicznego, REGON)"]
[]
[]
[null,null,null,null,"Oświadczenie następcy prawnego o jego wstąpieniu w prawa i obowiązki beneficjenta wynikające z umowy o przyznaniu pomocy "]
[]
[]
[]
[null,null,null,"Oświadczam, że wstąpiłem w prawa i obowiązki beneficjenta wynikające z umowy o przyznaniu pomocy nr: "]
[]
[]
[]
[null,null,null,"(numer umowy o przyznaniu pomocy zawartej przez Agencję z beneficjentem)"]
[]
[null,null,null,"zawartej pomiędzy Agencją Restrukturyzacji i Modernizacji Rolnictwa, a"]
[]
[]
[null,null,null,"(Imię i Nazwisko, Adres, PESEL, NIP/ Nazwa, Adres siedziby, NIP/NIP oddziału przedsiębiorcy zagranicznego, REGON)"]
[]
[null,null,null,"oraz inne prawa niezbędne do zrealizowania operacji objętej ww. umową o przyznaniu pomocy."]
[]
[]
[]
[]
[]
[null,null,null,"(miejscowość i data)",null,null,null,null,null,null,null,null,null,null,null,null,null,null,null,null,null,null,null,null,null,"(czytelny podpis następcy prawnego beneficjenta/ osoby reprezentującej następcę/ jego pełnomocnika)"]

{"sheet":"Zał 4 Zgoda osoby WUM","index":16,"n_rows":37,"n_cols":34,"rows_kept":37,"cut":false,"hidden":false,"merged":[[19,2,19,37],[22,2,22,37],[24,2,24,37],[25,2,26,37],[42,2,42,20],[33,3,35,17],[33,25,35,37],[36,3,36,17],[36,25,37,37],[27,2,27,37],[28,2,28,37],[37,3,37,16],[40,3,40,27],[30,11,30,31],[29,2,29,37],[20,2,21,37],[16,2,16,37],[17,2,17,37],[18,2,18,37],[9,3,9,18],[0,33,0,37],[1,2,1,29],[1,33,1,37],[2,33,2,37],[3,3,8,18],[3,34,3,36],[4,34,4,36],[10,2,10,37],[11,2,12,37],[13,3,13,36],[14,2,14,37],[15,2,15,37]]}
[]
[null,null,"Załącznik Nr 4 do wniosku o przyznanie pomocy",null,null,null,null,null,null,null,null,null,null,null,null,null,null,null,null,null,null,null,null,null,null,null,null,null,null,null,null,null,null,"W-1.4_4.1.3"]
[]
[]
[]
[]
[]
[]
[]
[null,null,null,"(Imię i Nazwisko, Adres,PESEL, NIP/ Nazwa, Adres siedziby, NIP/NIP oddziału przedsiębiorcy zagranicznego, REGON)"]
[]
[null,null,"Oświadczenie osoby wspólnie wnioskującej o wyrażeniu zgody na przyznanie pomocy następcy prawnemu jednego z beneficjentów albo nabywcy gospodarstwa lub jego części (w przypadku wspólnego ubiegania się o pomoc)"]
[]
[]
[null,null,"Zgodnie z przepisami § 33 ust. 3 rozporządzenia Ministra Rolnictwa i Rozwoju Wsi z dnia 21 sierpnia 2015 r. w sprawie szczegółowych warunków i trybu przyznawania oraz wypłaty pomocy finansowej na operacje typu „Modernizacja gospodarstw rolnych” w ramach poddziałania „Wsparcie inwestycji w gospodarstwach rolnych” objętego Programem Rozwoju Obszarów Wiejskich na lata 2014–2020 (Dz. U. poz. 1371, z późn. zm.)"]
[null,null,"oświadczam, iż wyrażam zgodę na przyznanie pomocy, w tym kontynuację realizacji operacji przez:"]
[]
[null,null,"(Imię i Nazwisko następcy prawnego beneficjenta/ nabywcy, Adres/Nazwa następcy prawnego beneficjenta/ nabywcy, Adres siedziby, NIP/NIP oddziału przedsiębiorcy zagranicznego/ REGON)"]
[]
[null,null,"jako następcy prawnego beneficjenta/ nabywcy:"]
[]
[]
[null,null,"(Imię i Nazwisko beneficjenta, Adres / Nazwa beneficjenta, Adres siedziby, NIP/NIP oddzialu przedsiębiorcy zagranicznego, REGON)"]
[]
[null,null,"w ramach wspólnego ubiegania się o pomoc z poddziałania \"Wsparcie inwestycji w gospodarstwach rolnych\" PROW 2014-2020, typ operacji „Modernizacja gospodarstw rolnych\", celem realizacji operacji polegającej na:"]
[]
[]
[null,null,"(zakres operacji)"]
[null,null,"w gospodarstwie zlokalizowanym w:"]
[]
[null,null,null,null,null,null,null,null,null,null,null,"(adres gospodarstwa)"]
[]
[]
[]
[]
[]
[null,null,null,"(miejscowość i data)",null,null,null,null,null,null,null,null,null,null,null,null,null,null,null,null,null,null,null,null,null,"(czytelny podpis osoby wspólnie wnioskującej/ pełnomocnika osoby wspólnie wnioskującej)"]

{"sheet":"Zał. 5 Klauzula RODO","index":17,"n_rows":17,"n_cols":10,"rows_kept":17,"cut":false,"hidden":false,"merged":[[9,2,9,9],[10,2,10,9],[11,2,11,9],[12,2,12,9],[1,1,1,8],[7,1,7,9],[25,2,25,5],[25,7,26,9],[14,2,14,9],[15,2,15,9],[16,2,16,9],[19,2,19,9],[20,2,20,9],[21,2,21,9],[23,2,23,9],[13,2,13,9],[5,1,5,9],[6,1,6,9],[8,2,8,9],[22,2,22,9]]}
[]
[null,"Załącznik nr 5 do wniosku o przyznanie pomocy",null,null,null,null,null,null,null,"W-1.5_4.1.3"]
[]
[]
[]
[null,"Klauzula informacyjna dotycząca przetwarzania przez Agencję Restrukturyzacji i Modernizacji Rolnictwa danych osobowych osób fizycznych, które zostaną przekazane \n przez Podmiot ubiegający się o pomoc\n"]
[]
[null,"Zgodnie z treścią z art. 14 Rozporządzenia Parlamentu Europejskiego i Rady (UE) 2016/679 z dnia 27 kwietnia 2016 r. w sprawie ochrony osób fizycznych w związku z przetwarzaniem danych osobowych i w sprawie swobodnego przepływu takich danych oraz uchylenia dyrektywy 95/46/WE (ogólne rozporządzenie o ochronie danych) (Dz. Urz. UE L 119  z 04.05.2016, str. 1 oraz Dz. Urz. UE L 127 z 23.05.2018, str. 2), dalej „Rozporządzenie RODO”,  w odniesieniu do danych osób fizycznych, które zostały przekazane przez Podmiot ubiegający się o przyznanie pomocy  w dokumentach aplikacyjnych w celu przyznania pomocy finansowej w ramach operacj typu „Modernizacja gospodarstw rolnych” w ramach poddziałania „Wsparcie inwestycji w gospodarstwach rolnych” objętego Programem Rozwoju Obszarów Wiejskich na lata 2014–2020 (Dz. U. poz. 1371, z  późn. zm.), Agencja Restrukturyzacji i Modernizacji Rolnictwa informuje, że:\n"]
[null,"1)","Administratorem Pani/Pana danych osobowych (dalej: Administrator) pozyskanych w związku z  realizacją  zadań, o których mowa w pkt. 3 poniżej, jest Agencja Restrukturyzacji i Modernizacji Rolnictwa z siedzibą w Warszawie, Al. Jana Pawła II, 00-175 Warszawa. Z Administratorem można kontaktować się poprzez e-mail: info@arimr.gov.pl lub pisemnie na adres korespondencyjny Centrali Agencji Restrukturyzacji i Modernizacji Rolnictwa: ul. Poleczki 33, 02-822 Warszawa;\n"]
[null,"2)","Administrator wyznaczył inspektora ochrony danych, z którym można kontaktować się w  sprawach dotyczących przetwarzania danych osobowych oraz korzystania z praw związanych z przetwarzaniem danych, poprzez adres e-mail: iod@arimr.gov.pl lub pisemnie na adres korespondencyjny Administratora, wskazany w pkt 1;"]
[null,"3)","Pani/Pana dane osobowe pozyskane przez Administratora przetwarzane będą na podstawie art. 6 ust. 1 lit. c Rozporządzenia RODO w celu realizacji zadań wynikających z art. 1 pkt 1 w związku z art. 3 ust. 1 pkt. 4 lit. a oraz art. 6 ust. 2 Ustawy z dnia 20 lutego 2015 r. o wspieraniu rozwoju obszarów wiejskich z udziałem środków Europejskiego Funduszu Rolnego na rzecz Rozwoju Obszarów Wiejskich w ramach Programu Rozwoju Obszarów Wiejskich na lata 2014-2020 (Dz. U. z 2020 r. poz. 217 i 300) w związku Rozporządzeniem Ministra Rolnictwa i Rozwoju Wsi z dnia 21 sierpnia 2015 r. w sprawie szczegółowych warunków i trybu przyznawania oraz wypłaty pomocy finansowej na operacje typu „Modernizacja gospodarstw rolnych” w ramach poddziałania „Wsparcie inwestycji w gospodarstwach rolnych” objętego Programem Rozwoju Obszarów Wiejskich na lata 2014–2020 (Dz. U. poz. 1371, z późn. zm.),  tj.  przyznania pomocy na operację typu „Modernizacja gospodarstw rolnych\";\n"]
[null,"4)","Administrator będzie przetwarzał następujące kategorie Pani/Pana danych: dane identyfikacyjne oraz dane kontaktowe;"]
[null,"5)","odbiorcami Pani/Pana danych osobowych mogą być:\n1) organy kontrolne,\n2) osoby lub podmioty, którym Administrator danych udzieli informacji publicznej zgodnie z ustawą z dnia 6 września 2001 r. o dostępie do informacji publicznej (Dz. U.  z  2019 r. poz. 1429),\n3) podmioty uprawnione do przetwarzania danych osobowych na podstawie przepisów powszechnie obowiązującego prawa;\n"]
[null,"6)","Pani/Pana dane osobowe zebrane  będą przetwarzane  przez okres niezbędny do realizacji zadań, o których mowa w pkt 3, związany z przyznawaniem pomocy w ramach poddziałania  „Wsparcie inwestycji w gospodarstwach rolnych” objętego Programem Rozwoju Obszarów Wiejskich na lata 2014–2020 na operację typu „Modernizacja gospodarstw rolnych\", w tym:\na) w przypadku przyznania pomocy Beneficjentowi - przez okres realizacji zobowiązania do dnia upływu 5 lat od wypłaty pierwszej raty pomocy oraz przez okres 5 lat przewidziany na potrzeby archiwizacji, licząc od dnia 1 stycznia roku następującego po roku, w którym upłynie okres zobowiązań,\nb) w przypadku odmowy przyznania pomocy Beneficjentowi – przez okres jaki upłynie do uprawomocnienia decyzji o odmowie przyznania pomocy oraz przez okres 5 lat przewidziany na potrzeby archiwizacji, licząc od dnia 1 stycznia roku następującego po roku, w którym decyzja o odmowie przyznania pomocy stała się prawomocna.\nOkres przechowywania danych może zostać każdorazowo przedłużony o okres przedawnienia roszczeń, jeżeli przetwarzanie danych będzie niezbędne do dochodzenia roszczeń lub do obrony przed takimi roszczeniami przez administratora danych;"]
[null,"7)","przysługuje Pani/Panu prawo do dostępu do Pani/Pana danych osobowych, ich sprostowania, prawo żądania ograniczenia przetwarzania Pani/Pana danych osobowych oraz prawo do przenoszenia Pani/Pana danych osobowych;"]
[null,"8)","w przypadku uznania, że przetwarzanie danych osobowych narusza przepisy Rozporządzenia RODO, przysługuje Pani/Panu prawo wniesienia skargi do Prezesa Urzędu Ochrony Danych Osobowych;"]
[null,"9)","Pani/Pana dane Administrator uzyskał od podmiotu ubiegającego się o przyznanie pomocy. "]

{"sheet":"Powiaty","index":18,"n_rows":145,"n_cols":17,"rows_kept":145,"cut":false,"hidden":true,"merged":[]}
["wybierz z listy","DOLNOŚLĄSKIE","KUJAWSKO_POMORSKIE","LUBELSKIE","LUBUSKIE","ŁÓDZKIE","MAŁOPOLSKIE","MAZOWIECKIE","OPOLSKIE","PODKARPACKIE","PODLASKIE","POMORSKIE","ŚLĄSKIE","ŚWIĘTOKRZYSKIE","WARMIŃSKO_MAZURSKIE","WIELKOPOLSKIE","ZACHODNIOPOMORSKIE"]
["wybierz z listy","DOLNOŚLĄSKIE","KUJAWSKO_POMORSKIE","LUBELSKIE","LUBUSKIE","ŁÓDZKIE","MAŁOPOLSKIE","MAZOWIECKIE","OPOLSKIE","PODKARPACKIE","PODLASKIE","POMORSKIE","ŚLĄSKIE","ŚWIĘTOKRZYSKIE","WARMIŃSKO_MAZURSKIE","WIELKOPOLSKIE","ZACHODNIOPOMORSKIE"]
[null,"BOLESŁAWIECKI","ALEKSANDROWSKI","BIALSKI","GORZOWSKI","BEŁCHATOWSKI","BOCHEŃSKI","BIAŁOBRZESKI","BRZESKI","BIESZCZADZKI","AUGUSTOWSKI","BYTOWSKI","BĘDZIŃSKI","BUSKI","BARTOSZYCKI","CHODZIESKI","BIAŁOGARDZKI"]
[null,"DZIERŻONIOWSKI","BRODNICKI","BIŁGORAJSKI","KROŚNIEŃSKI.","KUTNOWSKI","BRZESKI.","CIECHANOWSKI","GŁUBCZYCKI","BRZOZOWSKI","BIAŁOSTOCKI","CHOJNICKI","BIELSKI","JĘDRZEJOWSKI","BRANIEWSKI","CZARNKOWSKO_TRZCIANECKI","CHOSZCZEŃSKI"]
[null,"GŁOGOWSKI","BYDGOSKI","CHEŁMSKI","MIĘDZYRZECKI","ŁASKI","CHRZANOWSKI","GARWOLIŃSKI","KĘDZIERZYŃSKO_KOZIELSKI","DĘBICKI","BIELSKI.","CZŁUCHOWSKI","CIESZYŃSKI","KAZIMIERSKI","DZIAŁDOWSKI","GNIEŹNIEŃSKI","DRAWSKI"]
[null,"GÓROWSKI","CHEŁMIŃSKI","HRUBIESZOWSKI","NOWOSOLSKI","ŁĘCZYCKI","DĄBROWSKI","GOSTYNIŃSKI","KLUCZBORSKI","JAROSŁAWSKI","GRAJEWSKI","GDAŃSKI","CZĘSTOCHOWSKI","KIELECKI","ELBLĄSKI","GOSTYŃSKI","GOLENIOWSKI"]
[null,"JAWORSKI","GOLUBSKO_DOBRZYŃSKI","JANOWSKI","SŁUBICKI","ŁOWICKI","GORLICKI","GRODZISKI","KRAPKOWICKI","JASIELSKI","HAJNOWSKI","KARTUSKI","GLIWICKI","KONECKI","EŁCKI","GRODZISKI.","GRYFICKI"]
[null,"JELENIOGÓRSKI","GRUDZIĄDZKI","KRASNOSTAWSKI","STRZELECKO_DREZDENECKI","ŁÓDZKI_WSCHODNI","KRAKOWSKI","GRÓJECKI","NAMYSŁOWSKI","KOLBUSZOWSKI","KOLNEŃSKI","KOŚCIERSKI","KŁOBUCKI","OPATOWSKI","GIŻYCKI","JAROCIŃSKI","GRYFIŃSKI"]
[null,"KAMIENNOGÓRSKI","INOWROCŁAWSKI","KRAŚNICKI","SULĘCIŃSKI","OPOCZYŃSKI","LIMANOWSKI","KOZIENICKI","NYSKI","KROŚNIEŃSKI","ŁOMŻYŃSKI","KWIDZYŃSKI","LUBLINIECKI","OSTROWIECKI","IŁAWSKI","KALISKI","KAMIEŃSKI"]
[null,"KŁODZKI","LIPNOWSKI","LUBARTOWSKI","ŚWIEBODZIŃSKI","PABIANICKI","MIECHOWSKI","LEGIONOWSKI","OLESKI","LEŻAJSKI","MONIECKI","LĘBORSKI","MIKOŁOWSKI","PIŃCZOWSKI","KĘTRZYŃSKI","KĘPIŃSKI","KOŁOBRZESKI"]
[null,"LEGNICKI","MOGILEŃSKI","LUBELSKI","ZIELONOGÓRSKI","PAJĘCZAŃSKI","MYŚLENICKI","LIPSKI","OPOLSKI","LUBACZOWSKI","SEJNEŃSKI","MALBORSKI","MYSZKOWSKI","SANDOMIERSKI","LIDZBARSKI","KOLSKI","KOSZALIŃSKI"]
[null,"LUBAŃSKI","NAKIELSKI","ŁĘCZYŃSKI","ŻAGAŃSKI","PIOTRKOWSKI","NOWOSĄDECKI","ŁOSICKI","PRUDNICKI","ŁAŃCUCKI","SIEMIATYCKI","NOWODWORSKI","PSZCZYŃSKI","SKARŻYSKI","MRĄGOWSKI","KONIŃSKI","MYŚLIBORSKI"]
[null,"LUBIŃSKI","RADZIEJOWSKI","ŁUKOWSKI","ŻARSKI","PODDĘBICKI","NOWOTARSKI","MAKOWSKI","STRZELECKI","MIELECKI","SOKÓLSKI","PUCKI","RACIBORSKI","STARACHOWICKI","NIDZICKI","KOŚCIAŃSKI","POLICKI"]
[null,"LWÓWECKI","RYPIŃSKI","OPOLSKI.","WSCHOWSKI","RADOMSZCZAŃSKI","OLKUSKI","MIŃSKI","OPOLE","NIŻAŃSKI","SUWALSKI","SŁUPSKI","RYBNICKI","STASZOWSKI","NOWOMIEJSKI","KROTOSZYŃSKI","PYRZYCKI"]
[null,"MILICKI","SĘPOLEŃSKI","PARCZEWSKI","GORZÓW_WIELKOPOLSKI","RAWSKI","OŚWIĘCIMSKI","MŁAWSKI",null,"PRZEMYSKI","WYSOKOMAZOWIECKI","STAROGARDZKI","TARNOGÓRSKI","WŁOSZCZOWSKI","OLECKI","LESZCZYŃSKI","SŁAWIEŃSKI"]
[null,"OLEŚNICKI","ŚWIECKI","PUŁAWSKI","ZIELONA GÓRA","SIERADZKI","PROSZOWICKI","NOWODWORSKI.",null,"PRZEWORSKI","ZAMBROWSKI","TCZEWSKI","BIERUŃSKO_LĘDZIŃSKI","KIELCE","OLSZTYŃSKI","MIĘDZYCHODZKI","STARGARDZKI"]
[null,"OŁAWSKI","TORUŃSKI","RADZYŃSKI",null,"SKIERNIEWICKI","SUSKI","OSTROŁĘCKI",null,"ROPCZYCKO_SĘDZISZOWSKI","BIAŁYSTOK","WEJHEROWSKI","WODZISŁAWSKI",null,"OSTRÓDZKI","NOWOTOMYSKI","SZCZECINECKI"]
[null,"POLKOWICKI","TUCHOLSKI","RYCKI",null,"TOMASZOWSKI","TARNOWSKI","OSTROWSKI.",null,"RZESZOWSKI","ŁOMŻA","SZTUMSKI","ZAWIERCIAŃSKI",null,"PISKI","OBORNICKI","ŚWIDWIŃSKI"]
[null,"STRZELIŃSKI","WĄBRZESKI","ŚWIDNICKI",null,"WIELUŃSKI","TATRZAŃSKI","OTWOCKI",null,"SANOCKI","SUWAŁKI","GDAŃSK","ŻYWIECKI",null,"SZCZYCIEŃSKI","OSTROWSKI","WAŁECKI"]
[null,"ŚREDZKI.","WŁOCŁAWSKI","TOMASZOWSKI.",null,"WIERUSZOWSKI","WADOWICKI","PIASECZYŃSKI",null,"STALOWOWOLSKI",null,"GDYNIA","BIELSKO_BIAŁA",null,"GOŁDAPSKI","OSTRZESZOWSKI","ŁOBESKI"]
[null,"ŚWIDNICKI.","ŻNIŃSKI","WŁODAWSKI",null,"ZDUŃSKOWOLSKI","WIELICKI","PŁOCKI",null,"STRZYŻOWSKI",null,"SŁUPSK","BYTOM",null,"WĘGORZEWSKI","PILSKI","KOSZALIN"]
[null,"TRZEBNICKI","BYDGOSZCZ","ZAMOJSKI",null,"ZGIERSKI","KRAKÓW","PŁOŃSKI",null,"TARNOBRZESKI",null,"SOPOT","CHORZÓW",null,"ELBLĄG","PLESZEWSKI","SZCZECIN"]
[null,"WAŁBRZYSKI","GRUDZIĄDZ","BIAŁA_PODLASKA",null,"BRZEZIŃSKI","NOWY SĄCZ","PRUSZKOWSKI",null,"LESKI",null,null,"CZĘSTOCHOWA",null,"OLSZTYN","POZNAŃSKI","ŚWINOUJŚCIE"]
[null,"WOŁOWSKI","TORUŃ","CHEŁM",null,"ŁÓDŹ","TARNÓW","PRZASNYSKI",null,"KROSNO",null,null,"DĄBROWA_GÓRNICZA",null,null,"RAWICKI"]
[null,"WROCŁAWSKI","WŁOCŁAWEK","LUBLIN",null,"PIOTRKÓW_TRYBUNALSKI",null,"PRZYSUSKI",null,"PRZEMYŚL",null,null,"GLIWICE",null,null,"SŁUPECKI"]
[null,"ZĄBKOWICKI",null,"ZAMOŚĆ",null,"SKIERNIEWICE",null,"PUŁTUSKI",null,"RZESZÓW",null,null,"JASTRZĘBIE_ZDRÓJ",null,null,"SZAMOTULSKI"]
[null,"ZGORZELECKI",null,null,null,null,null,"RADOMSKI",null,"TARNOBRZEG",null,null,"JAWORZNO",null,null,"ŚREDZKI"]
[null,"ZŁOTORYJSKI",null,null,null,null,null,"SIEDLECKI",null,null,null,null,"KATOWICE",null,null,"ŚREMSKI"]
[null,"JELENIA_GÓRA",null,null,null,null,null,"SIERPECKI",null,null,null,null,"MYSŁOWICE",null,null,"TURECKI"]
[null,"LEGNICA",null,null,null,null,null,"SOCHACZEWSKI",null,null,null,null,"PIEKARY_ŚLĄSKIE",null,null,"WĄGROWIECKI"]
[null,"WROCŁAW",null,null,null,null,null,"SOKOŁOWSKI",null,null,null,null,"RUDA_ŚLĄSKA",null,null,"WOLSZTYŃSKI"]
[null,"WAŁBRZYCH",null,null,null,null,null,"SZYDŁOWIECKI",null,null,null,null,"RYBNIK",null,null,"WRZESIŃSKI"]
[null,null,null,null,null,null,null,"WARSZAWSKI_ZACHODNI",null,null,null,null,"SIEMIANOWICE_ŚLĄSKIE",null,null,"ZŁOTOWSKI"]
[null,null,null,null,null,null,null,"WĘGROWSKI",null,null,null,null,"SOSNOWIEC",null,null,"KALISZ"]
[null,null,null,null,null,null,null,"WOŁOMIŃSKI",null,null,null,null,"ŚWIĘTOCHŁOWICE",null,null,"KONIN"]
[null,null,null,null,null,null,null,"WYSZKOWSKI",null,null,null,null,"TYCHY",null,null,"LESZNO"]
[null,null,null,null,null,null,null,"ZWOLEŃSKI",null,null,null,null,"ZABRZE",null,null,"POZNAŃ"]
[null,null,null,null,null,null,null,"ŻUROMIŃSKI",null,null,null,null,"ŻORY"]
[null,null,null,null,null,null,null,"ŻYRARDOWSKI"]
[null,null,null,null,null,null,null,"WARSZAWA"]
[null,null,null,null,null,null,null,"OSTROŁĘKA"]
[null,null,null,null,null,null,null,"PŁOCK"]
[null,null,null,null,null,null,null,"RADOM"]
[null,null,null,null,null,null,null,"SIEDLCE"]
[]
[]
[]
[]
[]
[]
[]
[]
[]
[]
[]
[]
[{"$f":"UPPER(B84)","v":""}]
[{"$f":"UPPER(B85)","v":""}]
[{"$f":"UPPER(B86)","v":""}]
[{"$f":"UPPER(B87)","v":""},null,null,{"$f":"UPPER(C60)","v":""}]
[]
[]
[]
[]
[null,null,null,{"$f":"UPPER(C65)","v":""}]
[]
[]
[]
[]
[null,null,null,{"$f":"UPPER(C70)","v":""}]
[]
[]
[null,null,null,{"$f":"UPPER(C73)","v":""}]
[]
[]
[]
[null,null,null,{"$f":"UPPER(C77)","v":""}]
[]
[]
[]
[null,null,null,{"$f":"UPPER(C81)","v":""}]
[]
[]
[]
[]
[null,null,null,{"$f":"UPPER(C86)","v":""}]
[]
[null,null,null,{"$f":"UPPER(C88)","v":""}]
[]
[]
[]
[]
[null,null,null,{"$f":"UPPER(C93)","v":""}]
[]
[]
[]
[null,null,null,{"$f":"UPPER(C97)","v":""}]
[]
[]
[]
[]
[null,null,null,{"$f":"UPPER(C102)","v":""}]
[]
[]
[]
[]
[]
[]
[]
[]
[]
[]
[]
[]
[]
[]
[]
[]
[]
[]
[]
[null,null,null,{"$f":"UPPER(C122)","v":""}]
[]
[null,null,null,{"$f":"UPPER(C124)","v":""}]
[]
[]
[null,null,null,{"$f":"UPPER(C127)","v":""}]
[]
[]
[]
[]
[null,null,null,{"$f":"UPPER(C132)","v":""}]
[]
[]
[]
[]
[]
[]
[]
[]
[]
[]
[]
[]
[null,null,{"$f":"UPPER(D172)","v":""}]

{"sheet":"Gminy","index":19,"n_rows":380,"n_cols":21,"rows_kept":380,"cut":false,"hidden":true,"merged":[]}
[null,"BOLESŁAWIECKI","BOLESŁAWIEC","BOLESŁAWIEC","GROMADKA","NOWOGRODZIEC","OSIECZNICA","WARTA BOLESŁAWIECKA"]
[null,"DZIERŻONIOWSKI","BIELAWA","DZIERŻONIÓW","PIESZYCE","PIŁAWA GÓRNA","DZIERŻONIÓW","ŁAGIEWNIKI","NIEMCZA"]
[null,"GŁOGOWSKI","GŁOGÓW","GŁOGÓW","JERZMANOWA","KOTLA","PĘCŁAW","ŻUKOWICE"]
[null,"GÓROWSKI","GÓRA","JEMIELNO","NIECHLÓW","WĄSOSZ"]
[null,"JAWORSKI","JAWOR","BOLKÓW","MĘCINKA","MŚCIWOJÓW","PASZOWICE","WĄDROŻE WIELKIE"]
[null,"JELENIOGÓRSKI","KARPACZ","KOWARY","PIECHOWICE","SZKLARSKA PORĘBA","JANOWICE WIELKIE","JEŻÓW SUDECKI","MYSŁAKOWICE","PODGÓRZYN","STARA KAMIENICA"]
[null,"KAMIENNOGÓRSKI","KAMIENNA GÓRA","KAMIENNA GÓRA","LUBAWKA","MARCISZÓW"]
[null,"KŁODZKI","DUSZNIKI-ZDRÓJ","KŁODZKO","KUDOWA-ZDRÓJ","NOWA RUDA","POLANICA-ZDRÓJ","BYSTRZYCA KŁODZKA","KŁODZKO","LĄDEK-ZDRÓJ","LEWIN KŁODZKI","MIĘDZYLESIE","NOWA RUDA","RADKÓW","STRONIE ŚLĄSKIE","SZCZYTNA"]
[null,"LEGNICKI","CHOJNÓW","CHOJNÓW","KROTOSZYCE","KUNICE","LEGNICKIE POLE","MIŁKOWICE","PROCHOWICE","RUJA"]
[null,"LUBAŃSKI","LUBAŃ","ŚWIERADÓW-ZDRÓJ","LEŚNA","LUBAŃ","OLSZYNA","PLATERÓWKA","SIEKIERCZYN"]
[null,"LUBIŃSKI","LUBIN","LUBIN","RUDNA","ŚCINAWA"]
[null,"LWÓWECKI","GRYFÓW ŚLĄSKI","LUBOMIERZ","LWÓWEK ŚLĄSKI","MIRSK","WLEŃ"]
[null,"MILICKI","CIESZKÓW","KROŚNICE","MILICZ"]
[null,"OLEŚNICKI","OLEŚNICA","BIERUTÓW","DOBROSZYCE","DZIADOWA KŁODA","MIĘDZYBÓRZ","OLEŚNICA","SYCÓW","TWARDOGÓRA"]
[null,"OŁAWSKI","OŁAWA","DOMANIÓW","JELCZ-LASKOWICE","OŁAWA"]
[null,"POLKOWICKI","CHOCIANÓW","GAWORZYCE","GRĘBOCICE","POLKOWICE","PRZEMKÓW","RADWANICE"]
[null,"STRZELIŃSKI","BORÓW","KONDRATOWICE","PRZEWORNO","STRZELIN","WIĄZÓW"]
[null,"ŚREDZKI","KOSTOMŁOTY","MALCZYCE","MIĘKINIA","ŚRODA ŚLĄSKA","UDANIN"]
[null,"ŚWIDNICKI","ŚWIDNICA","ŚWIEBODZICE","DOBROMIERZ","JAWORZYNA ŚLĄSKA","MARCINOWICE","STRZEGOM","ŚWIDNICA","ŻARÓW"]
[null,"TRZEBNICKI","OBORNIKI ŚLĄSKIE","PRUSICE","TRZEBNICA","WISZNIA MAŁA","ZAWONIA","ŻMIGRÓD"]
[null,"WAŁBRZYSKI","BOGUSZÓW-GORCE","JEDLINA-ZDRÓJ","SZCZAWNO-ZDRÓJ","CZARNY BÓR","GŁUSZYCA","MIEROSZÓW","STARE BOGACZOWICE","WALIM"]
[null,"WOŁOWSKI","BRZEG DOLNY","WIŃSKO","WOŁÓW"]
[null,"WROCŁAWSKI","CZERNICA","DŁUGOŁĘKA","JORDANÓW ŚLĄSKI","KĄTY WROCŁAWSKIE","KOBIERZYCE","MIETKÓW","SOBÓTKA","SIECHNICE","ŻÓRAWINA"]
[null,"ZĄBKOWICKI","BARDO","CIEPŁOWODY","KAMIENIEC ZĄBKOWICKI","STOSZOWICE","ZĄBKOWICE ŚLĄSKIE","ZIĘBICE","ZŁOTY STOK"]
[null,"ZGORZELECKI","ZAWIDÓW","ZGORZELEC","BOGATYNIA","PIEŃSK","SULIKÓW","WĘGLINIEC","ZGORZELEC"]
[null,"ZŁOTORYJSKI","WOJCIESZÓW","ZŁOTORYJA","PIELGRZYMKA","ŚWIERZAWA","ZAGRODNO","ZŁOTORYJA"]
[null,"JELENIA_GÓRA","JELENIA GÓRA"]
[null,"LEGNICA","LEGNICA"]
[null,"WROCŁAW","WROCŁAW"]
[null,"WAŁBRZYCH","WAŁBRZYCH"]
[null,"ALEKSANDROWSKI","ALEKSANDRÓW KUJAWSKI","CIECHOCINEK","NIESZAWA","ALEKSANDRÓW KUJAWSKI","BĄDKOWO","KONECK","RACIĄŻEK","WAGANIEC","ZAKRZEWO"]
[null,"BRODNICKI","BRODNICA","BOBROWO","BRODNICA","BRZOZIE","GÓRZNO","BARTNICZKA","JABŁONOWO POMORSKIE","OSIEK","ŚWIEDZIEBNIA","ZBICZNO"]
[null,"BYDGOSKI","BIAŁE BŁOTA","DĄBROWA CHEŁMIŃSKA","DOBRCZ","KORONOWO","NOWA WIEŚ WIELKA","OSIELSKO","SICIENKO","SOLEC KUJAWSKI"]
[null,"CHEŁMIŃSKI","CHEŁMNO","CHEŁMNO","KIJEWO KRÓLEWSKIE","LISEWO","PAPOWO BISKUPIE","STOLNO","UNISŁAW"]
[null,"GOLUBSKO_DOBRZYŃSKI","GOLUB-DOBRZYŃ","CIECHOCIN","GOLUB-DOBRZYŃ","KOWALEWO POMORSKIE","RADOMIN","ZBÓJNO"]
[null,"GRUDZIĄDZKI","GRUDZIĄDZ","GRUTA","ŁASIN","RADZYŃ CHEŁMIŃSKI","ROGÓŹNO","ŚWIECIE NAD OSĄ"]
[null,"INOWROCŁAWSKI","INOWROCŁAW","DĄBROWA BISKUPIA","GNIEWKOWO","INOWROCŁAW","JANIKOWO","KRUSZWICA","PAKOŚĆ","ROJEWO","ZŁOTNIKI KUJAWSKIE"]
[null,"LIPNOWSKI","LIPNO","BOBROWNIKI","CHROSTKOWO","DOBRZYŃ NAD WISŁĄ","KIKÓŁ","LIPNO","SKĘPE","TŁUCHOWO","WIELGIE"]
[null,"MOGILEŃSKI","DĄBROWA","JEZIORA WIELKIE","MOGILNO","STRZELNO"]
[null,"NAKIELSKI","KCYNIA","MROCZA","NAKŁO NAD NOTECIĄ","SADKI","SZUBIN"]
[null,"RADZIEJOWSKI","RADZIEJÓW","BYTOŃ","DOBRE","OSIĘCINY","PIOTRKÓW KUJAWSKI","RADZIEJÓW","TOPÓLKA"]
[null,"RYPIŃSKI","RYPIN","BRZUZE","ROGOWO","RYPIN","SKRWILNO","WĄPIELSK"]
[null,"SĘPOLEŃSKI","KAMIEŃ KRAJEŃSKI","SĘPÓLNO KRAJEŃSKIE","SOŚNO","WIĘCBORK"]
[null,"ŚWIECKI","BUKOWIEC","DRAGACZ","DRZYCIM","JEŻEWO","LNIANO","NOWE","OSIE","PRUSZCZ","ŚWIECIE","ŚWIEKATOWO","WARLUBIE"]
[null,"TORUŃSKI","CHEŁMŻA","CHEŁMŻA","CZERNIKOWO","LUBICZ","ŁUBIANKA","ŁYSOMICE","OBROWO","WIELKA NIESZAWKA","ZŁAWIEŚ WIELKA"]
[null,"TUCHOLSKI","CEKCYN","GOSTYCYN","KĘSOWO","LUBIEWO","ŚLIWICE","TUCHOLA"]
[null,"WĄBRZESKI","WĄBRZEŹNO","DĘBOWA ŁĄKA","KSIĄŻKI","PŁUŻNICA","RYŃSK"]
[null,"WŁOCŁAWSKI","KOWAL","BARUCHOWO","BONIEWO","BRZEŚĆ KUJAWSKI","CHOCEŃ","CHODECZ","FABIANKI","IZBICA KUJAWSKA","KOWAL","LUBANIE","LUBIEŃ KUJAWSKI","LUBRANIEC","WŁOCŁAWEK"]
[null,"ŻNIŃSKI","BARCIN","GĄSAWA","JANOWIEC WIELKOPOLSKI","ŁABISZYN","ROGOWO","ŻNIN"]
[null,"BYDGOSZCZ","BYDGOSZCZ"]
[null,"GRUDZIĄDZ","GRUDZIĄDZ"]
[null,"TORUŃ","TORUŃ"]
[null,"WŁOCŁAWEK","WŁOCŁAWEK"]
[null,"BIALSKI","MIĘDZYRZEC PODLASKI","TERESPOL","BIAŁA PODLASKA","DRELÓW","JANÓW PODLASKI","KODEŃ","KONSTANTYNÓW","LEŚNA PODLASKA","ŁOMAZY","MIĘDZYRZEC PODLASKI","PISZCZAC","ROKITNO","ROSSOSZ","SŁAWATYCZE","SOSNÓWKA","TERESPOL","TUCZNA","WISZNICE","ZALESIE"]
[null,"BIŁGORAJSKI","BIŁGORAJ","ALEKSANDRÓW","BIŁGORAJ","BISZCZA","FRAMPOL","GORAJ","JÓZEFÓW","KSIĘŻPOL","ŁUKOWA","OBSZA","POTOK GÓRNY","TARNOGRÓD","TERESZPOL","TUROBIN"]
[null,"CHEŁMSKI","REJOWIEC FABRYCZNY","BIAŁOPOLE","CHEŁM","DOROHUSK","DUBIENKA","KAMIEŃ","LEŚNIOWICE","REJOWIEC FABRYCZNY","RUDA-HUTA","SAWIN","SIEDLISZCZE","WIERZBICA","WOJSŁAWICE","ŻMUDŹ","REJOWIEC"]
[null,"HRUBIESZOWSKI","HRUBIESZÓW","DOŁHOBYCZÓW","HORODŁO","HRUBIESZÓW","MIRCZE","TRZESZCZANY","UCHANIE","WERBKOWICE"]
[null,"JANOWSKI","BATORZ","CHRZANÓW","DZWOLA","GODZISZÓW","JANÓW LUBELSKI","MODLIBORZYCE","POTOK WIELKI"]
[null,"KRASNOSTAWSKI","KRASNYSTAW","FAJSŁAWICE","GORZKÓW","IZBICA","KRASNYSTAW","KRAŚNICZYN","ŁOPIENNIK GÓRNY","RUDNIK","SIENNICA RÓŻANA","ŻÓŁKIEWKA"]
[null,"KRAŚNICKI","KRAŚNIK","ANNOPOL","DZIERZKOWICE","GOŚCIERADÓW","KRAŚNIK","SZASTARKA","TRZYDNIK DUŻY","URZĘDÓW","WILKOŁAZ","ZAKRZÓWEK"]
[null,"LUBARTOWSKI","LUBARTÓW","ABRAMÓW","FIRLEJ","JEZIORZANY","KAMIONKA","KOCK","LUBARTÓW","MICHÓW","NIEDŹWIADA","OSTRÓW LUBELSKI","OSTRÓWEK","SERNIKI","UŚCIMÓW"]
[null,"LUBELSKI","BEŁŻYCE","BORZECHÓW","BYCHAWA","GARBÓW","GŁUSK","JABŁONNA","JASTKÓW","KONOPNICA","KRZCZONÓW","NIEDRZWICA DUŻA","NIEMCE","STRZYŻEWICE","WOJCIECHÓW","WÓLKA","WYSOKIE","ZAKRZEW"]
[null,"ŁĘCZYŃSKI","CYCÓW","LUDWIN","ŁĘCZNA","MILEJÓW","PUCHACZÓW","SPICZYN"]
[null,"ŁUKOWSKI","ŁUKÓW","STOCZEK ŁUKOWSKI","ADAMÓW","KRZYWDA","ŁUKÓW","SEROKOMLA","STANIN","STOCZEK ŁUKOWSKI","TRZEBIESZÓW","WOJCIESZKÓW","WOLA MYSŁOWSKA"]
[null,"OPOLSKI","CHODEL","JÓZEFÓW NAD WISŁĄ","KARCZMISKA","ŁAZISKA","OPOLE LUBELSKIE","PONIATOWA","WILKÓW"]
[null,"PARCZEWSKI","DĘBOWA KŁODA","JABŁOŃ","MILANÓW","PARCZEW","PODEDWÓRZE","SIEMIEŃ","SOSNOWICA"]
[null,"PUŁAWSKI","PUŁAWY","BARANÓW","JANOWIEC","KAZIMIERZ DOLNY","KOŃSKOWOLA","KURÓW","MARKUSZÓW","NAŁĘCZÓW","PUŁAWY","WĄWOLNICA","ŻYRZYN"]
[null,"RADZYŃSKI","RADZYŃ PODLASKI","BORKI","CZEMIERNIKI","KĄKOLEWNICA","KOMARÓWKA PODLASKA","RADZYŃ PODLASKI","ULAN-MAJORAT","WOHYŃ"]
[null,"RYCKI","DĘBLIN","KŁOCZEW","NOWODWÓR","RYKI","STĘŻYCA","UŁĘŻ"]
[null,"ŚWIDNICKI","ŚWIDNIK","MEŁGIEW","PIASKI","RYBCZEWICE","TRAWNIKI"]
[null,"TOMASZOWSKI","TOMASZÓW LUBELSKI","BEŁŻEC","JARCZÓW","KRYNICE","LUBYCZA KRÓLEWSKA","ŁASZCZÓW","RACHANIE","SUSIEC","TARNAWATKA","TELATYN","TOMASZÓW LUBELSKI","TYSZOWCE","ULHÓWEK"]
[null,"WŁODAWSKI","WŁODAWA","HANNA","HAŃSK","STARY BRUS","URSZULIN","WŁODAWA","WOLA UHRUSKA","WYRYKI"]
[null,"ZAMOJSKI","ADAMÓW","GRABOWIEC","KOMARÓW-OSADA","KRASNOBRÓD","ŁABUNIE","MIĄCZYN","NIELISZ","RADECZNICA","SITNO","SKIERBIESZÓW","STARY ZAMOŚĆ","SUŁÓW","SZCZEBRZESZYN","ZAMOŚĆ","ZWIERZYNIEC"]
[null,"BIAŁA_PODLASKA","BIAŁA PODLASKA"]
[null,"CHEŁM","CHEŁM"]
[null,"LUBLIN","LUBLIN"]
[null,"ZAMOŚĆ","ZAMOŚĆ"]
[null,"GORZOWSKI","KOSTRZYN NAD ODRĄ","BOGDANIEC","DESZCZNO","KŁODAWA","LUBISZYN","SANTOK","WITNICA"]
[null,"KROŚNIEŃSKI","GUBIN","BOBROWICE","BYTNICA","DĄBIE","GUBIN","KROSNO ODRZAŃSKIE","MASZEWO"]
[null,"MIĘDZYRZECKI","BLEDZEW","MIĘDZYRZECZ","PRZYTOCZNA","PSZCZEW","SKWIERZYNA","TRZCIEL"]
[null,"NOWOSOLSKI","NOWA SÓL","BYTOM ODRZAŃSKI","KOLSKO","KOŻUCHÓW","NOWA SÓL","NOWE MIASTECZKO","OTYŃ","SIEDLISKO"]
[null,"SŁUBICKI","CYBINKA","GÓRZYCA","OŚNO LUBUSKIE","RZEPIN","SŁUBICE"]
[null,"STRZELECKO_DREZDENECKI","DOBIEGNIEW","DREZDENKO","STARE KUROWO","STRZELCE KRAJEŃSKIE","ZWIERZYN"]
[null,"SULĘCIŃSKI","KRZESZYCE","LUBNIEWICE","SŁOŃSK","SULĘCIN","TORZYM"]
[null,"ŚWIEBODZIŃSKI","LUBRZA","ŁAGÓW","SKĄPE","SZCZANIEC","ŚWIEBODZIN","ZBĄSZYNEK"]
[null,"ZIELONOGÓRSKI","BABIMOST","BOJADŁA","CZERWIEŃSK","KARGOWA","NOWOGRÓD BOBRZAŃSKI","SULECHÓW","ŚWIDNICA","TRZEBIECHÓW","ZABÓR"]
[null,"ŻAGAŃSKI","GOZDNICA","ŻAGAŃ","BRZEŹNICA","IŁOWA","MAŁOMICE","NIEGOSŁAWICE","SZPROTAWA","WYMIARKI","ŻAGAŃ"]
[null,"ŻARSKI","ŁĘKNICA","ŻARY","BRODY","JASIEŃ","LIPINKI ŁUŻYCKIE","LUBSKO","PRZEWÓZ","TRZEBIEL","TUPLICE","ŻARY"]
[null,"WSCHOWSKI","SŁAWA","SZLICHTYNGOWA","WSCHOWA"]
[null,"GORZÓW_WIELKOPOLSKI","GORZÓW WIELKOPOLSKI"]
[null,"ZIELONA_GÓRA","ZIELONA GÓRA"]
[null,"BEŁCHATOWSKI","BEŁCHATÓW","BEŁCHATÓW","DRUŻBICE","KLESZCZÓW","KLUKI","RUSIEC","SZCZERCÓW","ZELÓW"]
[null,"KUTNOWSKI","KUTNO","BEDLNO","DĄBROWICE","KROŚNIEWICE","KRZYŻANÓW","KUTNO","ŁANIĘTA","NOWE OSTROWY","OPORÓW","STRZELCE","ŻYCHLIN"]
[null,"ŁASKI","BUCZEK","ŁASK","SĘDZIEJOWICE","WIDAWA","WODZIERADY"]
[null,"ŁĘCZYCKI","ŁĘCZYCA","DASZYNA","GÓRA ŚWIĘTEJ MAŁGORZATY","GRABÓW","ŁĘCZYCA","PIĄTEK","ŚWINICE WARCKIE","WITONIA"]
[null,"ŁOWICKI","ŁOWICZ","BIELAWY","CHĄŚNO","DOMANIEWICE","KIERNOZIA","KOCIERZEW POŁUDNIOWY","ŁOWICZ","ŁYSZKOWICE","NIEBORÓW","ZDUNY"]
[null,"ŁÓDZKI_WSCHODNI","ANDRESPOL","BRÓJCE","KOLUSZKI","NOWOSOLNA","RZGÓW","TUSZYN"]
[null,"OPOCZYŃSKI","BIAŁACZÓW","DRZEWICA","MNISZKÓW","OPOCZNO","PARADYŻ","POŚWIĘTNE","SŁAWNO","ŻARNÓW"]
[null,"PABIANICKI","KONSTANTYNÓW ŁÓDZKI","PABIANICE","DŁUTÓW","DOBROŃ","KSAWERÓW","LUTOMIERSK","PABIANICE"]
[null,"PAJĘCZAŃSKI","DZIAŁOSZYN","KIEŁCZYGŁÓW","NOWA BRZEŹNICA","PAJĘCZNO","RZĄŚNIA","SIEMKOWICE","STRZELCE WIELKIE","SULMIERZYCE"]
[null,"PIOTRKOWSKI","ALEKSANDRÓW","CZARNOCIN","GORZKOWICE","GRABICA","ŁĘKI SZLACHECKIE","MOSZCZENICA","RĘCZNO","ROZPRZA","SULEJÓW","WOLA KRZYSZTOPORSKA","WOLBÓRZ"]
[null,"PODDĘBICKI","DALIKÓW","PĘCZNIEW","PODDĘBICE","UNIEJÓW","WARTKOWICE","ZADZIM"]
[null,"RADOMSZCZAŃSKI","RADOMSKO","DOBRYSZYCE","GIDLE","GOMUNICE","KAMIEŃSK","KOBIELE WIELKIE","KODRĄB","LGOTA WIELKA","ŁADZICE","MASŁOWICE","PRZEDBÓRZ","RADOMSKO","WIELGOMŁYNY","ŻYTNO"]
[null,"RAWSKI","RAWA MAZOWIECKA","BIAŁA RAWSKA","CIELĄDZ","RAWA MAZOWIECKA","REGNÓW","SADKOWICE"]
[null,"SIERADZKI","SIERADZ","BŁASZKI","BRĄSZEWICE","BRZEŹNIO","BURZENIN","GOSZCZANÓW","KLONOWA","SIERADZ","WARTA","WRÓBLEW","ZŁOCZEW"]
[null,"SKIERNIEWICKI","BOLIMÓW","GŁUCHÓW","GODZIANÓW","KOWIESY","LIPCE REYMONTOWSKIE","MAKÓW","NOWY KAWĘCZYN","SKIERNIEWICE","SŁUPIA"]
[null,"TOMASZOWSKI","TOMASZÓW MAZOWIECKI","BĘDKÓW","BUDZISZEWICE","CZERNIEWICE","INOWŁÓDZ","LUBOCHNIA","ROKICINY","RZECZYCA","TOMASZÓW MAZOWIECKI","UJAZD","ŻELECHLINEK"]
[null,"WIELUŃSKI","BIAŁA","CZARNOŻYŁY","KONOPNICA","MOKRSKO","OSJAKÓW","OSTRÓWEK","PĄTNÓW","SKOMLIN","WIELUŃ","WIERZCHLAS"]
[null,"WIERUSZOWSKI","BOLESŁAWIEC","CZASTARY","GALEWICE","LUTUTÓW","ŁUBNICE","SOKOLNIKI","WIERUSZÓW"]
[null,"ZDUŃSKOWOLSKI","ZDUŃSKA WOLA","SZADEK","ZAPOLICE","ZDUŃSKA WOLA"]
[null,"ZGIERSKI","GŁOWNO","OZORKÓW","ZGIERZ","ALEKSANDRÓW ŁÓDZKI","GŁOWNO","OZORKÓW","PARZĘCZEW","STRYKÓW","ZGIERZ"]
[null,"BRZEZIŃSKI","BRZEZINY","BRZEZINY","DMOSIN","JEŻÓW","ROGÓW"]
[null,"ŁÓDŹ","ŁÓDŹ"]
[null,"PIOTRKÓW_TRYBUNALSKI","PIOTRKÓW TRYBUNALSKI"]
[null,"SKIERNIEWICE","SKIERNIEWICE"]
[null,"BOCHEŃSKI","BOCHNIA","BOCHNIA","DRWINIA","LIPNICA MUROWANA","ŁAPANÓW","NOWY WIŚNICZ","RZEZAWA","TRZCIANA","ŻEGOCINA"]
[null,"BRZESKI","BORZĘCIN","BRZESKO","CZCHÓW","DĘBNO","GNOJNIK","IWKOWA","SZCZUROWA"]
[null,"CHRZANOWSKI","ALWERNIA","BABICE","CHRZANÓW","LIBIĄŻ","TRZEBINIA"]
[null,"DĄBROWSKI","BOLESŁAW","DĄBROWA TARNOWSKA","GRĘBOSZÓW","MĘDRZECHÓW","OLESNO","RADGOSZCZ","SZCZUCIN"]
[null,"GORLICKI","GORLICE","BIECZ","BOBOWA","GORLICE","LIPINKI","ŁUŻNA","MOSZCZENICA","ROPA","SĘKOWA","UŚCIE GORLICKIE"]
[null,"KRAKOWSKI","CZERNICHÓW","IGOŁOMIA-WAWRZEŃCZYCE","IWANOWICE","JERZMANOWICE-PRZEGINIA","KOCMYRZÓW-LUBORZYCA","KRZESZOWICE","LISZKI","MICHAŁOWICE","MOGILANY","SKAŁA","SKAWINA","SŁOMNIKI","SUŁOSZOWA","ŚWIĄTNIKI GÓRNE","WIELKA WIEŚ","ZABIERZÓW","ZIELONKI"]
[null,"LIMANOWSKI","LIMANOWA","MSZANA DOLNA","DOBRA","JODŁOWNIK","KAMIENICA","LASKOWA","LIMANOWA","ŁUKOWICA","MSZANA DOLNA","NIEDŹWIEDŹ","SŁOPNICE","TYMBARK"]
[null,"MIECHOWSKI","CHARSZNICA","GOŁCZA","KOZŁÓW","KSIĄŻ WIELKI","MIECHÓW","RACŁAWICE","SŁABOSZÓW"]
[null,"MYŚLENICKI","DOBCZYCE","LUBIEŃ","MYŚLENICE","PCIM","RACIECHOWICE","SIEPRAW","SUŁKOWICE","TOKARNIA","WIŚNIOWA"]
[null,"NOWOSĄDECKI","GRYBÓW","CHEŁMIEC","GRÓDEK NAD DUNAJCEM","GRYBÓW","KAMIONKA WIELKA","KORZENNA","KRYNICA-ZDRÓJ","ŁABOWA","ŁĄCKO","ŁOSOSINA DOLNA","MUSZYNA","NAWOJOWA","PIWNICZNA-ZDRÓJ","PODEGRODZIE","RYTRO","STARY SĄCZ"]
[null,"NOWOTARSKI","NOWY TARG","SZCZAWNICA","CZARNY DUNAJEC","CZORSZTYN","JABŁONKA","KROŚCIENKO NAD DUNAJCEM","LIPNICA WIELKA","ŁAPSZE NIŻNE","NOWY TARG","OCHOTNICA DOLNA","RABA WYŻNA","RABKA-ZDRÓJ","SPYTKOWICE","SZAFLARY"]
[null,"OLKUSKI","BUKOWNO","BOLESŁAW","KLUCZE","OLKUSZ","TRZYCIĄŻ","WOLBROM"]
[null,"OŚWIĘCIMSKI","OŚWIĘCIM","BRZESZCZE","CHEŁMEK","KĘTY","OSIEK","OŚWIĘCIM","POLANKA WIELKA","PRZECISZÓW","ZATOR"]
[null,"PROSZOWICKI","KONIUSZA","KOSZYCE","NOWE BRZESKO","PAŁECZNICA","PROSZOWICE","RADZIEMICE"]
[null,"SUSKI","JORDANÓW","SUCHA BESKIDZKA","BUDZÓW","BYSTRA-SIDZINA","JORDANÓW","MAKÓW PODHALAŃSKI","STRYSZAWA","ZAWOJA","ZEMBRZYCE"]
[null,"TARNOWSKI","CIĘŻKOWICE","GROMNIK","LISIA GÓRA","PLEŚNA","RADŁÓW","RYGLICE","RZEPIENNIK STRZYŻEWSKI","SKRZYSZÓW","TARNÓW","TUCHÓW","WIERZCHOSŁAWICE","WIETRZYCHOWICE","WOJNICZ","ZAKLICZYN","ŻABNO","SZERZYNY"]
[null,"TATRZAŃSKI","ZAKOPANE","BIAŁY DUNAJEC","BUKOWINA TATRZAŃSKA","KOŚCIELISKO","PORONIN"]
[null,"WADOWICKI","ANDRYCHÓW","BRZEŹNICA","KALWARIA ZEBRZYDOWSKA","LANCKORONA","MUCHARZ","SPYTKOWICE","STRYSZÓW","TOMICE","WADOWICE","WIEPRZ"]
[null,"WIELICKI","BISKUPICE","GDÓW","KŁAJ","NIEPOŁOMICE","WIELICZKA"]
[null,"KRAKÓW","KRAKÓW"]
[null,"NOWY SĄCZ","NOWY SĄCZ"]
[null,"TARNÓW","TARNÓW"]
[null,"BIAŁOBRZESKI","BIAŁOBRZEGI","PROMNA","RADZANÓW","STARA BŁOTNICA","STROMIEC","WYŚMIERZYCE"]
[null,"CIECHANOWSKI","CIECHANÓW","CIECHANÓW","GLINOJECK","GOŁYMIN-OŚRODEK","GRUDUSK","OJRZEŃ","OPINOGÓRA GÓRNA","REGIMIN","SOŃSK"]
[null,"GARWOLIŃSKI","GARWOLIN","ŁASKARZEW","BOROWIE","GARWOLIN","GÓRZNO","ŁASKARZEW","MACIEJOWICE","MIASTKÓW KOŚCIELNY","PARYSÓW","PILAWA","SOBOLEW","TROJANÓW","WILGA","ŻELECHÓW"]
[null,"GOSTYNIŃSKI","GOSTYNIN","GOSTYNIN","PACYNA","SANNIKI","SZCZAWIN KOŚCIELNY"]
[null,"GRODZISKI","MILANÓWEK","PODKOWA LEŚNA","BARANÓW","GRODZISK MAZOWIECKI","JAKTORÓW","ŻABIA WOLA"]
[null,"GRÓJECKI","BELSK DUŻY","BŁĘDÓW","CHYNÓW","GOSZCZYN","GRÓJEC","JASIENIEC","MOGIELNICA","NOWE MIASTO NAD PILICĄ","PNIEWY","WARKA"]
[null,"KOZIENICKI","GARBATKA-LETNISKO","GŁOWACZÓW","GNIEWOSZÓW","GRABÓW NAD PILICĄ","KOZIENICE","MAGNUSZEW","SIECIECHÓW"]
[null,"LEGIONOWSKI","LEGIONOWO","JABŁONNA","NIEPORĘT","SEROCK","WIELISZEW"]
[null,"LIPSKI","CHOTCZA","CIEPIELÓW","LIPSKO","RZECZNIÓW","SIENNO","SOLEC NAD WISŁĄ"]
[null,"ŁOSICKI","HUSZLEW","ŁOSICE","OLSZANKA","PLATERÓW","SARNAKI","STARA KORNICA"]
[null,"MAKOWSKI","MAKÓW MAZOWIECKI","CZERWONKA","KARNIEWO","KRASNOSIELC","MŁYNARZE","PŁONIAWY-BRAMURA","RÓŻAN","RZEWNIE","SYPNIEWO","SZELKÓW"]
[null,"MIŃSKI","MIŃSK MAZOWIECKI","CEGŁÓW","DĘBE WIELKIE","DOBRE","HALINÓW","JAKUBÓW","KAŁUSZYN","LATOWICZ","MIŃSK MAZOWIECKI","MROZY","SIENNICA","STANISŁAWÓW","SULEJÓWEK"]
[null,"MŁAWSKI","MŁAWA","DZIERZGOWO","LIPOWIEC KOŚCIELNY","RADZANÓW","STRZEGOWO","STUPSK","SZREŃSK","SZYDŁOWO","WIECZFNIA KOŚCIELNA","WIŚNIEWO"]
[null,"NOWODWORSKI","NOWY DWÓR MAZOWIECKI","CZOSNÓW","LEONCIN","NASIELSK","POMIECHÓWEK","ZAKROCZYM"]
[null,"OSTROŁĘCKI","BARANOWO","CZARNIA","CZERWIN","GOWOROWO","KADZIDŁO","LELIS","ŁYSE","MYSZYNIEC","OLSZEWO-BORKI","RZEKUŃ","TROSZYN"]
[null,"OSTROWSKI","OSTRÓW MAZOWIECKA","ANDRZEJEWO","BOGUTY-PIANKI","BROK","MAŁKINIA GÓRNA","NUR","OSTRÓW MAZOWIECKA","STARY LUBOTYŃ","SZULBORZE WIELKIE","WĄSEWO","ZARĘBY KOŚCIELNE"]
[null,"OTWOCKI","JÓZEFÓW","OTWOCK","CELESTYNÓW","KARCZEW","KOŁBIEL","OSIECK","SOBIENIE-JEZIORY","WIĄZOWNA"]
[null,"PIASECZYŃSKI","GÓRA KALWARIA","KONSTANCIN-JEZIORNA","LESZNOWOLA","PIASECZNO","PRAŻMÓW","TARCZYN"]
[null,"PŁOCKI","BIELSK","BODZANÓW","BRUDZEŃ DUŻY","BULKOWO","DROBIN","GĄBIN","ŁĄCK","MAŁA WIEŚ","NOWY DUNINÓW","RADZANOWO","SŁUBICE","SŁUPNO","STARA BIAŁA","STAROŹREBY","WYSZOGRÓD"]
[null,"PŁOŃSKI","PŁOŃSK","RACIĄŻ","BABOSZEWO","CZERWIŃSK NAD WISŁĄ","DZIERZĄŻNIA","JONIEC","NARUSZEWO","NOWE MIASTO","PŁOŃSK","RACIĄŻ","SOCHOCIN","ZAŁUSKI"]
[null,"PRUSZKOWSKI","PIASTÓW","PRUSZKÓW","BRWINÓW","MICHAŁOWICE","NADARZYN","RASZYN"]
[null,"PRZASNYSKI","PRZASNYSZ","CHORZELE","CZERNICE BOROWE","JEDNOROŻEC","KRASNE","KRZYNOWŁOGA MAŁA","PRZASNYSZ"]
[null,"PRZYSUSKI","BORKOWICE","GIELNIÓW","KLWÓW","ODRZYWÓŁ","POTWORÓW","PRZYSUCHA","RUSINÓW","WIENIAWA"]
[null,"PUŁTUSKI","GZY","OBRYTE","POKRZYWNICA","PUŁTUSK","ŚWIERCZE","WINNICA","ZATORY"]
[null,"RADOMSKI","PIONKI","GÓZD","IŁŻA","JASTRZĘBIA","JEDLIŃSK","JEDLNIA-LETNISKO","KOWALA","PIONKI","PRZYTYK","SKARYSZEW","WIERZBICA","WOLANÓW","ZAKRZEW"]
[null,"SIEDLECKI","DOMANICE","KORCZEW","KOTUŃ","MOKOBODY","MORDY","PAPROTNIA","PRZESMYKI","SIEDLCE","SKÓRZEC","SUCHOŻEBRY","WIŚNIEW","WODYNIE","ZBUCZYN"]
[null,"SIERPECKI","SIERPC","GOZDOWO","MOCHOWO","ROŚCISZEWO","SIERPC","SZCZUTOWO","ZAWIDZ"]
[null,"SOCHACZEWSKI","SOCHACZEW","BROCHÓW","IŁÓW","MŁODZIESZYN","NOWA SUCHA","RYBNO","SOCHACZEW","TERESIN"]
[null,"SOKOŁOWSKI","SOKOŁÓW PODLASKI","BIELANY","CERANÓW","JABŁONNA LACKA","KOSÓW LACKI","REPKI","SABNIE","SOKOŁÓW PODLASKI","STERDYŃ"]
[null,"SZYDŁOWIECKI","CHLEWISKA","JASTRZĄB","MIRÓW","OROŃSKO","SZYDŁOWIEC"]
[null,"WARSZAWSKI ZACHODNI","BŁONIE","IZABELIN","KAMPINOS","LESZNO","ŁOMIANKI","OŻARÓW MAZOWIECKI","STARE BABICE"]
[null,"WĘGROWSKI","WĘGRÓW","GRĘBKÓW","KORYTNICA","LIW","ŁOCHÓW","MIEDZNA","SADOWNE","STOCZEK","WIERZBNO"]
[null,"WOŁOMIŃSKI","KOBYŁKA","MARKI","ZĄBKI","ZIELONKA","DĄBRÓWKA","JADÓW","KLEMBÓW","POŚWIĘTNE","RADZYMIN","STRACHÓWKA","TŁUSZCZ","WOŁOMIN"]
[null,"WYSZKOWSKI","BRAŃSZCZYK","DŁUGOSIODŁO","RZĄŚNIK","SOMIANKA","WYSZKÓW","ZABRODZIE"]
[null,"ZWOLEŃSKI","KAZANÓW","POLICZNA","PRZYŁĘK","TCZÓW","ZWOLEŃ"]
[null,"ŻUROMIŃSKI","BIEŻUŃ","KUCZBORK-OSADA","LUBOWIDZ","LUTOCIN","SIEMIĄTKOWO","ŻUROMIN"]
[null,"ŻYRARDOWSKI","ŻYRARDÓW","MSZCZONÓW","PUSZCZA MARIAŃSKA","RADZIEJOWICE","WISKITKI"]
[null,"WARSZAWA","WARSZAWA"]
[null,"OSTROŁĘKA","OSTROŁĘKA"]
[null,"PŁOCK","PŁOCK"]
[null,"RADOM","RADOM"]
[null,"SIEDLCE","SIEDLCE"]
[null,"BRZESKI","BRZEG","SKARBIMIERZ","GRODKÓW","LEWIN BRZESKI","LUBSZA","OLSZANKA"]
[null,"GŁUBCZYCKI","BABORÓW","BRANICE","GŁUBCZYCE","KIETRZ"]
[null,"KĘDZIERZYŃSKO_KOZIELSKI","KĘDZIERZYN-KOŹLE","BIERAWA","CISEK","PAWŁOWICZKI","POLSKA CEREKIEW","REŃSKA WIEŚ"]
[null,"KLUCZBORSKI","BYCZYNA","KLUCZBORK","LASOWICE WIELKIE","WOŁCZYN"]
[null,"KRAPKOWICKI","GOGOLIN","KRAPKOWICE","STRZELECZKI","WALCE","ZDZIESZOWICE"]
[null,"NAMYSŁOWSKI","DOMASZOWICE","NAMYSŁÓW","POKÓJ","ŚWIERCZÓW","WILKÓW"]
[null,"NYSKI","GŁUCHOŁAZY","KAMIENNIK","KORFANTÓW","ŁAMBINOWICE","NYSA","OTMUCHÓW","PACZKÓW","PAKOSŁAWICE","SKOROSZYCE"]
[null,"OLESKI","DOBRODZIEŃ","GORZÓW ŚLĄSKI","OLESNO","PRASZKA","RADŁÓW","RUDNIKI","ZĘBOWICE"]
[null,"OPOLSKI","CHRZĄSTOWICE","DĄBROWA","DOBRZEŃ WIELKI","KOMPRACHCICE","ŁUBNIANY","MURÓW","NIEMODLIN","OZIMEK","POPIELÓW","PRÓSZKÓW","TARNÓW OPOLSKI","TUŁOWICE","TURAWA"]
[null,"PRUDNICKI","BIAŁA","GŁOGÓWEK","LUBRZA","PRUDNIK"]
[null,"STRZELECKI","IZBICKO","JEMIELNICA","KOLONOWSKIE","LEŚNICA","STRZELCE OPOLSKIE","UJAZD","ZAWADZKIE"]
[null,"OPOLE","OPOLE"]
[null,"BIESZCZADZKI","CZARNA","LUTOWISKA","USTRZYKI DOLNE"]
[null,"BRZOZOWSKI","BRZOZÓW","DOMARADZ","DYDNIA","HACZÓW","JASIENICA ROSIELNA","NOZDRZEC"]
[null,"DĘBICKI","DĘBICA","BRZOSTEK","CZARNA","DĘBICA","JODŁOWA","PILZNO","ŻYRAKÓW"]
[null,"JAROSŁAWSKI","JAROSŁAW","RADYMNO","CHŁOPICE","JAROSŁAW","LASZKI","PAWŁOSIÓW","PRUCHNIK","RADYMNO","ROKIETNICA","ROŹWIENICA","WIĄZOWNICA"]
[null,"JASIELSKI","JASŁO","BRZYSKA","DĘBOWIEC","JASŁO","KOŁACZYCE","KREMPNA","NOWY ŻMIGRÓD","OSIEK JASIELSKI","SKOŁYSZYN","TARNOWIEC"]
[null,"KOLBUSZOWSKI","CMOLAS","KOLBUSZOWA","MAJDAN KRÓLEWSKI","NIWISKA","RANIŻÓW","DZIKOWIEC"]
[null,"KROŚNIEŃSKI","CHORKÓWKA","DUKLA","IWONICZ-ZDRÓJ","JEDLICZE","KORCZYNA","KROŚCIENKO WYŻNE","MIEJSCE PIASTOWE","RYMANÓW","WOJASZÓWKA","JAŚLISKA"]
[null,"LEŻAJSKI","LEŻAJSK","GRODZISKO DOLNE","KURYŁÓWKA","LEŻAJSK","NOWA SARZYNA"]
[null,"LUBACZOWSKI","LUBACZÓW","CIESZANÓW","HORYNIEC-ZDRÓJ","LUBACZÓW","NAROL","OLESZYCE","STARY DZIKÓW","WIELKIE OCZY"]
[null,"ŁAŃCUCKI","ŁAŃCUT","BIAŁOBRZEGI","CZARNA","ŁAŃCUT","MARKOWA","RAKSZAWA","ŻOŁYNIA"]
[null,"MIELECKI","MIELEC","BOROWA","CZERMIN","GAWŁUSZOWICE","MIELEC","PADEW NARODOWA","PRZECŁAW","RADOMYŚL WIELKI","TUSZÓW NARODOWY","WADOWICE GÓRNE"]
[null,"NIŻAŃSKI","HARASIUKI","JAROCIN","JEŻOWE","KRZESZÓW","NISKO","RUDNIK NAD SANEM","ULANÓW"]
[null,"PRZEMYSKI","BIRCZA","DUBIECKO","FREDROPOL","KRASICZYN","KRZYWCZA","MEDYKA","ORŁY","PRZEMYŚL","STUBNO","ŻURAWICA"]
[null,"PRZEWORSKI","PRZEWORSK","ADAMÓWKA","GAĆ","JAWORNIK POLSKI","KAŃCZUGA","PRZEWORSK","SIENIAWA","TRYŃCZA","ZARZECZE"]
[null,"ROPCZYCKO_SĘDZISZOWSKI","IWIERZYCE","OSTRÓW","ROPCZYCE","SĘDZISZÓW MAŁOPOLSKI","WIELOPOLE SKRZYŃSKIE"]
[null,"RZESZOWSKI","DYNÓW","BŁAŻOWA","BOGUCHWAŁA","CHMIELNIK","DYNÓW","GŁOGÓW MAŁOPOLSKI","HYŻNE","KAMIEŃ","KRASNE","LUBENIA","SOKOŁÓW MAŁOPOLSKI","ŚWILCZA","TRZEBOWNISKO","TYCZYN"]
[null,"SANOCKI","SANOK","BESKO","BUKOWSKO","KOMAŃCZA","SANOK","TYRAWA WOŁOSKA","ZAGÓRZ","ZARSZYN"]
[null,"STALOWOWOLSKI","STALOWA WOLA","BOJANÓW","PYSZNICA","RADOMYŚL NAD SANEM","ZAKLIKÓW","ZALESZANY"]
[null,"STRZYŻOWSKI","CZUDEC","FRYSZTAK","NIEBYLEC","STRZYŻÓW","WIŚNIOWA"]
[null,"TARNOBRZESKI","BARANÓW SANDOMIERSKI","GORZYCE","GRĘBÓW","NOWA DĘBA"]
[null,"LESKI","BALIGRÓD","CISNA","LESKO","OLSZANICA","SOLINA"]
[null,"KROSNO","KROSNO"]
[null,"PRZEMYŚL","PRZEMYŚL"]
[null,"RZESZÓW","RZESZÓW"]
[null,"TARNOBRZEG","TARNOBRZEG"]
[null,"AUGUSTOWSKI","AUGUSTÓW","AUGUSTÓW","BARGŁÓW KOŚCIELNY","LIPSK","NOWINKA","PŁASKA","SZTABIN"]
[null,"BIAŁOSTOCKI","CHOROSZCZ","CZARNA BIAŁOSTOCKA","DOBRZYNIEWO DUŻE","GRÓDEK","JUCHNOWIEC KOŚCIELNY","ŁAPY","MICHAŁOWO","POŚWIĘTNE","SUPRAŚL","SURAŻ","TUROŚŃ KOŚCIELNA","TYKOCIN","WASILKÓW","ZABŁUDÓW","ZAWADY"]
[null,"BIELSKI","BIELSK PODLASKI","BRAŃSK","BIELSK PODLASKI","BOĆKI","BRAŃSK","ORLA","RUDKA","WYSZKI"]
[null,"GRAJEWSKI","GRAJEWO","GRAJEWO","RADZIŁÓW","RAJGRÓD","SZCZUCZYN","WĄSOSZ"]
[null,"HAJNOWSKI","HAJNÓWKA","BIAŁOWIEŻA","CZEREMCHA","CZYŻE","DUBICZE CERKIEWNE","HAJNÓWKA","KLESZCZELE","NAREW","NAREWKA"]
[null,"KOLNEŃSKI","KOLNO","GRABOWO","KOLNO","MAŁY PŁOCK","STAWISKI","TUROŚL"]
[null,"ŁOMŻYŃSKI","JEDWABNE","ŁOMŻA","MIASTKOWO","NOWOGRÓD","PIĄTNICA","PRZYTUŁY","ŚNIADOWO","WIZNA","ZBÓJNA"]
[null,"MONIECKI","GONIĄDZ","JASIONÓWKA","JAŚWIŁY","KNYSZYN","KRYPNO","MOŃKI","TRZCIANNE"]
[null,"SEJNEŃSKI","SEJNY","GIBY","KRASNOPOL","PUŃSK","SEJNY"]
[null,"SIEMIATYCKI","SIEMIATYCZE","DROHICZYN","DZIADKOWICE","GRODZISK","MIELNIK","MILEJCZYCE","NURZEC-STACJA","PERLEJEWO","SIEMIATYCZE"]
[null,"SOKÓLSKI","DĄBROWA BIAŁOSTOCKA","JANÓW","KORYCIN","KRYNKI","KUŹNICA","NOWY DWÓR","SIDRA","SOKÓŁKA","SUCHOWOLA","SZUDZIAŁOWO"]
[null,"SUWALSKI","BAKAŁARZEWO","FILIPÓW","JELENIEWO","PRZEROŚL","RACZKI","RUTKA-TARTAK","SUWAŁKI","SZYPLISZKI","WIŻAJNY"]
[null,"WYSOKOMAZOWIECKI","WYSOKIE MAZOWIECKIE","CIECHANOWIEC","CZYŻEW","KLUKOWO","KOBYLIN-BORZYMY","KULESZE KOŚCIELNE","NOWE PIEKUTY","SOKOŁY","SZEPIETOWO","WYSOKIE MAZOWIECKIE"]
[null,"ZAMBROWSKI","ZAMBRÓW","KOŁAKI KOŚCIELNE","RUTKI","SZUMOWO","ZAMBRÓW"]
[null,"BIAŁYSTOK","BIAŁYSTOK"]
[null,"ŁOMŻA","ŁOMŻA"]
[null,"SUWAŁKI","SUWAŁKI"]
[null,"BYTOWSKI","BORZYTUCHOM","BYTÓW","CZARNA DĄBRÓWKA","KOŁCZYGŁOWY","LIPNICA","MIASTKO","PARCHOWO","STUDZIENICE","TRZEBIELINO","TUCHOMIE"]
[null,"CHOJNICKI","CHOJNICE","BRUSY","CHOJNICE","CZERSK","KONARZYNY"]
[null,"CZŁUCHOWSKI","CZŁUCHÓW","CZARNE","CZŁUCHÓW","DEBRZNO","KOCZAŁA","PRZECHLEWO","RZECZENICA"]
[null,"GDAŃSKI","PRUSZCZ GDAŃSKI","CEDRY WIELKIE","KOLBUDY","PRUSZCZ GDAŃSKI","PRZYWIDZ","PSZCZÓŁKI","SUCHY DĄB","TRĄBKI WIELKIE"]
[null,"KARTUSKI","CHMIELNO","KARTUZY","PRZODKOWO","SIERAKOWICE","SOMONINO","STĘŻYCA","SULĘCZYNO","ŻUKOWO"]
[null,"KOŚCIERSKI","KOŚCIERZYNA","DZIEMIANY","KARSIN","KOŚCIERZYNA","LINIEWO","LIPUSZ","NOWA KARCZMA","STARA KISZEWA"]
[null,"KWIDZYŃSKI","KWIDZYN","GARDEJA","KWIDZYN","PRABUTY","RYJEWO","SADLINKI"]
[null,"LĘBORSKI","LĘBORK","ŁEBA","CEWICE","NOWA WIEŚ LĘBORSKA","WICKO"]
[null,"MALBORSKI","MALBORK","LICHNOWY","MALBORK","MIŁORADZ","NOWY STAW","STARE POLE"]
[null,"NOWODWORSKI","KRYNICA MORSKA","NOWY DWÓR GDAŃSKI","OSTASZEWO","STEGNA","SZTUTOWO"]
[null,"PUCKI","HEL","JASTARNIA","PUCK","WŁADYSŁAWOWO","KOSAKOWO","KROKOWA","PUCK"]
[null,"SŁUPSKI","USTKA","DAMNICA","DĘBNICA KASZUBSKA","GŁÓWCZYCE","KĘPICE","KOBYLNICA","POTĘGOWO","SŁUPSK","SMOŁDZINO","USTKA"]
[null,"STAROGARDZKI","CZARNA WODA","SKÓRCZ","STAROGARD GDAŃSKI","BOBOWO","KALISKA","LUBICHOWO","OSIECZNA","OSIEK","SKARSZEWY","SKÓRCZ","SMĘTOWO GRANICZNE","STAROGARD GDAŃSKI","ZBLEWO"]
[null,"TCZEWSKI","TCZEW","GNIEW","MORZESZCZYN","PELPLIN","SUBKOWY","TCZEW"]
[null,"WEJHEROWSKI","REDA","RUMIA","WEJHEROWO","CHOCZEWO","GNIEWINO","LINIA","LUZINO","ŁĘCZYCE","SZEMUD","WEJHEROWO"]
[null,"SZTUMSKI","DZIERZGOŃ","MIKOŁAJKI POMORSKIE","STARY DZIERZGOŃ","STARY TARG","SZTUM"]
[null,"GDAŃSK","GDAŃSK"]
[null,"GDYNIA","GDYNIA"]
[null,"SŁUPSK","SŁUPSK"]
[null,"SOPOT","SOPOT"]
[null,"BĘDZIŃSKI","BĘDZIN","CZELADŹ","WOJKOWICE","BOBROWNIKI","MIERZĘCICE","PSARY","SIEWIERZ","SŁAWKÓW"]
[null,"BIELSKI","SZCZYRK","BESTWINA","BUCZKOWICE","CZECHOWICE-DZIEDZICE","JASIENICA","JAWORZE","KOZY","PORĄBKA","WILAMOWICE","WILKOWICE"]
[null,"CIESZYŃSKI","CIESZYN","USTROŃ","WISŁA","BRENNA","CHYBIE","DĘBOWIEC","GOLESZÓW","HAŻLACH","ISTEBNA","SKOCZÓW","STRUMIEŃ","ZEBRZYDOWICE"]
[null,"CZĘSTOCHOWSKI","BLACHOWNIA","DĄBROWA ZIELONA","JANÓW","KAMIENICA POLSKA","KŁOMNICE","KONIECPOL","KONOPISKA","KRUSZYNA","LELÓW","MSTÓW","MYKANÓW","OLSZTYN","POCZESNA","PRZYRÓW","RĘDZINY","STARCZA"]
[null,"GLIWICKI","KNURÓW","PYSKOWICE","GIERAŁTOWICE","PILCHOWICE","RUDZINIEC","SOŚNICOWICE","TOSZEK","WIELOWIEŚ"]
[null,"KŁOBUCKI","KŁOBUCK","KRZEPICE","LIPIE","MIEDŹNO","OPATÓW","PANKI","POPÓW","PRZYSTAJŃ","WRĘCZYCA WIELKA"]
[null,"LUBLINIECKI","LUBLINIEC","BORONÓW","CIASNA","HERBY","KOCHANOWICE","KOSZĘCIN","PAWONKÓW","WOŹNIKI"]
[null,"MIKOŁOWSKI","ŁAZISKA GÓRNE","MIKOŁÓW","ORZESZE","ORNONTOWICE","WYRY"]
[null,"MYSZKOWSKI","MYSZKÓW","KOZIEGŁOWY","NIEGOWA","PORAJ","ŻARKI"]
[null,"PSZCZYŃSKI","GOCZAŁKOWICE-ZDRÓJ","KOBIÓR","MIEDŹNA","PAWŁOWICE","PSZCZYNA","SUSZEC"]
[null,"RACIBORSKI","RACIBÓRZ","KORNOWAC","KRZANOWICE","KRZYŻANOWICE","KUŹNIA RACIBORSKA","NĘDZA","PIETROWICE WIELKIE","RUDNIK"]
[null,"RYBNICKI","CZERWIONKA-LESZCZYNY","GASZOWICE","JEJKOWICE","LYSKI","ŚWIERKLANY"]
[null,"TARNOGÓRSKI","KALETY","MIASTECZKO ŚLĄSKIE","RADZIONKÓW","TARNOWSKIE GÓRY","KRUPSKI MŁYN","OŻAROWICE","ŚWIERKLANIEC","TWORÓG","ZBROSŁAWICE"]
[null,"BIERUŃSKO_LĘDZIŃSKI","BIERUŃ","IMIELIN","LĘDZINY","BOJSZOWY","CHEŁM ŚLĄSKI"]
[null,"WODZISŁAWSKI","PSZÓW","RADLIN","RYDUŁTOWY","WODZISŁAW ŚLĄSKI","GODÓW","GORZYCE","LUBOMIA","MARKLOWICE","MSZANA"]
[null,"ZAWIERCIAŃSKI","PORĘBA","ZAWIERCIE","IRZĄDZE","KROCZYCE","ŁAZY","OGRODZIENIEC","PILICA","SZCZEKOCINY","WŁODOWICE","ŻARNOWIEC"]
[null,"ŻYWIECKI","ŻYWIEC","CZERNICHÓW","GILOWICE","JELEŚNIA","KOSZARAWA","LIPOWA","ŁĘKAWICA","ŁODYGOWICE","MILÓWKA","RADZIECHOWY-WIEPRZ","RAJCZA","ŚLEMIEŃ","ŚWINNA","UJSOŁY","WĘGIERSKA GÓRKA"]
[null,"BIELSKO_BIAŁA","BIELSKO-BIAŁA"]
[null,"BYTOM","BYTOM"]
[null,"CHORZÓW","CHORZÓW"]
[null,"CZĘSTOCHOWA","CZĘSTOCHOWA"]
[null,"DĄBROWA GÓRNICZA","DĄBROWA GÓRNICZA"]
[null,"GLIWICE","GLIWICE"]
[null,"JASTRZĘBIE_ZDRÓJ","JASTRZĘBIE-ZDRÓJ"]
[null,"JAWORZNO","JAWORZNO"]
[null,"KATOWICE","KATOWICE"]
[null,"MYSŁOWICE","MYSŁOWICE"]
[null,"PIEKARY_ŚLĄSKIE","PIEKARY ŚLĄSKIE"]
[null,"RUDA_ŚLĄSKA","RUDA ŚLĄSKA"]
[null,"RYBNIK","RYBNIK"]
[null,"SIEMIANOWICE_ŚLĄSKIE","SIEMIANOWICE ŚLĄSKIE"]
[null,"SOSNOWIEC","SOSNOWIEC"]
[null,"ŚWIĘTOCHŁOWICE","ŚWIĘTOCHŁOWICE"]
[null,"TYCHY","TYCHY"]
[null,"ZABRZE","ZABRZE"]
[null,"ŻORY","ŻORY"]
[null,"BUSKI","BUSKO-ZDRÓJ","GNOJNO","NOWY KORCZYN","PACANÓW","SOLEC-ZDRÓJ","STOPNICA","TUCZĘPY","WIŚLICA"]
[null,"JĘDRZEJOWSKI","IMIELNO","JĘDRZEJÓW","MAŁOGOSZCZ","NAGŁOWICE","OKSA","SĘDZISZÓW","SŁUPIA","SOBKÓW","WODZISŁAW"]
[null,"KAZIMIERSKI","BEJSCE","CZARNOCIN","KAZIMIERZA WIELKA","OPATOWIEC","SKALBMIERZ"]
[null,"KIELECKI","BIELINY","BODZENTYN","CHĘCINY","CHMIELNIK","DALESZYCE","GÓRNO","ŁAGÓW","ŁOPUSZNO","MASŁÓW","MIEDZIANA GÓRA","MNIÓW","MORAWICA","NOWA SŁUPIA","PIEKOSZÓW","PIERZCHNICA","RAKÓW","SITKÓWKA-NOWINY","STRAWCZYN","ZAGNAŃSK"]
[null,"KONECKI","FAŁKÓW","GOWARCZÓW","KOŃSKIE","RADOSZYCE","RUDA MALENIECKA","SŁUPIA KONECKA","SMYKÓW","STĄPORKÓW"]
[null,"OPATOWSKI","BAĆKOWICE","IWANISKA","LIPNIK","OPATÓW","OŻARÓW","SADOWIE","TARŁÓW","WOJCIECHOWICE"]
[null,"OSTROWIECKI","OSTROWIEC ŚWIĘTOKRZYSKI","BAŁTÓW","BODZECHÓW","ĆMIELÓW","KUNÓW","WAŚNIÓW"]
[null,"PIŃCZOWSKI","DZIAŁOSZYCE","KIJE","MICHAŁÓW","PIŃCZÓW","ZŁOTA"]
[null,"SANDOMIERSKI","SANDOMIERZ","DWIKOZY","KLIMONTÓW","KOPRZYWNICA","ŁONIÓW","OBRAZÓW","SAMBORZEC","WILCZYCE","ZAWICHOST"]
[null,"SKARŻYSKI","SKARŻYSKO-KAMIENNA","BLIŻYN","ŁĄCZNA","SKARŻYSKO KOŚCIELNE","SUCHEDNIÓW"]
[null,"STARACHOWICKI","STARACHOWICE","BRODY","MIRZEC","PAWŁÓW","WĄCHOCK"]
[null,"STASZOWSKI","BOGORIA","ŁUBNICE","OLEŚNICA","OSIEK","POŁANIEC","RYTWIANY","STASZÓW","SZYDŁÓW"]
[null,"WŁOSZCZOWSKI","KLUCZEWSKO","KRASOCIN","MOSKORZEW","RADKÓW","SECEMIN","WŁOSZCZOWA"]
[null,"KIELCE","KIELCE"]
[null,"BARTOSZYCKI","BARTOSZYCE","GÓROWO IŁAWECKIE","BARTOSZYCE","BISZTYNEK","GÓROWO IŁAWECKIE","SĘPOPOL"]
[null,"BRANIEWSKI","BRANIEWO","BRANIEWO","FROMBORK","LELKOWO","PIENIĘŻNO","PŁOSKINIA","WILCZĘTA"]
[null,"DZIAŁDOWSKI","DZIAŁDOWO","DZIAŁDOWO","IŁOWO-OSADA","LIDZBARK","PŁOŚNICA","RYBNO"]
[null,"ELBLĄSKI","ELBLĄG","GODKOWO","GRONOWO ELBLĄSKIE","MARKUSY","MILEJEWO","MŁYNARY","PASŁĘK","RYCHLIKI","TOLKMICKO"]
[null,"EŁCKI","EŁK","EŁK","KALINOWO","PROSTKI","STARE JUCHY"]
[null,"GIŻYCKI","GIŻYCKO","GIŻYCKO","KRUKLANKI","MIŁKI","RYN","WYDMINY"]
[null,"IŁAWSKI","IŁAWA","LUBAWA","IŁAWA","KISIELICE","LUBAWA","SUSZ","ZALEWO"]
[null,"KĘTRZYŃSKI","KĘTRZYN","BARCIANY","KĘTRZYN","KORSZE","RESZEL","SROKOWO"]
[null,"LIDZBARSKI","LIDZBARK WARMIŃSKI","KIWITY","LIDZBARK WARMIŃSKI","LUBOMINO","ORNETA"]
[null,"MRĄGOWSKI","MRĄGOWO","MIKOŁAJKI","MRĄGOWO","PIECKI","SORKWITY"]
[null,"NIDZICKI","JANOWIEC KOŚCIELNY","JANOWO","KOZŁOWO","NIDZICA"]
[null,"NOWOMIEJSKI","NOWE MIASTO LUBAWSKIE","BISKUPIEC","GRODZICZNO","KURZĘTNIK","NOWE MIASTO LUBAWSKIE"]
[null,"OLECKI","KOWALE OLECKIE","OLECKO","ŚWIĘTAJNO","WIELICZKI"]
[null,"OLSZTYŃSKI","BARCZEWO","BISKUPIEC","DOBRE MIASTO","DYWITY","GIETRZWAŁD","JEZIORANY","JONKOWO","KOLNO","OLSZTYNEK","PURDA","STAWIGUDA","ŚWIĄTKI"]
[null,"OSTRÓDZKI","OSTRÓDA","DĄBRÓWNO","GRUNWALD","ŁUKTA","MAŁDYTY","MIŁAKOWO","MIŁOMŁYN","MORĄG","OSTRÓDA"]
[null,"PISKI","BIAŁA PISKA","ORZYSZ","PISZ","RUCIANE-NIDA"]
[null,"SZCZYCIEŃSKI","SZCZYTNO","DŹWIERZUTY","JEDWABNO","PASYM","ROZOGI","SZCZYTNO","ŚWIĘTAJNO","WIELBARK"]
[null,"GOŁDAPSKI","BANIE MAZURSKIE","DUBENINKI","GOŁDAP"]
[null,"WĘGORZEWSKI","BUDRY","POZEZDRZE","WĘGORZEWO"]
[null,"ELBLĄG","ELBLĄG"]
[null,"OLSZTYN","OLSZTYN"]
[null,"CHODZIESKI","CHODZIEŻ","BUDZYŃ","CHODZIEŻ","MARGONIN","SZAMOCIN"]
[null,"CZARNKOWSKO_TRZCIANECKI","CZARNKÓW","CZARNKÓW","DRAWSKO","KRZYŻ WIELKOPOLSKI","LUBASZ","POŁAJEWO","TRZCIANKA","WIELEŃ"]
[null,"GNIEŹNIEŃSKI","GNIEZNO","CZERNIEJEWO","GNIEZNO","KISZKOWO","KŁECKO","ŁUBOWO","MIELESZYN","NIECHANOWO","TRZEMESZNO","WITKOWO"]
[null,"GOSTYŃSKI","BOREK WIELKOPOLSKI","GOSTYŃ","KROBIA","PĘPOWO","PIASKI","POGORZELA","PONIEC"]
[null,"GRODZISKI.","GRANOWO","GRODZISK WIELKOPOLSKI","KAMIENIEC","RAKONIEWICE","WIELICHOWO"]
[null,"JAROCIŃSKI","JARACZEWO","JAROCIN","KOTLIN","ŻERKÓW"]
[null,"KALISKI","BLIZANÓW","BRZEZINY","CEKÓW-KOLONIA","GODZIESZE WIELKIE","KOŹMINEK","LISKÓW","MYCIELIN","OPATÓWEK","STAWISZYN","SZCZYTNIKI","ŻELAZKÓW"]
[null,"KĘPIŃSKI","BARANÓW","BRALIN","KĘPNO","ŁĘKA OPATOWSKA","PERZÓW","RYCHTAL","TRZCINICA"]
[null,"KOLSKI","KOŁO","BABIAK","CHODÓW","DĄBIE","GRZEGORZEW","KŁODAWA","KOŁO","KOŚCIELEC","OLSZÓWKA","OSIEK MAŁY","PRZEDECZ"]
[null,"KONIŃSKI","GOLINA","GRODZIEC","KAZIMIERZ BISKUPI","KLECZEW","KRAMSK","KRZYMÓW","RYCHWAŁ","RZGÓW","SKULSK","SOMPOLNO","STARE MIASTO","ŚLESIN","WIERZBINEK","WILCZYN"]
[null,"KOŚCIAŃSKI","KOŚCIAN","CZEMPIŃ","KOŚCIAN","KRZYWIŃ","ŚMIGIEL"]
[null,"KROTOSZYŃSKI","SULMIERZYCE","KOBYLIN","KOŹMIN WIELKOPOLSKI","KROTOSZYN","ROZDRAŻEW","ZDUNY"]
[null,"LESZCZYŃSKI","KRZEMIENIEWO","LIPNO","OSIECZNA","RYDZYNA","ŚWIĘCIECHOWA","WIJEWO","WŁOSZAKOWICE"]
[null,"MIĘDZYCHODZKI","CHRZYPSKO WIELKIE","KWILCZ","MIĘDZYCHÓD","SIERAKÓW"]
[null,"NOWOTOMYSKI","KUŚLIN","LWÓWEK","MIEDZICHOWO","NOWY TOMYŚL","OPALENICA","ZBĄSZYŃ"]
[null,"OBORNICKI","OBORNIKI","ROGOŹNO","RYCZYWÓŁ"]
[null,"OSTROWSKI","OSTRÓW WIELKOPOLSKI","NOWE SKALMIERZYCE","ODOLANÓW","OSTRÓW WIELKOPOLSKI","PRZYGODZICE","RASZKÓW","SIEROSZEWICE","SOŚNIE"]
[null,"OSTRZESZOWSKI","CZAJKÓW","DORUCHÓW","GRABÓW NAD PROSNĄ","KOBYLA GÓRA","KRASZEWICE","MIKSTAT","OSTRZESZÓW"]
[null,"PILSKI","PIŁA","BIAŁOŚLIWIE","KACZORY","ŁOBŻENICA","MIASTECZKO KRAJEŃSKIE","SZYDŁOWO","UJŚCIE","WYRZYSK","WYSOKA"]
[null,"PLESZEWSKI","CHOCZ","CZERMIN","DOBRZYCA","GIZAŁKI","GOŁUCHÓW","PLESZEW"]
[null,"POZNAŃSKI","LUBOŃ","PUSZCZYKOWO","BUK","CZERWONAK","DOPIEWO","KLESZCZEWO","KOMORNIKI","KOSTRZYN","KÓRNIK","MOSINA","MUROWANA GOŚLINA","POBIEDZISKA","ROKIETNICA","STĘSZEW","SUCHY LAS","SWARZĘDZ","TARNOWO PODGÓRNE"]
[null,"RAWICKI","BOJANOWO","JUTROSIN","MIEJSKA GÓRKA","PAKOSŁAW","RAWICZ"]
[null,"SŁUPECKI","SŁUPCA","LĄDEK","ORCHOWO","OSTROWITE","POWIDZ","SŁUPCA","STRZAŁKOWO","ZAGÓRÓW"]
[null,"SZAMOTULSKI","OBRZYCKO","DUSZNIKI","KAŹMIERZ","OBRZYCKO","OSTRORÓG","PNIEWY","SZAMOTUŁY","WRONKI"]
[null,"ŚREDZKI","DOMINOWO","KRZYKOSY","NOWE MIASTO NAD WARTĄ","ŚRODA WIELKOPOLSKA","ZANIEMYŚL"]
[null,"ŚREMSKI","BRODNICA","DOLSK","KSIĄŻ WIELKOPOLSKI","ŚREM"]
[null,"TURECKI","TUREK","BRUDZEW","DOBRA","KAWĘCZYN","MALANÓW","PRZYKONA","TULISZKÓW","TUREK","WŁADYSŁAWÓW"]
[null,"WĄGROWIECKI","WĄGROWIEC","DAMASŁAWEK","GOŁAŃCZ","MIEŚCISKO","SKOKI","WAPNO","WĄGROWIEC"]
[null,"WOLSZTYŃSKI","PRZEMĘT","SIEDLEC","WOLSZTYN"]
[null,"WRZESIŃSKI","KOŁACZKOWO","MIŁOSŁAW","NEKLA","PYZDRY","WRZEŚNIA"]
[null,"ZŁOTOWSKI","ZŁOTÓW","JASTROWIE","KRAJENKA","LIPKA","OKONEK","TARNÓWKA","ZAKRZEWO","ZŁOTÓW"]
[null,"KALISZ","KALISZ"]
[null,"KONIN","KONIN"]
[null,"LESZNO","LESZNO"]
[null,"POZNAŃ","POZNAŃ"]
[null,"BIAŁOGARDZKI","BIAŁOGARD","BIAŁOGARD","KARLINO","TYCHOWO"]
[null,"CHOSZCZEŃSKI","BIERZWNIK","CHOSZCZNO","DRAWNO","KRZĘCIN","PEŁCZYCE","RECZ"]
[null,"DRAWSKI","CZAPLINEK","DRAWSKO POMORSKIE","KALISZ POMORSKI","WIERZCHOWO","ZŁOCIENIEC"]
[null,"GOLENIOWSKI","GOLENIÓW","MASZEWO","NOWOGARD","OSINA","PRZYBIERNÓW","STEPNICA"]
[null,"GRYFICKI","BROJCE","GRYFICE","KARNICE","PŁOTY","REWAL","TRZEBIATÓW"]
[null,"GRYFIŃSKI","BANIE","CEDYNIA","CHOJNA","GRYFINO","MIESZKOWICE","MORYŃ","STARE CZARNOWO","TRZCIŃSKO-ZDRÓJ","WIDUCHOWA"]
[null,"KAMIEŃSKI","DZIWNÓW","GOLCZEWO","KAMIEŃ POMORSKI","MIĘDZYZDROJE","ŚWIERZNO","WOLIN"]
[null,"KOŁOBRZESKI","KOŁOBRZEG","DYGOWO","GOŚCINO","KOŁOBRZEG","RYMAŃ","SIEMYŚL","USTRONIE MORSKIE"]
[null,"KOSZALIŃSKI","BĘDZINO","BIESIEKIERZ","BOBOLICE","MANOWO","MIELNO","POLANÓW","SIANÓW","ŚWIESZYNO"]
[null,"MYŚLIBORSKI","BARLINEK","BOLESZKOWICE","DĘBNO","MYŚLIBÓRZ","NOWOGRÓDEK POMORSKI"]
[null,"POLICKI","DOBRA (SZCZECIŃSKA)","KOŁBASKOWO","NOWE WARPNO","POLICE"]
[null,"PYRZYCKI","BIELICE","KOZIELICE","LIPIANY","PRZELEWICE","PYRZYCE","WARNICE"]
[null,"SŁAWIEŃSKI","DARŁOWO","SŁAWNO","DARŁOWO","MALECHOWO","POSTOMINO","SŁAWNO"]
[null,"STARGARDZKI","STARGARD","CHOCIWEL","DOBRZANY","DOLICE","IŃSKO","KOBYLANKA","MARIANOWO","STARA DĄBROWA","STARGARD","SUCHAŃ"]
[null,"SZCZECINECKI","SZCZECINEK","BARWICE","BIAŁY BÓR","BORNE SULINOWO","GRZMIĄCA","SZCZECINEK"]
[null,"ŚWIDWIŃSKI","ŚWIDWIN","BRZEŻNO","POŁCZYN-ZDRÓJ","RĄBINO","SŁAWOBORZE","ŚWIDWIN"]
[null,"WAŁECKI","WAŁCZ","CZŁOPA","MIROSŁAWIEC","TUCZNO","WAŁCZ"]
[null,"ŁOBESKI","DOBRA","ŁOBEZ","RADOWO MAŁE","RESKO","WĘGORZYNO"]
[null,"KOSZALIN","KOSZALIN"]
[null,"SZCZECIN","SZCZECIN"]
[null,"ŚWINOUJŚCIE","ŚWINOUJŚCIE"]